date,department/service,beneficiary,amount,summary of purpose,category,transaction number,SAP vendor number
01.03.2021,CENTRAL FUNCTIONS,STANBURY BUILDING SERVICES LTD,495.00,COMMERCIAL PROPERTIES,BUILDING R&M,5902457340,1000078207
01.03.2021,CENTRAL FUNCTIONS,STANBURY BUILDING SERVICES LTD,350.00,COMMERCIAL PROPERTIES,BUILDING R&M,2103222464,3000001967
01.03.2021,CENTRAL FUNCTIONS,STANBURY BUILDING SERVICES LTD,575.00,COMMERCIAL PROPERTIES,BUILDING R&M,2103223260,3000001967
01.03.2021,CENTRAL FUNCTIONS,BIFFA WASTE SERVICES LTD,"1,089.27",COMMERCIAL PROPERTIES,REFUSE COLLECTION CONTRACT,5902457776,1147051
01.03.2021,CENTRAL FUNCTIONS,BIFFA WASTE SERVICES LTD,"1,471.73",COMMERCIAL PROPERTIES,REFUSE COLLECTION CONTRACT,5902457762,1147051
01.03.2021,CHILDREN AND FAMILIES,REDACTED PERSONAL DATA,390.00,ADOPTION SUPP FUND,PROFESSIONAL FEES,REDACTED,REDACTED
01.03.2021,COMMUNITIES,CONSTRUCTION YOUTH TRUST,"2,800.00",SOUTHWARK ANTI VIOLENCE UNIT,GRANTS,5902457824,1000069741
01.03.2021,F & C S EXCLUDING CORPORATE BUDGETS,REDACTED PERSONAL DATA,500.00,SESS,OTHER PAYMENTS FOR CLIENTS,REDACTED,REDACTED
01.03.2021,F & C S EXCLUDING CORPORATE BUDGETS,REDACTED PERSONAL DATA,500.00,SESS,OTHER PAYMENTS FOR CLIENTS,REDACTED,REDACTED
01.03.2021,HOUSING HRA,SPOKEMEAD MAINTENANCE LTD,"6,581.00",CAPITAL PS (HRA),CONST'N MAIN CONTRACT - NON CERTIFICATED,2103222462,4002791
01.03.2021,HOUSING HRA,AMCAS- ASSET MANAGEMENT & COMPLIANCY AUDITING SERVICES,"1,860.00",CAPITAL PS (HRA),CONSTRUCTION,5902457684,1000086291
01.03.2021,LEISURE DIRECTORATE,JAMIE SIMONDS PHOTOGRAPHY,450.00,CULTURAL CELEBRATIONS FUND,GRANTS,5902457749,1000052865
01.03.2021,MODERNISATION HGF,BRITISH GAS,915.67,CURLEW HOUSE,GAS,5902457658,1000054825
01.03.2021,REGENERATION,STANBURY BUILDING SERVICES LTD,445.00,TOWER WORKSHOPS,BUILDING R&M,2103223261,3000001967
02.03.2021,ADULT SOCIAL CARE,REDACTED PERSONAL DATA,395.20,APPOINTEESHIPS,OTHER PAYMENTS FOR CLIENTS,REDACTED,REDACTED
02.03.2021,ADULT SOCIAL CARE,BUDDI LTD,360.00,LD LTS 18-64,EQUIPMENT PURCHASE & REPAIR,2103225036,1000067243
02.03.2021,ADULT SOCIAL CARE,CONTACT PROFESSIONALS,465.00,LD LTS 18-64,SUPPORTED LIVING,2103225038,1000057263
02.03.2021,ADULT SOCIAL CARE,CONTACT PROFESSIONALS,513.00,LD LTS 18-64,SUPPORTED LIVING,2103225037,1000057263
02.03.2021,ADULT SOCIAL CARE,PECULIAR CARE HOMES LTD,359.00,LD LTS 18-64,SUPPORTED LIVING,2103225030,1000076991
02.03.2021,ADULT SOCIAL CARE,PECULIAR CARE HOMES LTD,861.60,LD LTS 18-64,SUPPORTED LIVING,2103225033,1000076991
02.03.2021,ADULT SOCIAL CARE,PECULIAR CARE HOMES LTD,861.60,LD LTS 18-64,SUPPORTED LIVING,2103225032,1000076991
02.03.2021,ADULT SOCIAL CARE,PECULIAR CARE HOMES LTD,861.60,LD LTS 18-64,SUPPORTED LIVING,2103225029,1000076991
02.03.2021,ADULT SOCIAL CARE,PECULIAR CARE HOMES LTD,"1,077.00",LD LTS 18-64,SUPPORTED LIVING,2103225034,1000076991
02.03.2021,ADULT SOCIAL CARE,SAGECARE LTD,"2,685.00",MEM LTS 65+,HOMECARE - C&V,2103225054,1000080924
02.03.2021,ADULT SOCIAL CARE,SAGECARE LTD,"2,685.00",MEM LTS 65+,HOMECARE - C&V,2103225048,1000080924
02.03.2021,ADULT SOCIAL CARE,SAGECARE LTD,429.60,MH LTS 18-64,HOMECARE - C&V,2103225053,1000080924
02.03.2021,ADULT SOCIAL CARE,RACHEL FAMILY HOUSING,468.00,MH LTS 18-64,SUPPORTED LIVING,2103225043,1000084986
02.03.2021,ADULT SOCIAL CARE,BUDDI LTD,594.00,PHY LTS 18-64,EQUIPMENT PURCHASE & REPAIR,2103225035,1000067243
02.03.2021,ADULT SOCIAL CARE,SAGECARE LTD,250.60,PHY LTS 18-64,HOMECARE - C&V,2103225052,1000080924
02.03.2021,ADULT SOCIAL CARE,SAGECARE LTD,250.60,PHY LTS 18-64,HOMECARE - C&V,2103225047,1000080924
02.03.2021,ADULT SOCIAL CARE,SAGECARE LTD,492.36,PHY LTS 18-64,HOMECARE - C&V,2103225050,1000080924
02.03.2021,ADULT SOCIAL CARE,SAGECARE LTD,561.00,PHY LTS 65+,HOMECARE - C&V,2103225046,1000080924
02.03.2021,ADULT SOCIAL CARE,SAGECARE LTD,"1,091.92",PHY LTS 65+,HOMECARE - C&V,2103225056,1000080924
02.03.2021,ADULT SOCIAL CARE,SAGECARE LTD,"1,136.45",PHY STS 65+,HOMECARE - IC,2103225044,1000080924
02.03.2021,ADULT SOCIAL CARE,RACHEL FAMILY HOUSING,315.00,SUB LTS 18-64,SUPPORTED LIVING,2103225042,1000084986
02.03.2021,ASSET MANAGEMENT,INVICTA BUILDING SERVICES LTD,"4,075.69",ENG CONTRACTS (SOUTH),HEATING - DISTRICT SYSTEM REPAIR,2103225057,3000001295
02.03.2021,ASSET MANAGEMENT,PART B GROUP LTD,795.00,FRA WORKS,OTHER R&M,5902458124,1000086271
02.03.2021,ASSET MANAGEMENT,PART B GROUP LTD,"1,900.00",FRA WORKS,OTHER R&M,5902458127,1000086271
02.03.2021,ASSET MANAGEMENT,PART B GROUP LTD,"7,500.00",FRA WORKS,OTHER R&M,5902458143,1000086271
02.03.2021,C&AS,LIBRA CONSTRUCTION SERVICES LTD,990.20,CAPITAL PS (SOC SERV),CONSTRUCTION MAIN CONTRACT,2103225058,3000000875
02.03.2021,CENTRAL FUNCTIONS,SPOKEMEAD MAINTENANCE LTD,340.17,GARAGE REPAIRS,BUILDING R&M,5902458206,1000059211
02.03.2021,CHILDREN AND ADULT,HEBER PRIMARY SCHOOL,"9,600.00",CAPITAL PS (EDUCATION),CONSTRUCTION FEES - INTERNAL,5902458019,5001000035
02.03.2021,CHILDREN AND ADULT,ARVI CONSTRUCTION LTD,"16,995.00",CAPITAL PS (EDUCATION),CONSTRUCTION MAIN CONTRACT,2103225060,3000002133
02.03.2021,CHILDREN AND FAMILIES,THE SINGH PARTNERSHIP LTD,"1,206.00",16 PLUS TEAM,EXTERNAL AGENCIES AND BODIES,5902458053,1000086353
02.03.2021,CHILDREN AND FAMILIES,REDACTED PERSONAL DATA,"1,080.00",ADOPT LONDON SOUTH,PROFESSIONAL FEES,REDACTED,REDACTED
02.03.2021,CHILDREN AND FAMILIES,ITL NORTH EAST LTD,334.08,CENTRAL SUPPORT,INTERPRETING SERVICES,5902458054,1000082415
02.03.2021,CHILDREN AND FAMILIES,ITL NORTH EAST LTD,360.25,CENTRAL SUPPORT,INTERPRETING SERVICES,5902458054,1000082415
02.03.2021,CHILDREN AND FAMILIES,ITL NORTH EAST LTD,361.11,CENTRAL SUPPORT,INTERPRETING SERVICES,5902458054,1000082415
02.03.2021,CHILDREN AND FAMILIES,ITL NORTH EAST LTD,418.01,CENTRAL SUPPORT,INTERPRETING SERVICES,5902458054,1000082415
02.03.2021,CHILDREN AND FAMILIES,ITL NORTH EAST LTD,506.20,CENTRAL SUPPORT,INTERPRETING SERVICES,5902458054,1000082415
02.03.2021,CHILDREN AND FAMILIES,ITL NORTH EAST LTD,841.20,CENTRAL SUPPORT,INTERPRETING SERVICES,5902458054,1000082415
02.03.2021,CHILDREN AND FAMILIES,LOGICOUS LTD,"1,166.62",FRIENDS &FAMILY FOST,NURSING PLACEMENTS FEES,5902458224,1000073852
02.03.2021,CHILDREN AND FAMILIES,CAROL NUDDS,300.00,P & R CARE TEAM,OTHER PAYMENTS FOR CLIENTS,5902458160,1000076989
02.03.2021,CHILDREN AND FAMILIES,REDACTED PERSONAL DATA,"2,500.00",SEMI-IND CARELEAVERS,OTHER PAYMENTS FOR CLIENTS,REDACTED,REDACTED
02.03.2021,CHILDREN AND FAMILIES,SILVER BIRCH CARE LTD,"19,071.43",SEMI-IND LAC 16-17,EXTERNAL AGENCIES AND BODIES,2103225026,1000076525
02.03.2021,CHILDREN AND FAMILIES,SILVER BIRCH CARE LTD,300.00,SEMI-IND LAC 16-17,OTHER PAYMENTS FOR CLIENTS,2103225027,1000076525
02.03.2021,CHILDREN AND FAMILIES,MAGIC ROUNDABOUT NURSERIES LTD,990.00,SPECIAL GUARDIANSHIP,EXTERNAL AGENCIES AND BODIES,5902458226,1000045128
02.03.2021,CHILDREN AND FAMILIES,BE BRIGHT PROJECT LTD,523.04,TEAM A,EXTERNAL AGENCIES AND BODIES,5902458225,1000086212
02.03.2021,CHILDREN'S,GROUND CONTROL LIMITED,"5,366.69",CAPITAL PS (EDUCATION),CONSTRUCTION FEES  - EXTERNAL,2103225005,3000001551
02.03.2021,COMMUNITIES,DRAPER TOGETHER,"1,637.00",RESIDENTS PARTICIPATION FUND,GRANTS,5902458120,1000082816
02.03.2021,COMMUNITIES,SYDENHAM HILL T&RA,279.80,TRA HALLS (REPAIRS),HOUSING RESIDENTIAL RENTS,5902458070,1976617
02.03.2021,COMMUNITIES,KINGSWOOD ESTATE T&RA,300.21,TRA HALLS (REPAIRS),HOUSING RESIDENTIAL RENTS,5902458067,11205105
02.03.2021,CUSTOMER EXPERIENCE,ARGOS BUSINESS SOLUTIONS LTD,324.86,COMPLAINTS,OFFICE EXPENSES,5902458017,1000001734
02.03.2021,CUSTOMER EXPERIENCE HGF,HIAM ALI LTD,"8,898.10",CORONER'S,PROFESSIONAL FEES,5902458013,1000084044
02.03.2021,CUSTOMER EXPERIENCE HGF,MASTERCLASS PROPERTIES LTD,"2,975.00",HOMELESS PROJECTS,GRANTS,5902458001,1000084667
02.03.2021,CUSTOMER EXPERIENCE HGF,PRELEAD SERVICES LIMITED,"1,960.00",HOMELESS PROJECTS,GRANTS,5902458104,1000086331
02.03.2021,CUSTOMER EXPERIENCE HGF,STENFORD PROPERTY LTD,"52,616.80",NIGHTLY TA (NSC),EXTERNAL AGENCIES AND BODIES,5902457981,1000074759
02.03.2021,CUSTOMER EXPERIENCE HGF,NORBURY PROPERTY SERVICES (LONDON) LTD,"1,085.00",NIGHTLY TA (NSC),EXTERNAL AGENCIES AND BODIES,5902458109,1000075566
02.03.2021,CUSTOMER EXPERIENCE HGF,CHRISTIAN IDAHOSA,"1,120.00",PRIVATE SECTOR LEASING,EXTERNAL AGENCIES AND BODIES,2103224129,1000085723
02.03.2021,CUSTOMER EXPERIENCE HGF,BETHEL ROCK LTD,"2,340.00",PSL PLACEMENTS,GRANTS,5902458005,1000080864
02.03.2021,DSG,WHITE HALL CLOTHIERS (CAMBERWELL) LTD,"2,430.00",ADMISSIONS,MISCELLANEOUS RECHARGES,5902457978,1000021142
02.03.2021,EDUCATION,HATS GROUP LTD,"72,400.24",SCH TRANS � TRAVEL,CAB FARES,5902458020,1000042743
02.03.2021,ENV & LEIS,F M CONWAY LTD,"27,634.57",CAPITAL PS (LEISURE),CONSTR'N SUB CONTRACT - NON CERTIFICATED,2103225008,4001384
02.03.2021,ENV & LEIS,F M CONWAY LTD,"27,845.89",CAPITAL PS (LEISURE),CONSTR'N SUB CONTRACT - NON CERTIFICATED,2103225007,4001384
02.03.2021,ENV & LEIS,ELITE GUARDING (UK) LTD,"31,776.00",COVID-19 MASS RAPID TESTING,EXTERNAL AGENCIES AND BODIES,5902458116,1000086183
02.03.2021,ENV & LEIS,FUTURE GARMENTS LTD T/A EUROX,676.90,MANAGEMENT TEAM,"CLOTHING, UNIFORMS & LAUNDRY",5902457980,1000080983
02.03.2021,ENVIRONMENT AND LEISURE,F M CONWAY LTD,"179,359.62",CAPITAL PS (LEISURE),CONSTRUCTION,2103225059,4001384
02.03.2021,ENVIRONMENT AND LEISURE,CONWAY AECOM LTD,"41,878.83",CAPITAL PS (LEISURE),CONSTRUCTION,2103225004,3000001595
02.03.2021,ENVIRONMENT AND LEISURE,AIR MONITORS LTD,"32,323.00",CAPITAL PS (LEISURE),"PLANT, MACHINERY & EQUIPMENT ACQUISITION",5902458022,1000054414
02.03.2021,ENVIRONMENT DIRECTORATE,KENT COUNTY COUNCIL - LASER,861.03,BUSINESS CORE,GAS,5902458152,1000012926
02.03.2021,ENVIRONMENT DIRECTORATE,ATHLON MOBILITY SERVICES UK LTD,402.53,CAR LEASING CTRL A/C,VEHICLE LEASING CHARGES,5902458170,1000079667
02.03.2021,ENVIRONMENT DIRECTORATE,LONDON HIRE LIMITED,310.00,COMMERCIAL VEH CTRL A/C,HIRED VEHICLES,5902458179,1383812
02.03.2021,ENVIRONMENT DIRECTORATE,LONDON HIRE LIMITED,675.00,COMMERCIAL VEH CTRL A/C,HIRED VEHICLES,5902458175,1383812
02.03.2021,ENVIRONMENT DIRECTORATE,LONDON HIRE LIMITED,"1,280.00",COMMERCIAL VEH CTRL A/C,HIRED VEHICLES,5902458180,1383812
02.03.2021,ENVIRONMENT DIRECTORATE,AUTOMOTIVE LEASING,281.89,COMMERCIAL VEH CTRL A/C,HIRED VEHICLES,5902458009,11014756
02.03.2021,ENVIRONMENT DIRECTORATE,AUTOMOTIVE LEASING,"1,074.40",COMMERCIAL VEH CTRL A/C,HIRED VEHICLES,5902458012,11014756
02.03.2021,ENVIRONMENT DIRECTORATE,AUTOMOTIVE LEASING,"10,521.35",COMMERCIAL VEH CTRL A/C,HIRED VEHICLES,5902458016,11014756
02.03.2021,ENVIRONMENT DIRECTORATE,AUTOMOTIVE LEASING,"39,933.13",COMMERCIAL VEH CTRL A/C,HIRED VEHICLES,5902458037,11014756
02.03.2021,ENVIRONMENT DIRECTORATE,DAWSON RENTALS SWEEPERS,"2,281.25",COMMERCIAL VEH CTRL A/C,HIRED VEHICLES,5902458227,1000068168
02.03.2021,ENVIRONMENT DIRECTORATE,DAWSON RENTALS SWEEPERS,"2,281.25",COMMERCIAL VEH CTRL A/C,HIRED VEHICLES,5902458223,1000068168
02.03.2021,ENVIRONMENT DIRECTORATE,DAWSON RENTALS SWEEPERS,"2,281.25",COMMERCIAL VEH CTRL A/C,HIRED VEHICLES,5902458222,1000068168
02.03.2021,ENVIRONMENT DIRECTORATE,DAWSON RENTALS SWEEPERS,"3,041.67",COMMERCIAL VEH CTRL A/C,HIRED VEHICLES,5902458221,1000068168
02.03.2021,ENVIRONMENT DIRECTORATE,DAWSON RENTALS SWEEPERS,"3,041.67",COMMERCIAL VEH CTRL A/C,HIRED VEHICLES,5902458220,1000068168
02.03.2021,ENVIRONMENT DIRECTORATE,RADNES SERVICES LTD,773.50,COMMERCIAL VEH CTRL A/C,HIRED VEHICLES,5902458165,1000080334
02.03.2021,ENVIRONMENT DIRECTORATE,DAWSONGROUP VANS LTD,416.33,COMMERCIAL VEH CTRL A/C,HIRED VEHICLES,5902458189,1000082230
02.03.2021,ENVIRONMENT DIRECTORATE,SHELL UK OIL PRODUCTS LTD,413.43,COMMERCIAL VEH CTRL A/C,VEHICLE FUEL,5902458211,1000081254
02.03.2021,ENVIRONMENT DIRECTORATE,SHELL UK OIL PRODUCTS LTD,545.13,COMMERCIAL VEH CTRL A/C,VEHICLE FUEL,5902458218,1000081254
02.03.2021,ENVIRONMENT DIRECTORATE,SHELL UK OIL PRODUCTS LTD,569.29,COMMERCIAL VEH CTRL A/C,VEHICLE FUEL,5902458201,1000081254
02.03.2021,ENVIRONMENT DIRECTORATE,LONDON HIRE LIMITED,970.12,COMMERCIAL VEH CTRL A/C,VEHICLE REPAIRS & MAINTENANCE,5902458094,1383812
02.03.2021,ENVIRONMENT DIRECTORATE,F H BRUNDLE,"1,147.50",ENGINEERING CRAFTS,MATERIALS,5902458167,1082714
02.03.2021,ENVIRONMENT DIRECTORATE,IMPERIAL JANITORIAL SUPPLIES LTD,796.48,ESTATE CLEANING-GENERAL,MATERIALS,5902457985,1000038126
02.03.2021,ENVIRONMENT DIRECTORATE,LONDON HIRE LIMITED,343.10,FLEET INSURANCE WORKS,TRANSPORT INSURANCE COSTS,5902458182,1383812
02.03.2021,ENVIRONMENT DIRECTORATE,SPALDINGS (UK) LTD,400.00,GROUNDS MAINTENANCE - GENERAL,MATERIALS,5902457984,1907384
02.03.2021,ENVIRONMENT DIRECTORATE,F M CONWAY LTD,"316,117.05",HIGHWAY MAINTENANCE OVERHEADS,HIGHWAYS TERM CONTRACT,2103225006,4001384
02.03.2021,ENVIRONMENT DIRECTORATE,SOUTHWARK NEWSPAPER LTD,612.00,HIGHWAYS DEVELOPMENT,MARKETING & PUBLICITY SERVICES,5902458029,1556957
02.03.2021,ENVIRONMENT DIRECTORATE,CABLE TEST LTD,547.47,PUBLIC LIGHTING,OTHER CONTRACTORS,5902458208,1000079183
02.03.2021,ENVIRONMENT DIRECTORATE,CABLE TEST LTD,547.47,PUBLIC LIGHTING,OTHER CONTRACTORS,5902458204,1000079183
02.03.2021,ENVIRONMENT DIRECTORATE,CABLE TEST LTD,547.47,PUBLIC LIGHTING,OTHER CONTRACTORS,5902458203,1000079183
02.03.2021,ENVIRONMENT DIRECTORATE,CABLE TEST LTD,"1,187.47",PUBLIC LIGHTING,OTHER CONTRACTORS,5902458205,1000079183
02.03.2021,ENVIRONMENT DIRECTORATE,KENT COUNTY COUNCIL - LASER,645.96,STREET LIGHTING REACTIVE,ELECTRICITY,5902458150,1000012926
02.03.2021,ENVIRONMENT DIRECTORATE,NPOWER LTD,310.69,STREET LIGHTING REACTIVE,ELECTRICITY,5902458163,1000078994
02.03.2021,F & C S EXCLUDING CORPORATE BUDGETS,NORTHGATE PUBLIC SERVICES (UK) LTD,"9,000.00",ADMINISTRATIVE SUPPORT,SOFTWARE,5902458025,1000037405
02.03.2021,F & C S EXCLUDING CORPORATE BUDGETS,NORTHGATE PUBLIC SERVICES (UK) LTD,"33,900.00",ADMINISTRATIVE SUPPORT,SOFTWARE,5902458027,1000037405
02.03.2021,F & C S EXCLUDING CORPORATE BUDGETS,CIPFA BUSINESS LTD,"6,400.00",CORPORATE SERVICES AND F&G,BOOKS & PUBLICATIONS,5902458171,1000024688
02.03.2021,F & C S EXCLUDING CORPORATE BUDGETS,CIPFA BUSINESS LTD,"1,500.00",CORPORATE SERVICES AND F&G,SUBSCRIPTIONS,5902458166,1000024688
02.03.2021,F & C S EXCLUDING CORPORATE BUDGETS,CIPFA BUSINESS LTD,"5,525.00",CORPORATE SERVICES AND F&G,SUBSCRIPTIONS,5902458177,1000024688
02.03.2021,F & C S EXCLUDING CORPORATE BUDGETS,ZALARIS CONSULTING UK LTD,"2,782.50",GM SAP,SOFTWARE,5902457992,1000062505
02.03.2021,F & C S EXCLUDING CORPORATE BUDGETS,TROWERS & HAMLINS LLP,382.00,LEGAL SVCES MANAGEMENT,PROFESSIONAL FEES,5902457998,1000016239
02.03.2021,F & C S EXCLUDING CORPORATE BUDGETS,REDACTED PERSONAL DATA,500.00,SESS,OTHER PAYMENTS FOR CLIENTS,REDACTED,REDACTED
02.03.2021,F & C S EXCLUDING CORPORATE BUDGETS,REDACTED PERSONAL DATA,500.00,SESS,OTHER PAYMENTS FOR CLIENTS,REDACTED,REDACTED
02.03.2021,F & C S EXCLUDING CORPORATE BUDGETS,REDACTED PERSONAL DATA,500.00,SESS,OTHER PAYMENTS FOR CLIENTS,REDACTED,REDACTED
02.03.2021,F & C S EXCLUDING CORPORATE BUDGETS,REDACTED PERSONAL DATA,500.00,SESS,OTHER PAYMENTS FOR CLIENTS,REDACTED,REDACTED
02.03.2021,HOUSING,GUIDELINE LIFT SERVICES LTD,"163,474.01",GUIDELINE,I-WORLD CONTRACTORS HOLDING ACCOUNT,5902458210,1000064176
02.03.2021,HOUSING,OCO LIMITED,"138,474.13",PAYMENTS CONTROL ACCOUNT - OCO,I-WORLD CONTRACTORS HOLDING ACCOUNT,5902458055,1006066
02.03.2021,HOUSING,SMITH & BYFORD LTD,"113,765.62",SMITH AND BYFORD,I-WORLD CONTRACTORS HOLDING ACCOUNT,5902458056,11212119
02.03.2021,HOUSING HRA,BUDGETMOVES LTD,"2,850.00",CAPITAL PS (HRA),CAPITAL GRANTS,5902458154,1000083799
02.03.2021,HOUSING HRA,TROWERS & HAMLINS LLP,"3,120.00",CAPITAL PS (REGEN),CONSTRUCTION FEES - LEGAL,5902458121,1000016239
02.03.2021,HUMAN RESOURCES,TMP (UK) LIMITED,569.00,ADVERTISING,RECRUITMENT ADVERTISING,5902458030,1000041810
02.03.2021,HUMAN RESOURCES,TMP (UK) LIMITED,569.00,ADVERTISING,RECRUITMENT ADVERTISING,5902458028,1000041810
02.03.2021,HUMAN RESOURCES,TMP (UK) LIMITED,569.00,ADVERTISING,RECRUITMENT ADVERTISING,5902458015,1000041810
02.03.2021,HUMAN RESOURCES,TMP (UK) LIMITED,"1,099.00",ADVERTISING,RECRUITMENT ADVERTISING,5902458023,1000041810
02.03.2021,HUMAN RESOURCES,TMP (UK) LIMITED,"1,309.00",ADVERTISING,RECRUITMENT ADVERTISING,5902458031,1000041810
02.03.2021,HUMAN RESOURCES,TMP (UK) LIMITED,"2,081.90",ADVERTISING,RECRUITMENT ADVERTISING,5902458018,1000041810
02.03.2021,LEISURE DIRECTORATE,ACTIVE COMMUNITIES NETWORK LTD,"7,200.75",GRANTS COMMISSIONING,GRANTS,5902458089,1000057408
02.03.2021,LEISURE DIRECTORATE,ACTIVE COMMUNITIES NETWORK LTD,"7,200.75",GRANTS COMMISSIONING,GRANTS,5902458085,1000057408
02.03.2021,LEISURE DIRECTORATE,CONSTANTINE LIMITED,499.81,HERITAGE,OTHER CONTRACTORS,5902457997,11202702
02.03.2021,LEISURE DIRECTORATE,CONSTANTINE LIMITED,"3,771.17",HERITAGE,OTHER CONTRACTORS,5902457999,11202702
02.03.2021,MODERNISATION HGF,LONDON COUNCILS,"30,000.00",IT MANAGEMENT,COMMS & COMPUTING CONTRACT CHARGES,5902458072,11237079
02.03.2021,MODERNISATION HGF,HAYS RECRUITING EXPERTS WORLDWIDE,"8,501.22",IT MANAGEMENT,RECRUITMENT ADVERTISING,5902458213,11319307
02.03.2021,NEW BUILD,POTTER RAPER LTD,"3,844.50",DEVELOPMENT DELIVERY,PROFESSIONAL FEES,5902458108,1009369
02.03.2021,RESIDENT SERVICES,EDEN ESTATES LONDON LTD,"1,209.00",TA PLACEMENTS,EXTERNAL AGENCIES AND BODIES,5902458156,1000061217
02.03.2021,RESIDENT SERVICES HGF,THAMES WATER UTILITIES LTD,413.53,ILDERTON ROAD PERM,WATER,5902458125,11003005
02.03.2021,SBS OPERATIONS,EDWARDES BROS (DULWICH) LTD,"1,930.00",ELECTRICIANS - DAY TO DAY,MATERIALS,5902458134,1004945
02.03.2021,SOUTHWARK BUILDING SERVICES,EDWARDES BROS (DULWICH) LTD,288.60,STORES/LOGISTICS,CREDITORS -GR/IR CLEARING ACCOUNT,5902458137,1004945
02.03.2021,SOUTHWARK BUILDING SERVICES,EDWARDES BROS (DULWICH) LTD,372.50,STORES/LOGISTICS,CREDITORS -GR/IR CLEARING ACCOUNT,5902458142,1004945
02.03.2021,SOUTHWARK BUILDING SERVICES,EDWARDES BROS (DULWICH) LTD,456.00,STORES/LOGISTICS,CREDITORS -GR/IR CLEARING ACCOUNT,5902458145,1004945
02.03.2021,SOUTHWARK BUILDING SERVICES,EDWARDES BROS (DULWICH) LTD,590.00,STORES/LOGISTICS,CREDITORS -GR/IR CLEARING ACCOUNT,5902458147,1004945
02.03.2021,SOUTHWARK BUILDING SERVICES,EDWARDES BROS (DULWICH) LTD,590.00,STORES/LOGISTICS,CREDITORS -GR/IR CLEARING ACCOUNT,5902458147,1004945
02.03.2021,SOUTHWARK BUILDING SERVICES,EDWARDES BROS (DULWICH) LTD,590.00,STORES/LOGISTICS,CREDITORS -GR/IR CLEARING ACCOUNT,5902458138,1004945
02.03.2021,SOUTHWARK BUILDING SERVICES,EDWARDES BROS (DULWICH) LTD,590.00,STORES/LOGISTICS,CREDITORS -GR/IR CLEARING ACCOUNT,5902458138,1004945
02.03.2021,SOUTHWARK BUILDING SERVICES,EDWARDES BROS (DULWICH) LTD,802.50,STORES/LOGISTICS,CREDITORS -GR/IR CLEARING ACCOUNT,5902458138,1004945
02.03.2021,SOUTHWARK BUILDING SERVICES,EDWARDES BROS (DULWICH) LTD,855.20,STORES/LOGISTICS,CREDITORS -GR/IR CLEARING ACCOUNT,5902458148,1004945
02.03.2021,SOUTHWARK BUILDING SERVICES,EDWARDES BROS (DULWICH) LTD,"1,872.50",STORES/LOGISTICS,CREDITORS -GR/IR CLEARING ACCOUNT,5902458148,1004945
02.03.2021,SOUTHWARK BUILDING SERVICES,EDWARDES BROS (DULWICH) LTD,"4,547.50",STORES/LOGISTICS,CREDITORS -GR/IR CLEARING ACCOUNT,5902458144,1004945
02.03.2021,SOUTHWARK BUILDING SERVICES,TRAVIS PERKINS TRADING COMPANY LTD,285.00,STORES/LOGISTICS,CREDITORS -GR/IR CLEARING ACCOUNT,5902458095,1514319
02.03.2021,SOUTHWARK BUILDING SERVICES,TRAVIS PERKINS TRADING COMPANY LTD,294.00,STORES/LOGISTICS,CREDITORS -GR/IR CLEARING ACCOUNT,5902458095,1514319
02.03.2021,SOUTHWARK BUILDING SERVICES,TRAVIS PERKINS TRADING COMPANY LTD,297.85,STORES/LOGISTICS,CREDITORS -GR/IR CLEARING ACCOUNT,5902458095,1514319
02.03.2021,SOUTHWARK BUILDING SERVICES,TRAVIS PERKINS TRADING COMPANY LTD,387.00,STORES/LOGISTICS,CREDITORS -GR/IR CLEARING ACCOUNT,5902458095,1514319
02.03.2021,SOUTHWARK BUILDING SERVICES,TRAVIS PERKINS TRADING COMPANY LTD,420.00,STORES/LOGISTICS,CREDITORS -GR/IR CLEARING ACCOUNT,5902458095,1514319
02.03.2021,SOUTHWARK BUILDING SERVICES,TRAVIS PERKINS TRADING COMPANY LTD,451.00,STORES/LOGISTICS,CREDITORS -GR/IR CLEARING ACCOUNT,5902458095,1514319
02.03.2021,SOUTHWARK BUILDING SERVICES,TRAVIS PERKINS TRADING COMPANY LTD,566.60,STORES/LOGISTICS,CREDITORS -GR/IR CLEARING ACCOUNT,5902458095,1514319
02.03.2021,SOUTHWARK BUILDING SERVICES,TRAVIS PERKINS TRADING COMPANY LTD,571.60,STORES/LOGISTICS,CREDITORS -GR/IR CLEARING ACCOUNT,5902458095,1514319
02.03.2021,SOUTHWARK BUILDING SERVICES,TRAVIS PERKINS TRADING COMPANY LTD,704.00,STORES/LOGISTICS,CREDITORS -GR/IR CLEARING ACCOUNT,5902458095,1514319
02.03.2021,SOUTHWARK BUILDING SERVICES,TRAVIS PERKINS TRADING COMPANY LTD,732.00,STORES/LOGISTICS,CREDITORS -GR/IR CLEARING ACCOUNT,5902458095,1514319
02.03.2021,SOUTHWARK BUILDING SERVICES,TRAVIS PERKINS TRADING COMPANY LTD,750.00,STORES/LOGISTICS,CREDITORS -GR/IR CLEARING ACCOUNT,5902458095,1514319
02.03.2021,SOUTHWARK BUILDING SERVICES,TRAVIS PERKINS TRADING COMPANY LTD,904.30,STORES/LOGISTICS,CREDITORS -GR/IR CLEARING ACCOUNT,5902458095,1514319
02.03.2021,SOUTHWARK BUILDING SERVICES,TRAVIS PERKINS TRADING COMPANY LTD,"1,015.20",STORES/LOGISTICS,CREDITORS -GR/IR CLEARING ACCOUNT,5902458095,1514319
02.03.2021,SOUTHWARK BUILDING SERVICES,TRAVIS PERKINS TRADING COMPANY LTD,"1,232.00",STORES/LOGISTICS,CREDITORS -GR/IR CLEARING ACCOUNT,5902458095,1514319
02.03.2021,SOUTHWARK BUILDING SERVICES,KEMICO LIMITED,"7,670.40",STORES/LOGISTICS,CREDITORS -GR/IR CLEARING ACCOUNT,5902458131,1000030226
02.03.2021,SOUTHWARK BUILDING SERVICES,KEMICO LIMITED,"8,532.00",STORES/LOGISTICS,CREDITORS -GR/IR CLEARING ACCOUNT,5902458128,1000030226
02.03.2021,SOUTHWARK BUILDING SERVICES,KEMICO LIMITED,"14,382.00",STORES/LOGISTICS,CREDITORS -GR/IR CLEARING ACCOUNT,5902458130,1000030226
02.03.2021,SOUTHWARK BUILDING SERVICES,A T & T (GB LTD ),"2,112.55",STORES/LOGISTICS,CREDITORS -GR/IR CLEARING ACCOUNT,5902458126,1000078342
03.03.2021,ADULT SOCIAL CARE,TALKING LIFE LTD,595.00,ASW - PROFESSIONAL DEVELOPMENT,TRAINING,5902458320,1000071049
03.03.2021,ADULT SOCIAL CARE,HEALTHCARE CONFERENCES UK,295.00,ASW - PROFESSIONAL DEVELOPMENT,TRAINING,5902458415,1000072009
03.03.2021,ADULT SOCIAL CARE,ST THOMAS TRAINING LTD,320.00,ASW - PROFESSIONAL DEVELOPMENT,TRAINING,5902458401,1000086017
03.03.2021,ADULT SOCIAL CARE,LONDON CYRENIANS HOUSING LTD,382.50,DIR OF ASC,EXTERNAL AGENCIES AND BODIES,5902458284,1000078600
03.03.2021,ADULT SOCIAL CARE,THE DRIVE CARE HOMES LTD,"13,433.56",DISABILITIES LAC,EXTERNAL AGENCIES AND BODIES,2103225752,1000003889
03.03.2021,ADULT SOCIAL CARE,BY THE BRIDGE LTD,"5,199.88",DISABILITIES LAC,EXTERNAL AGENCIES AND BODIES,2103225767,1000043961
03.03.2021,ADULT SOCIAL CARE,BY THE BRIDGE LTD,"5,628.00",DISABILITIES LAC,EXTERNAL AGENCIES AND BODIES,2103225774,1000043961
03.03.2021,ADULT SOCIAL CARE,AMELIA'S HOUSE LIMITED,"12,600.00",DISABILITIES LAC,EXTERNAL AGENCIES AND BODIES,2103225744,1000083007
03.03.2021,ADULT SOCIAL CARE,THE DRIVE CARE HOMES LTD,"1,760.00",DISABILITIES LAC,OTHER PAYMENTS FOR CLIENTS,2103225751,1000003889
03.03.2021,ADULT SOCIAL CARE,THE DRIVE CARE HOMES LTD,"12,759.44",DISABILITIES LAC,RESIDENTIAL CARE,2103225750,1000003889
03.03.2021,ADULT SOCIAL CARE,AMELIA'S HOUSE LIMITED,"16,800.00",DISABILITIES LAC,RESIDENTIAL CARE,2103225745,1000083007
03.03.2021,ADULT SOCIAL CARE,THE BEECHES UK LTD,"9,372.00",DISABILITIES LAC,RESIDENTIAL CARE,2103225738,1000083173
03.03.2021,ADULT SOCIAL CARE,THE BEECHES UK LTD,"25,160.00",DISABILITIES LAC,RESIDENTIAL CARE,2103225749,1000083173
03.03.2021,ADULT SOCIAL CARE,LONDON CARE LTD,"53,576.25",EXTRA CARE CONTRACT,HOMECARE - C&V,5902458424,1000003398
03.03.2021,ADULT SOCIAL CARE,ADDISON LEE LTD,421.33,ORIENT ST � RESPITE,CAB FARES,5902458322,1000082935
03.03.2021,ADULT SOCIAL CARE,SUPREME CARE SERVICES LTD,"1,657.75",PHY LTS 18-64,HOMECARE - C&V,2103225789,1000059416
03.03.2021,ADULT SOCIAL CARE,THAMES REACH,"8,450.25",S75 SUPHSG SCH LBS LEAD,EXTERNAL AGENCIES AND BODIES,5902458370,1723415
03.03.2021,ADULT SOCIAL CARE,THAMES REACH,"66,777.00",S75 SUPHSG SCH LBS LEAD,EXTERNAL AGENCIES AND BODIES,5902458370,1723415
03.03.2021,ADULT SOCIAL CARE,ADVANTAGE HEALTHCARE LTD,882.60,SPECIALIST CARE,SECTION 17 PAYMENTS TO AGENCIES/CARERS,2103225706,1000049612
03.03.2021,ADULT SOCIAL CARE,CONTACT PROFESSIONALS,266.00,SPECIALIST CARE,SECTION 17 PAYMENTS TO AGENCIES/CARERS,2103225670,1000057263
03.03.2021,ADULT SOCIAL CARE,CONTACT PROFESSIONALS,266.00,SPECIALIST CARE,SECTION 17 PAYMENTS TO AGENCIES/CARERS,2103225663,1000057263
03.03.2021,ADULT SOCIAL CARE,CONTACT PROFESSIONALS,266.00,SPECIALIST CARE,SECTION 17 PAYMENTS TO AGENCIES/CARERS,2103225659,1000057263
03.03.2021,ADULT SOCIAL CARE,CONTACT PROFESSIONALS,285.00,SPECIALIST CARE,SECTION 17 PAYMENTS TO AGENCIES/CARERS,2103225725,1000057263
03.03.2021,ADULT SOCIAL CARE,CONTACT PROFESSIONALS,285.00,SPECIALIST CARE,SECTION 17 PAYMENTS TO AGENCIES/CARERS,2103225724,1000057263
03.03.2021,ADULT SOCIAL CARE,CONTACT PROFESSIONALS,285.00,SPECIALIST CARE,SECTION 17 PAYMENTS TO AGENCIES/CARERS,2103225671,1000057263
03.03.2021,ADULT SOCIAL CARE,CONTACT PROFESSIONALS,285.00,SPECIALIST CARE,SECTION 17 PAYMENTS TO AGENCIES/CARERS,2103225666,1000057263
03.03.2021,ADULT SOCIAL CARE,CONTACT PROFESSIONALS,323.00,SPECIALIST CARE,SECTION 17 PAYMENTS TO AGENCIES/CARERS,2103225693,1000057263
03.03.2021,ADULT SOCIAL CARE,CONTACT PROFESSIONALS,342.00,SPECIALIST CARE,SECTION 17 PAYMENTS TO AGENCIES/CARERS,2103225672,1000057263
03.03.2021,ADULT SOCIAL CARE,CONTACT PROFESSIONALS,380.00,SPECIALIST CARE,SECTION 17 PAYMENTS TO AGENCIES/CARERS,2103225675,1000057263
03.03.2021,ADULT SOCIAL CARE,CONTACT PROFESSIONALS,"1,596.00",SPECIALIST CARE,SECTION 17 PAYMENTS TO AGENCIES/CARERS,2103225722,1000057263
03.03.2021,ADULT SOCIAL CARE,METRO HOMECARE LTD,264.00,SPECIALIST CARE,SECTION 17 PAYMENTS TO AGENCIES/CARERS,2103225709,1000070695
03.03.2021,ADULT SOCIAL CARE,METRO HOMECARE LTD,264.00,SPECIALIST CARE,SECTION 17 PAYMENTS TO AGENCIES/CARERS,2103225708,1000070695
03.03.2021,ADULT SOCIAL CARE,METRO HOMECARE LTD,264.00,SPECIALIST CARE,SECTION 17 PAYMENTS TO AGENCIES/CARERS,2103225686,1000070695
03.03.2021,ADULT SOCIAL CARE,METRO HOMECARE LTD,264.00,SPECIALIST CARE,SECTION 17 PAYMENTS TO AGENCIES/CARERS,2103225654,1000070695
03.03.2021,ADULT SOCIAL CARE,METRO HOMECARE LTD,264.00,SPECIALIST CARE,SECTION 17 PAYMENTS TO AGENCIES/CARERS,2103225650,1000070695
03.03.2021,ADULT SOCIAL CARE,METRO HOMECARE LTD,264.00,SPECIALIST CARE,SECTION 17 PAYMENTS TO AGENCIES/CARERS,2103225645,1000070695
03.03.2021,ADULT SOCIAL CARE,METRO HOMECARE LTD,264.00,SPECIALIST CARE,SECTION 17 PAYMENTS TO AGENCIES/CARERS,2103225643,1000070695
03.03.2021,ADULT SOCIAL CARE,METRO HOMECARE LTD,264.00,SPECIALIST CARE,SECTION 17 PAYMENTS TO AGENCIES/CARERS,2103225642,1000070695
03.03.2021,ADULT SOCIAL CARE,METRO HOMECARE LTD,297.00,SPECIALIST CARE,SECTION 17 PAYMENTS TO AGENCIES/CARERS,2103225684,1000070695
03.03.2021,ADULT SOCIAL CARE,METRO HOMECARE LTD,313.50,SPECIALIST CARE,SECTION 17 PAYMENTS TO AGENCIES/CARERS,2103225727,1000070695
03.03.2021,ADULT SOCIAL CARE,METRO HOMECARE LTD,330.00,SPECIALIST CARE,SECTION 17 PAYMENTS TO AGENCIES/CARERS,2103225647,1000070695
03.03.2021,ADULT SOCIAL CARE,METRO HOMECARE LTD,396.00,SPECIALIST CARE,SECTION 17 PAYMENTS TO AGENCIES/CARERS,2103225685,1000070695
03.03.2021,ADULT SOCIAL CARE,METRO HOMECARE LTD,396.00,SPECIALIST CARE,SECTION 17 PAYMENTS TO AGENCIES/CARERS,2103225652,1000070695
03.03.2021,ADULT SOCIAL CARE,METRO HOMECARE LTD,396.00,SPECIALIST CARE,SECTION 17 PAYMENTS TO AGENCIES/CARERS,2103225649,1000070695
03.03.2021,ADULT SOCIAL CARE,METRO HOMECARE LTD,495.00,SPECIALIST CARE,SECTION 17 PAYMENTS TO AGENCIES/CARERS,2103225656,1000070695
03.03.2021,ADULT SOCIAL CARE,METRO HOMECARE LTD,528.00,SPECIALIST CARE,SECTION 17 PAYMENTS TO AGENCIES/CARERS,2103225653,1000070695
03.03.2021,ADULT SOCIAL CARE,METRO HOMECARE LTD,594.00,SPECIALIST CARE,SECTION 17 PAYMENTS TO AGENCIES/CARERS,2103225687,1000070695
03.03.2021,ADULT SOCIAL CARE,METRO HOMECARE LTD,693.00,SPECIALIST CARE,SECTION 17 PAYMENTS TO AGENCIES/CARERS,2103225683,1000070695
03.03.2021,ADULT SOCIAL CARE,METRO HOMECARE LTD,759.00,SPECIALIST CARE,SECTION 17 PAYMENTS TO AGENCIES/CARERS,2103225731,1000070695
03.03.2021,ADULT SOCIAL CARE,METRO HOMECARE LTD,792.00,SPECIALIST CARE,SECTION 17 PAYMENTS TO AGENCIES/CARERS,2103225732,1000070695
03.03.2021,ADULT SOCIAL CARE,METRO HOMECARE LTD,858.00,SPECIALIST CARE,SECTION 17 PAYMENTS TO AGENCIES/CARERS,2103225646,1000070695
03.03.2021,ADULT SOCIAL CARE,METRO HOMECARE LTD,"1,848.00",SPECIALIST CARE,SECTION 17 PAYMENTS TO AGENCIES/CARERS,2103225644,1000070695
03.03.2021,ADULT SOCIAL CARE,PECULIAR CARE HOMES LTD,"8,364.70",SPECIALIST CARE,SECTION 17 PAYMENTS TO AGENCIES/CARERS,2103225648,1000076991
03.03.2021,C&AS,TRUSTEE FIRE & SECURITY LTD,"21,900.00",CAPITAL PS (SOC SERV),CONSTRUCTION MAIN CONTRACT,5902458250,1000084141
03.03.2021,CENTRAL FUNCTIONS,4-5 GRAYS INN SQUARE LTD,"2,500.00",HOME OWNERSHIP,LEGAL FEES & COURT COSTS,5902458395,1000046636
03.03.2021,CHILDREN AND ADULT,SHARPE PRITCHARD LLP,464.00,CAPITAL PS (EDUCATION),CONSTRUCTION FEES - LEGAL,5902458377,1790085
03.03.2021,CHILDREN AND FAMILIES,REDACTED PERSONAL DATA,300.00,CARELEAVER UNIV SUPP,CLIENT TRANSPORT,REDACTED,REDACTED
03.03.2021,CHILDREN AND FAMILIES,REDACTED PERSONAL DATA,300.00,CARELEAVER UNIV SUPP,CLIENT TRANSPORT,REDACTED,REDACTED
03.03.2021,CHILDREN AND FAMILIES,REDACTED PERSONAL DATA,700.00,CARELEAVER UNIV SUPP,OTHER PAYMENTS FOR CLIENTS,REDACTED,REDACTED
03.03.2021,CHILDREN AND FAMILIES,REDACTED PERSONAL DATA,"1,200.00",CARELEAVER UNIV SUPP,OTHER PAYMENTS FOR CLIENTS,REDACTED,REDACTED
03.03.2021,CHILDREN AND FAMILIES,JAMES KIDS HOME LTD,"22,048.08",CHILDREN�S RESID,EXTERNAL AGENCIES AND BODIES,2103225754,1000086222
03.03.2021,CHILDREN AND FAMILIES,CASTLE HOMES LIMITED,"18,000.00",CHILDREN�S RESID,RESIDENTIAL CARE,2103225753,1000019388
03.03.2021,CHILDREN AND FAMILIES,HOLIBROOK HOUSE LTD,"21,920.00",CHILDREN�S RESID,RESIDENTIAL CARE,2103225741,1000067873
03.03.2021,CHILDREN AND FAMILIES,KEYS PCE LTD,"15,800.00",CHILDREN�S RESID,RESIDENTIAL CARE,2103225743,1000080090
03.03.2021,CHILDREN AND FAMILIES,KEYS PCE LTD,"16,700.00",CHILDREN�S RESID,RESIDENTIAL CARE,2103225748,1000080090
03.03.2021,CHILDREN AND FAMILIES,KEYS PCE LTD,"29,400.00",CHILDREN�S RESID,RESIDENTIAL CARE,2103225742,1000080090
03.03.2021,CHILDREN AND FAMILIES,RESTORATION CARE & SERVICES LTD,"24,531.85",CHILDREN�S RESID,RESIDENTIAL CARE,2103225747,1000081085
03.03.2021,CHILDREN AND FAMILIES,OWNLIFE RESIDENTIAL LTD,"16,800.00",CHILDREN�S RESID,RESIDENTIAL CARE,2103225739,1000085398
03.03.2021,CHILDREN AND FAMILIES,OWNLIFE RESIDENTIAL LTD,"23,600.00",CHILDREN�S RESID,RESIDENTIAL CARE,2103225746,1000085398
03.03.2021,CHILDREN AND FAMILIES,OWNLIFE RESIDENTIAL LTD,"23,600.00",CHILDREN�S RESID,RESIDENTIAL CARE,2103225740,1000085398
03.03.2021,CHILDREN AND FAMILIES,CONTACT PROFESSIONALS,306.82,CONTACT SERVICE,OTHER PAYMENTS FOR CLIENTS,2103225757,1000057263
03.03.2021,CHILDREN AND FAMILIES,CONTACT PROFESSIONALS,645.00,CONTACT SERVICE,OTHER PAYMENTS FOR CLIENTS,2103225756,1000057263
03.03.2021,CHILDREN AND FAMILIES,CONTACT PROFESSIONALS,695.00,CONTACT SERVICE,OTHER PAYMENTS FOR CLIENTS,2103225762,1000057263
03.03.2021,CHILDREN AND FAMILIES,CARE O LINE,820.78,EDGE OF CARE DECIS�S,OTHER PAYMENTS FOR CLIENTS,2103225639,11241743
03.03.2021,CHILDREN AND FAMILIES,CARE O LINE,383.75,EDGE OF CARE DECIS�S,SECTION 17 PAYMENTS TO AGENCIES/CARERS,2103225640,11241743
03.03.2021,CHILDREN AND FAMILIES,CARE O LINE,"1,057.50",EDGE OF CARE DECIS�S,SECTION 17 PAYMENTS TO AGENCIES/CARERS,2103225635,11241743
03.03.2021,CHILDREN AND FAMILIES,CARE O LINE,"1,415.00",EDGE OF CARE DECIS�S,SECTION 17 PAYMENTS TO AGENCIES/CARERS,2103225636,11241743
03.03.2021,CHILDREN AND FAMILIES,CARE O LINE,"1,882.50",EDGE OF CARE DECIS�S,SECTION 17 PAYMENTS TO AGENCIES/CARERS,2103225638,11241743
03.03.2021,CHILDREN AND FAMILIES,REDACTED PERSONAL DATA,400.00,FE SUPPORT,OTHER PAYMENTS FOR CLIENTS,REDACTED,REDACTED
03.03.2021,CHILDREN AND FAMILIES,HEATH FARM FAMILY SERVICES LTD,"5,176.38",FRIENDS & FAMILY FOSTERING,EXTERNAL AGENCIES AND BODIES,2103225773,11271268
03.03.2021,CHILDREN AND FAMILIES,BY THE BRIDGE LTD,"3,810.24",FRIENDS & FAMILY FOSTERING,EXTERNAL AGENCIES AND BODIES,2103225776,1000043961
03.03.2021,CHILDREN AND FAMILIES,BY THE BRIDGE LTD,"4,010.72",FRIENDS & FAMILY FOSTERING,EXTERNAL AGENCIES AND BODIES,2103225783,1000043961
03.03.2021,CHILDREN AND FAMILIES,BY THE BRIDGE LTD,"4,075.40",FRIENDS & FAMILY FOSTERING,EXTERNAL AGENCIES AND BODIES,2103225777,1000043961
03.03.2021,CHILDREN AND FAMILIES,BY THE BRIDGE LTD,"4,137.56",FRIENDS & FAMILY FOSTERING,EXTERNAL AGENCIES AND BODIES,2103225787,1000043961
03.03.2021,CHILDREN AND FAMILIES,BY THE BRIDGE LTD,"4,207.59",FRIENDS & FAMILY FOSTERING,EXTERNAL AGENCIES AND BODIES,2103225786,1000043961
03.03.2021,CHILDREN AND FAMILIES,BY THE BRIDGE LTD,"4,255.44",FRIENDS & FAMILY FOSTERING,EXTERNAL AGENCIES AND BODIES,2103225784,1000043961
03.03.2021,CHILDREN AND FAMILIES,BY THE BRIDGE LTD,"4,429.04",FRIENDS & FAMILY FOSTERING,EXTERNAL AGENCIES AND BODIES,2103225788,1000043961
03.03.2021,CHILDREN AND FAMILIES,BY THE BRIDGE LTD,"4,429.04",FRIENDS & FAMILY FOSTERING,EXTERNAL AGENCIES AND BODIES,2103225775,1000043961
03.03.2021,CHILDREN AND FAMILIES,FOLLOWING WHISPERS FAMILY SERVICE LTD,"6,200.04",FRIENDS & FAMILY FOSTERING,EXTERNAL AGENCIES AND BODIES,2103225764,1000065611
03.03.2021,CHILDREN AND FAMILIES,FAMILY FOSTERING LTD,"5,199.88",FRIENDS & FAMILY FOSTERING,EXTERNAL AGENCIES AND BODIES,2103225614,1000075179
03.03.2021,CHILDREN AND FAMILIES,MOSAIC FOSTER CARE LTD,"6,300.00",FRIENDS & FAMILY FOSTERING,EXTERNAL AGENCIES AND BODIES,2103225765,1000076259
03.03.2021,CHILDREN AND FAMILIES,ORANGE GROVE FOSTERCARE LTD,"3,388.56",FRIENDS & FAMILY FOSTERING,EXTERNAL AGENCIES AND BODIES,2103225766,1000078716
03.03.2021,CHILDREN AND FAMILIES,FOSTERING FOR YOU LTD,"2,954.64",FRIENDS & FAMILY FOSTERING,EXTERNAL AGENCIES AND BODIES,2103225781,1000080380
03.03.2021,CHILDREN AND FAMILIES,FOSTERING FOR YOU LTD,"2,954.64",FRIENDS & FAMILY FOSTERING,EXTERNAL AGENCIES AND BODIES,2103225771,1000080380
03.03.2021,CHILDREN AND FAMILIES,FOSTERING FOR YOU LTD,"3,110.16",FRIENDS & FAMILY FOSTERING,EXTERNAL AGENCIES AND BODIES,2103225782,1000080380
03.03.2021,CHILDREN AND FAMILIES,FOSTERING FOR YOU LTD,"3,110.16",FRIENDS & FAMILY FOSTERING,EXTERNAL AGENCIES AND BODIES,2103225780,1000080380
03.03.2021,CHILDREN AND FAMILIES,FOSTERING FOR YOU LTD,"3,110.16",FRIENDS & FAMILY FOSTERING,EXTERNAL AGENCIES AND BODIES,2103225779,1000080380
03.03.2021,CHILDREN AND FAMILIES,FOSTERING FOR YOU LTD,"3,110.16",FRIENDS & FAMILY FOSTERING,EXTERNAL AGENCIES AND BODIES,2103225772,1000080380
03.03.2021,CHILDREN AND FAMILIES,FOSTERING FOR YOU LTD,"3,110.16",FRIENDS & FAMILY FOSTERING,EXTERNAL AGENCIES AND BODIES,2103225769,1000080380
03.03.2021,CHILDREN AND FAMILIES,FAMILY WORKS FOSTERING LTD,"5,080.04",FRIENDS & FAMILY FOSTERING,EXTERNAL AGENCIES AND BODIES,2103225763,1000082529
03.03.2021,CHILDREN AND FAMILIES,PILGRIMS CORNER LIMITED,"3,996.44",FRIENDS & FAMILY FOSTERING,EXTERNAL AGENCIES AND BODIES,2103225778,1000084708
03.03.2021,CHILDREN AND FAMILIES,REDACTED PERSONAL DATA,"2,000.00",LEAVING CARE GRANT,OTHER PAYMENTS FOR CLIENTS,REDACTED,REDACTED
03.03.2021,CHILDREN AND FAMILIES,LOOK AHEAD CARE AND SUPPORT LTD,644.58,SEMI-IND CARELEAVERS,EXTERNAL AGENCIES AND BODIES,2103225610,1000047299
03.03.2021,CHILDREN AND FAMILIES,OWNLIFE LTD,"4,440.00",SEMI-IND CARELEAVERS,EXTERNAL AGENCIES AND BODIES,2103225621,1000056219
03.03.2021,CHILDREN AND FAMILIES,BARNARDOS SERVICES LTD,600.00,SEMI-IND CARELEAVERS,EXTERNAL AGENCIES AND BODIES,2103225620,1000063730
03.03.2021,CHILDREN AND FAMILIES,SILVER BIRCH CARE LTD,"3,500.00",SEMI-IND CARELEAVERS,EXTERNAL AGENCIES AND BODIES,2103225615,1000076525
03.03.2021,CHILDREN AND FAMILIES,SILVER BIRCH CARE LTD,"3,500.00",SEMI-IND CARELEAVERS,EXTERNAL AGENCIES AND BODIES,2103225607,1000076525
03.03.2021,CHILDREN AND FAMILIES,HARVEST CARE GROUP LTD,"1,900.08",SEMI-IND CARELEAVERS,EXTERNAL AGENCIES AND BODIES,2103225604,1000079059
03.03.2021,CHILDREN AND FAMILIES,HARVEST CARE GROUP LTD,"2,199.96",SEMI-IND CARELEAVERS,EXTERNAL AGENCIES AND BODIES,2103225613,1000079059
03.03.2021,CHILDREN AND FAMILIES,HARVEST CARE GROUP LTD,"2,199.96",SEMI-IND CARELEAVERS,EXTERNAL AGENCIES AND BODIES,2103225605,1000079059
03.03.2021,CHILDREN AND FAMILIES,HARVEST CARE GROUP LTD,"2,199.96",SEMI-IND CARELEAVERS,EXTERNAL AGENCIES AND BODIES,2103225601,1000079059
03.03.2021,CHILDREN AND FAMILIES,HARVEST CARE GROUP LTD,"2,199.96",SEMI-IND CARELEAVERS,EXTERNAL AGENCIES AND BODIES,2103225600,1000079059
03.03.2021,CHILDREN AND FAMILIES,HARVEST CARE GROUP LTD,"4,100.04",SEMI-IND CARELEAVERS,EXTERNAL AGENCIES AND BODIES,2103225602,1000079059
03.03.2021,CHILDREN AND FAMILIES,PATHWAY LTD,"3,400.00",SEMI-IND CARELEAVERS,EXTERNAL AGENCIES AND BODIES,2103225619,1000080564
03.03.2021,CHILDREN AND FAMILIES,TRANSFORMING LIVES COMPANY LTD,"3,739.92",SEMI-IND CARELEAVERS,EXTERNAL AGENCIES AND BODIES,2103225609,1000083352
03.03.2021,CHILDREN AND FAMILIES,E A JIGSAW CARE LIMITED,"7,100.00",SEMI-IND CARELEAVERS,EXTERNAL AGENCIES AND BODIES,2103225617,1000084233
03.03.2021,CHILDREN AND FAMILIES,COMMITTED CARE HOUSING,"4,860.00",SEMI-IND CARELEAVERS,EXTERNAL AGENCIES AND BODIES,2103225608,1000086257
03.03.2021,CHILDREN AND FAMILIES,SILVER BIRCH CARE LTD,280.00,SEMI-IND CARELEAVERS,OTHER PAYMENTS FOR CLIENTS,2103225616,1000076525
03.03.2021,CHILDREN AND FAMILIES,PATHWAY LTD,280.00,SEMI-IND CARELEAVERS,OTHER PAYMENTS FOR CLIENTS,2103225618,1000080564
03.03.2021,CHILDREN AND FAMILIES,OWNLIFE LTD,"3,200.00",SEMI-IND LAC 16-17,EXTERNAL AGENCIES AND BODIES,2103225632,1000056219
03.03.2021,CHILDREN AND FAMILIES,SILVER BIRCH CARE LTD,"15,996.00",SEMI-IND LAC 16-17,EXTERNAL AGENCIES AND BODIES,2103225623,1000076525
03.03.2021,CHILDREN AND FAMILIES,SILVER BIRCH CARE LTD,"16,000.00",SEMI-IND LAC 16-17,EXTERNAL AGENCIES AND BODIES,2103225627,1000076525
03.03.2021,CHILDREN AND FAMILIES,BRIGHT YOUNG FUTURES LTD,"2,104.28",SEMI-IND LAC 16-17,EXTERNAL AGENCIES AND BODIES,2103225625,1000083958
03.03.2021,CHILDREN AND FAMILIES,QUALIFIED CARE RESIDENTS SERVICES LTD,"9,599.80",SEMI-IND LAC 16-17,EXTERNAL AGENCIES AND BODIES,2103225624,1000085856
03.03.2021,CHILDREN AND FAMILIES,SILVER BIRCH CARE LTD,280.00,SEMI-IND LAC 16-17,OTHER PAYMENTS FOR CLIENTS,2103225631,1000076525
03.03.2021,CHILDREN AND FAMILIES,QUALIFIED CARE RESIDENTS SERVICES LTD,340.00,SEMI-IND LAC 16-17,OTHER PAYMENTS FOR CLIENTS,2103225634,1000085856
03.03.2021,CHILDREN AND FAMILIES,REDACTED PERSONAL DATA,388.04,SPECIAL GUARDIANSHIP,PAYMENTS TO CARERS,REDACTED,REDACTED
03.03.2021,CHILDREN AND FAMILIES,REDACTED PERSONAL DATA,342.45,SPECIAL GUARDIANSHIP,PAYMENTS TO CARERS,REDACTED,REDACTED
03.03.2021,CHILDREN AND FAMILIES,REDACTED PERSONAL DATA,389.34,SPECIAL GUARDIANSHIP,PAYMENTS TO CARERS,REDACTED,REDACTED
03.03.2021,CHILDREN AND FAMILIES,REDACTED PERSONAL DATA,356.15,SPECIAL GUARDIANSHIP,PAYMENTS TO CARERS,REDACTED,REDACTED
03.03.2021,CHILDREN AND FAMILIES,REDACTED PERSONAL DATA,403.04,SPECIAL GUARDIANSHIP,PAYMENTS TO CARERS,REDACTED,REDACTED
03.03.2021,CHILDREN AND FAMILIES,REDACTED PERSONAL DATA,525.00,SPECIAL GUARDIANSHIP,PAYMENTS TO CARERS,REDACTED,REDACTED
03.03.2021,CHILDREN AND FAMILIES,REDACTED PERSONAL DATA,525.00,SPECIAL GUARDIANSHIP,PAYMENTS TO CARERS,REDACTED,REDACTED
03.03.2021,CHILDREN AND FAMILIES,REDACTED PERSONAL DATA,338.57,SPECIAL GUARDIANSHIP,PAYMENTS TO CARERS,REDACTED,REDACTED
03.03.2021,CHILDREN AND FAMILIES,REDACTED PERSONAL DATA,341.15,SPECIAL GUARDIANSHIP,PAYMENTS TO CARERS,REDACTED,REDACTED
03.03.2021,CHILDREN AND FAMILIES,REDACTED PERSONAL DATA,535.62,SPECIAL GUARDIANSHIP,PAYMENTS TO CARERS,REDACTED,REDACTED
03.03.2021,CHILDREN AND FAMILIES,REDACTED PERSONAL DATA,750.00,SPECIAL GUARDIANSHIP,PAYMENTS TO CARERS,REDACTED,REDACTED
03.03.2021,CHILDREN AND FAMILIES,SILVER BIRCH CARE LTD,"3,500.00",UASC CARELEAVERS,EXTERNAL AGENCIES AND BODIES,2103225599,1000076525
03.03.2021,CHILDREN AND FAMILIES,HARVEST CARE GROUP LTD,"1,800.12",UASC CARELEAVERS,EXTERNAL AGENCIES AND BODIES,2103225606,1000079059
03.03.2021,CHILDREN AND FAMILIES,HARVEST CARE GROUP LTD,"1,900.08",UASC CARELEAVERS,EXTERNAL AGENCIES AND BODIES,2103225603,1000079059
03.03.2021,CHILDREN AND FAMILIES,OWNLIFE LTD,"2,520.00",UASC LAC 16-17,EXTERNAL AGENCIES AND BODIES,2103225633,1000056219
03.03.2021,COMMUNITIES,SOVEREIGN INSIGNIA LTD T/A IMPAMARK PRESTIGE BRANDED MERCHANDISE,"1,098.95",MAYORAL SUPPORT,MATERIALS,5902458443,1000049053
03.03.2021,COMMUNITIES,ASTLEY COOPER ROAD T&RA,"2,500.00",RESIDENTS PARTICIPATION FUND,GRANTS,5902458313,11059315
03.03.2021,COMMUNITIES,ARARA (ASTBURY ROAD AREA RESIDENTS ASSOCIATION),"2,500.00",RESIDENTS PARTICIPATION FUND,GRANTS,5902458333,1000006449
03.03.2021,COMMUNITIES,TABARD GROWERS,"1,667.00",RESIDENTS PARTICIPATION FUND,GRANTS,5902458323,1000081143
03.03.2021,COMMUNITIES,MENTIVITY,"3,500.00",SOUTHWARK ANTI VIOLENCE UNIT,GRANTS,5902458353,1000081738
03.03.2021,COMMUNITIES,MENTIVITY,"3,500.00",SOUTHWARK ANTI VIOLENCE UNIT,GRANTS,5902458352,1000081738
03.03.2021,COMMUNITIES,MENTIVITY,"3,500.00",SOUTHWARK ANTI VIOLENCE UNIT,GRANTS,5902458351,1000081738
03.03.2021,COMMUNITIES,ELEVATED MINDS CIC,"3,200.00",SOUTHWARK ANTI VIOLENCE UNIT,GRANTS,5902458355,1000083956
03.03.2021,COMMUNITIES,ANIMA YOUTH CIC,"2,400.00",SOUTHWARK ANTI VIOLENCE UNIT,GRANTS,5902458337,1000083977
03.03.2021,COMMUNITIES,ANIMA YOUTH CIC,"2,400.00",SOUTHWARK ANTI VIOLENCE UNIT,GRANTS,5902458335,1000083977
03.03.2021,COMMUNITIES,BROOK,"36,437.50",YOUNG PEOPLES SERVICE,OTHER CONTRACTORS,5902458418,1000076901
03.03.2021,CUSTOMER EXPERIENCE,CORAM VOICE,"1,000.00",COMPLAINTS,EXTERNAL AGENCIES AND BODIES,5902458230,1000076392
03.03.2021,CUSTOMER EXPERIENCE HGF,ALLIED PUBLICITY SERVICES LTD,"1,042.29",BLUE BADGES,MATERIALS,5902458280,1000082115
03.03.2021,CUSTOMER EXPERIENCE HGF,KENT COUNTY COUNCIL - LASER,"3,433.27",CORONER'S,ELECTRICITY,5902458445,1000012926
03.03.2021,CUSTOMER EXPERIENCE HGF,COLLEGE PROPERTY DEVELOPMENTS LTD,"1,062.00",HOMELESS PROJECTS,GRANTS,5902458361,1000086349
03.03.2021,CUSTOMER EXPERIENCE HGF,CHAMPION LETTINGS LTD,904.88,HOMELESS PROJECTS,GRANTS,5902458350,1000086357
03.03.2021,CUSTOMER EXPERIENCE HGF,CHAMPION LETTINGS LTD,"2,117.28",HOMELESS PROJECTS,GRANTS,5902458403,1000086357
03.03.2021,CUSTOMER EXPERIENCE HGF,FOXTONS LIMITED (PECKHAM),"3,230.75",HOMELESS PROJECTS,GRANTS,5902458444,1000086360
03.03.2021,CUSTOMER EXPERIENCE HGF,SOLACE WOMEN'S AID,"12,710.00",NIGHTLY TA (NSC),EXTERNAL AGENCIES AND BODIES,5902458409,1000057231
03.03.2021,CUSTOMER EXPERIENCE HGF,KINDLY PROPERTIES LTD,"14,400.25",NIGHTLY TA (NSC),EXTERNAL AGENCIES AND BODIES,5902458248,1000060734
03.03.2021,CUSTOMER EXPERIENCE HGF,APEX HOUSING SOLUTIONS LTD,366.00,NIGHTLY TA (NSC),EXTERNAL AGENCIES AND BODIES,5902458419,1000079786
03.03.2021,CUSTOMER EXPERIENCE HGF,APEX HOUSING SOLUTIONS LTD,586.50,NIGHTLY TA (NSC),EXTERNAL AGENCIES AND BODIES,5902458417,1000079786
03.03.2021,CUSTOMER EXPERIENCE HGF,APEX HOUSING SOLUTIONS LTD,840.35,NIGHTLY TA (NSC),EXTERNAL AGENCIES AND BODIES,5902458407,1000079786
03.03.2021,CUSTOMER EXPERIENCE HGF,APEX HOUSING SOLUTIONS LTD,"1,179.25",NIGHTLY TA (NSC),EXTERNAL AGENCIES AND BODIES,5902458414,1000079786
03.03.2021,CUSTOMER EXPERIENCE HGF,APEX HOUSING SOLUTIONS LTD,"1,618.25",NIGHTLY TA (NSC),EXTERNAL AGENCIES AND BODIES,5902458412,1000079786
03.03.2021,CUSTOMER EXPERIENCE HGF,APEX HOUSING SOLUTIONS LTD,"2,356.00",NIGHTLY TA (NSC),EXTERNAL AGENCIES AND BODIES,5902458266,1000079786
03.03.2021,CUSTOMER EXPERIENCE HGF,TFL TELESALES / OYSTER FULFILMENT,340.00,RAPID REHOUSING,PUBLIC TRANSPORT,5902458400,1000059727
03.03.2021,DSG,NELL GWYNN NURSERY SCHOOL,"10,913.00",MATERNITY COVER,SCHOOLS CAPITATION,2103225837,5001000049
03.03.2021,DSG,CRAWFORD PRIMARY SCHOOL,"11,885.00",MATERNITY COVER,SCHOOLS CAPITATION,2103225838,5001000024
03.03.2021,DSG,SOUTHWARK PARK PRIMARY SCHOOL,"13,010.00",MATERNITY COVER,SCHOOLS CAPITATION,2103225839,5001000062
03.03.2021,DSG,ST FRANCIS'S RC PRIMARY SCHOOL,"11,282.00",MATERNITY COVER,SCHOOLS CAPITATION,2103225840,5001000067
03.03.2021,DSG,FLEET TUTORS,315.00,VIRTUAL SCHOOL PP,EXTERNAL AGENCIES AND BODIES,5902458349,1000044820
03.03.2021,DSG,FLEET TUTORS,"3,465.00",VIRTUAL SCHOOL PP,EXTERNAL AGENCIES AND BODIES,5902458345,1000044820
03.03.2021,DSG,FLEET TUTORS,"5,962.50",VIRTUAL SCHOOL PP,EXTERNAL AGENCIES AND BODIES,5902458344,1000044820
03.03.2021,DSG,PROSPERO RECRUITMENT LTD,"4,635.00",VIRTUAL SCHOOL PP,EXTERNAL AGENCIES AND BODIES,5902458385,1000082492
03.03.2021,DSG,PROSPERO RECRUITMENT LTD,"5,040.00",VIRTUAL SCHOOL PP,EXTERNAL AGENCIES AND BODIES,5902458383,1000082492
03.03.2021,DSG,LEARN SOLUTIONS LTD,"1,808.00",VIRTUAL SCHOOL PP,EXTERNAL AGENCIES AND BODIES,5902458434,1000086339
03.03.2021,DSG,LEARN SOLUTIONS LTD,"1,812.00",VIRTUAL SCHOOL PP,EXTERNAL AGENCIES AND BODIES,5902458438,1000086339
03.03.2021,EDUCATION,GUARANTEED TRAINING LTD,"1,440.00",EY & PUPIL TRACKING,TRAINING,5902458386,1000066767
03.03.2021,ENV & LEIS,CONWAY AECOM LTD,"1,671.29",CAPITAL PS (LEISURE),CONSTR'N SUB CONTRACT - NON CERTIFICATED,5902458257,1000071205
03.03.2021,ENV & LEIS,LSBOROUGH & SCOVELL T&RA,265.29,CAPITAL PS (LEISURE),CONSTRUCTION FEES - ARCHITECT,5902458399,1000066888
03.03.2021,ENV & LEIS,BELL BRUSH COMPANY,706.50,MANAGEMENT TEAM,MATERIALS,5902458404,1259776
03.03.2021,ENVIRONMENT AND LEISURE,CONWAY AECOM LTD,"9,873.43",CAPITAL PS (LEISURE),CONSTR'N SUB CONTRACT - NON CERTIFICATED,5902458446,1000071205
03.03.2021,ENVIRONMENT AND LEISURE,F M CONWAY LTD,"132,262.35",CAPITAL PS (LEISURE),CONSTRUCTION,2103223613,4001384
03.03.2021,ENVIRONMENT AND LEISURE,P D CONSTRUCTION LTD,"1,480.00",CAPITAL PS (LEISURE),CONSTRUCTION,5902458252,1000000390
03.03.2021,ENVIRONMENT AND LEISURE,TRANSPORT FOR LONDON,"3,975.49",CAPITAL PS (LEISURE),CONSTRUCTION FEES  - EXTERNAL,5902458435,1000023986
03.03.2021,ENVIRONMENT AND LEISURE,JONATHAN COOK LANDSCAPE ARCHITECTS,"2,200.00",CAPITAL PS (LEISURE),CONSTRUCTION FEES  - EXTERNAL,5902458392,1000081576
03.03.2021,ENVIRONMENT AND LEISURE,CGA CONSULTING LTD,"1,997.00",CAPITAL PS (LEISURE),CONSTRUCTION SITE COSTS,5902458249,1000086085
03.03.2021,ENVIRONMENT AND LEISURE,BIBLIOTHECA LTD,"1,250.00",CAPITAL PS (REGEN),ICT ACQUISITION,5902458264,1000069536
03.03.2021,ENVIRONMENT AND LEISURE,BIBLIOTHECA LTD,"4,495.00",CAPITAL PS (REGEN),ICT ACQUISITION,5902458271,1000069536
03.03.2021,ENVIRONMENT AND LEISURE,BIBLIOTHECA LTD,"4,995.00",CAPITAL PS (REGEN),ICT ACQUISITION,5902458264,1000069536
03.03.2021,ENVIRONMENT AND LEISURE,PETERS LIMITED,480.00,CAPITAL PS (REGEN),ICT ACQUISITION,5902458293,1000085669
03.03.2021,ENVIRONMENT DIRECTORATE,TRANSPORT FOR LONDON,"5,790.00",COMMERCIAL VEH CTRL A/C,CONGESTION CHARGE,5902458314,1000023986
03.03.2021,ENVIRONMENT DIRECTORATE,ACCESS HIRE NATIONWIDE LTD,919.23,COMMERCIAL VEH CTRL A/C,HIRED VEHICLES,5902458321,1000048527
03.03.2021,ENVIRONMENT DIRECTORATE,E. H. ROBERTS - PENET GROUP LTD,400.00,COMMERCIAL VEH CTRL A/C,HIRED VEHICLES,5902458312,1000082787
03.03.2021,ENVIRONMENT DIRECTORATE,E. H. ROBERTS - PENET GROUP LTD,798.00,COMMERCIAL VEH CTRL A/C,HIRED VEHICLES,5902458315,1000082787
03.03.2021,ENVIRONMENT DIRECTORATE,E. H. ROBERTS - PENET GROUP LTD,"1,575.00",COMMERCIAL VEH CTRL A/C,HIRED VEHICLES,5902458317,1000082787
03.03.2021,ENVIRONMENT DIRECTORATE,SHELL UK OIL PRODUCTS LTD,361.99,COMMERCIAL VEH CTRL A/C,VEHICLE FUEL,5902458256,1000081254
03.03.2021,ENVIRONMENT DIRECTORATE,SHELL UK OIL PRODUCTS LTD,604.11,COMMERCIAL VEH CTRL A/C,VEHICLE FUEL,5902458263,1000081254
03.03.2021,ENVIRONMENT DIRECTORATE,SHELL UK OIL PRODUCTS LTD,"1,718.51",COMMERCIAL VEH CTRL A/C,VEHICLE FUEL,5902458265,1000081254
03.03.2021,ENVIRONMENT DIRECTORATE,M H COACHWORKS & SONS LTD,440.24,COMMERCIAL VEH CTRL A/C,VEHICLE REPAIRS & MAINTENANCE,5902458243,1000033495
03.03.2021,ENVIRONMENT DIRECTORATE,QUARTERMAN WINDSCREENS LTD,462.81,FLEET INSURANCE WORKS,TRANSPORT INSURANCE COSTS,5902458299,1043709
03.03.2021,ENVIRONMENT DIRECTORATE,QUARTERMAN WINDSCREENS LTD,473.75,FLEET INSURANCE WORKS,TRANSPORT INSURANCE COSTS,5902458297,1043709
03.03.2021,ENVIRONMENT DIRECTORATE,M H COACHWORKS & SONS LTD,260.07,FLEET INSURANCE WORKS,TRANSPORT INSURANCE COSTS,5902458379,1000033495
03.03.2021,ENVIRONMENT DIRECTORATE,M H COACHWORKS & SONS LTD,408.09,FLEET INSURANCE WORKS,TRANSPORT INSURANCE COSTS,5902458375,1000033495
03.03.2021,ENVIRONMENT DIRECTORATE,M H COACHWORKS & SONS LTD,603.75,FLEET INSURANCE WORKS,TRANSPORT INSURANCE COSTS,5902458306,1000033495
03.03.2021,ENVIRONMENT DIRECTORATE,M H COACHWORKS & SONS LTD,826.20,FLEET INSURANCE WORKS,TRANSPORT INSURANCE COSTS,5902458354,1000033495
03.03.2021,ENVIRONMENT DIRECTORATE,M H COACHWORKS & SONS LTD,935.46,FLEET INSURANCE WORKS,TRANSPORT INSURANCE COSTS,5902458374,1000033495
03.03.2021,ENVIRONMENT DIRECTORATE,M H COACHWORKS & SONS LTD,964.15,FLEET INSURANCE WORKS,TRANSPORT INSURANCE COSTS,5902458372,1000033495
03.03.2021,ENVIRONMENT DIRECTORATE,M H COACHWORKS & SONS LTD,"1,037.15",FLEET INSURANCE WORKS,TRANSPORT INSURANCE COSTS,5902458362,1000033495
03.03.2021,ENVIRONMENT DIRECTORATE,M H COACHWORKS & SONS LTD,"1,065.13",FLEET INSURANCE WORKS,TRANSPORT INSURANCE COSTS,5902458359,1000033495
03.03.2021,ENVIRONMENT DIRECTORATE,M H COACHWORKS & SONS LTD,"1,122.00",FLEET INSURANCE WORKS,TRANSPORT INSURANCE COSTS,5902458368,1000033495
03.03.2021,ENVIRONMENT DIRECTORATE,M H COACHWORKS & SONS LTD,"1,133.00",FLEET INSURANCE WORKS,TRANSPORT INSURANCE COSTS,5902458357,1000033495
03.03.2021,ENVIRONMENT DIRECTORATE,M H COACHWORKS & SONS LTD,"1,158.57",FLEET INSURANCE WORKS,TRANSPORT INSURANCE COSTS,5902458360,1000033495
03.03.2021,ENVIRONMENT DIRECTORATE,M H COACHWORKS & SONS LTD,"1,225.37",FLEET INSURANCE WORKS,TRANSPORT INSURANCE COSTS,5902458364,1000033495
03.03.2021,ENVIRONMENT DIRECTORATE,M H COACHWORKS & SONS LTD,"1,231.25",FLEET INSURANCE WORKS,TRANSPORT INSURANCE COSTS,5902458307,1000033495
03.03.2021,ENVIRONMENT DIRECTORATE,M H COACHWORKS & SONS LTD,"1,317.40",FLEET INSURANCE WORKS,TRANSPORT INSURANCE COSTS,5902458309,1000033495
03.03.2021,ENVIRONMENT DIRECTORATE,M H COACHWORKS & SONS LTD,"1,464.62",FLEET INSURANCE WORKS,TRANSPORT INSURANCE COSTS,5902458380,1000033495
03.03.2021,ENVIRONMENT DIRECTORATE,M H COACHWORKS & SONS LTD,"1,565.33",FLEET INSURANCE WORKS,TRANSPORT INSURANCE COSTS,5902458365,1000033495
03.03.2021,ENVIRONMENT DIRECTORATE,M H COACHWORKS & SONS LTD,"1,631.71",FLEET INSURANCE WORKS,TRANSPORT INSURANCE COSTS,5902458356,1000033495
03.03.2021,ENVIRONMENT DIRECTORATE,M H COACHWORKS & SONS LTD,"1,700.91",FLEET INSURANCE WORKS,TRANSPORT INSURANCE COSTS,5902458305,1000033495
03.03.2021,ENVIRONMENT DIRECTORATE,M H COACHWORKS & SONS LTD,"1,705.16",FLEET INSURANCE WORKS,TRANSPORT INSURANCE COSTS,5902458308,1000033495
03.03.2021,ENVIRONMENT DIRECTORATE,M H COACHWORKS & SONS LTD,"2,403.49",FLEET INSURANCE WORKS,TRANSPORT INSURANCE COSTS,5902458289,1000033495
03.03.2021,ENVIRONMENT DIRECTORATE,M H COACHWORKS & SONS LTD,"2,523.70",FLEET INSURANCE WORKS,TRANSPORT INSURANCE COSTS,5902458367,1000033495
03.03.2021,ENVIRONMENT DIRECTORATE,M H COACHWORKS & SONS LTD,"3,034.64",FLEET INSURANCE WORKS,TRANSPORT INSURANCE COSTS,5902458285,1000033495
03.03.2021,ENVIRONMENT DIRECTORATE,M H COACHWORKS & SONS LTD,"3,043.68",FLEET INSURANCE WORKS,TRANSPORT INSURANCE COSTS,5902458291,1000033495
03.03.2021,ENVIRONMENT DIRECTORATE,M H COACHWORKS & SONS LTD,"6,169.98",FLEET INSURANCE WORKS,TRANSPORT INSURANCE COSTS,5902458287,1000033495
03.03.2021,ENVIRONMENT DIRECTORATE,CONFIRM SOLUTIONS LIMITED,948.00,HIGHWAY MAINTENANCE OVERHEADS,TELEPHONES (MOBILES),5902458316,1000086356
03.03.2021,ENVIRONMENT DIRECTORATE,GREENHAM TRADING LTD,302.51,NON HOUSING GROUNDS,MATERIALS,5902458441,1000006610
03.03.2021,ENVIRONMENT DIRECTORATE,J C DECAUX UK LTD,"13,406.40",PUBLIC CONVENIENCES,OTHER CONTRACTORS,5902458394,1000056107
03.03.2021,ENVIRONMENT DIRECTORATE,J C DECAUX UK LTD,"21,865.20",PUBLIC CONVENIENCES,OTHER CONTRACTORS,5902458393,1000056107
03.03.2021,F & C S EXCLUDING CORPORATE BUDGETS,REDACTED PERSONAL DATA,500.00,SESS,OTHER PAYMENTS FOR CLIENTS,REDACTED,REDACTED
03.03.2021,F & C S EXCLUDING CORPORATE BUDGETS,REDACTED PERSONAL DATA,500.00,SESS,OTHER PAYMENTS FOR CLIENTS,REDACTED,REDACTED
03.03.2021,HOUSING,BRIDGEWATER ROOFING CONTRACTORS LTD,"125,366.97",BRC,I-WORLD CONTRACTORS HOLDING ACCOUNT,2103225841,3000001482
03.03.2021,HOUSING HRA,C&C BUILDERS LTD,"3,855.00",CAPITAL PS (HRA),CONST'N MAIN CONTRACT - NON CERTIFICATED,2103225836,3000001986
03.03.2021,HOUSING HRA,CALFORD SEADEN LLP,"19,600.00",CAPITAL PS (HRA),CONSTRUCTION FEES,5902458390,1061592
03.03.2021,HOUSING HRA,CALFORD SEADEN LLP,"19,600.00",CAPITAL PS (HRA),CONSTRUCTION FEES,5902458389,1061592
03.03.2021,HOUSING HRA,CALFORD SEADEN LLP,588.00,CAPITAL PS (HRA),CONSTRUCTION FEES  - EXTERNAL,5902458310,1061592
03.03.2021,HOUSING HRA,ROBINSON LOW FRANCIS LLP,"3,603.75",CAPITAL PS (HRA),CONSTRUCTION FEES  - EXTERNAL,5902458279,1000025405
03.03.2021,HOUSING HRA,ROBINSON LOW FRANCIS LLP,"4,482.51",CAPITAL PS (HRA),CONSTRUCTION FEES  - EXTERNAL,5902458282,1000025405
03.03.2021,HUMAN RESOURCES,HALFORDS LTD,833.33,BIKE SCHEME,OTHER EMPLOYEE EXPENSES,5902458302,1000041969
03.03.2021,LEISURE DIRECTORATE,INFINITY NETWORKS LTD,681.00,CAMBERWELL LIBRARY,COMMS & COMPUTING CONTRACT CHARGES,5902458304,1000035571
03.03.2021,LEISURE DIRECTORATE,INFINITY NETWORKS LTD,"3,079.00",CANADA WATER LIBRARY,EQUIPMENT PURCHASE & REPAIR,5902458296,1000035571
03.03.2021,LEISURE DIRECTORATE,KENT COUNTY COUNCIL - LASER,"12,436.15",SDM BUDGET,ELECTRICITY,5902458423,1000012926
03.03.2021,LEISURE DIRECTORATE,SP SERVICES (UK) LTD,299.25,SDM BUDGET,EQUIPMENT PURCHASE & REPAIR,5902458300,1000044716
03.03.2021,MODERNISATION HGF,CLIVE ATKINS CONSULTANCY LTD,"3,744.00",CFM OPERATIONAL BUDGET,TRAINING,5902458431,1000076777
03.03.2021,MODERNISATION HGF,GIVEGOOD LIMITED T/A HB PUBLICATIONS AND TRAINING UNTERNATIONAL,500.00,CORPORATE TRAINING BUDGETS,TRAINING,5902458278,1000084122
03.03.2021,PUBLIC HEALTH,NHS SOUTH EAST LONDON CCG,"316,835.00",5-19 PUBLIC HEALTH,EXTERNAL AGENCIES AND BODIES,5902458292,1000085592
03.03.2021,PUBLIC HEALTH,NHS SOUTH EAST LONDON CCG,"22,458.25",HEALTHY WEIGHT,EXTERNAL AGENCIES AND BODIES,5902458292,1000085592
03.03.2021,PUBLIC HEALTH,NHS SOUTH EAST LONDON CCG,"1,561,255.98",PH 0-5 SERVICES,EXTERNAL AGENCIES AND BODIES,5902458292,1000085592
03.03.2021,RESIDENT SERVICES,CHESHIRE ESTATE AND LEGAL LTD,"1,250.00",TA ESTATE VOIDS,LEGAL FEES & COURT COSTS,5902458420,1000081908
03.03.2021,RESIDENT SERVICES,CROWN HOUSING LTD,"1,410.50",TA PLACEMENTS,EXTERNAL AGENCIES AND BODIES,5902458358,1000075070
03.03.2021,RESIDENT SERVICES,APEX HOUSING SOLUTIONS LTD,"1,705.00",TA PLACEMENTS,EXTERNAL AGENCIES AND BODIES,5902458425,1000079786
03.03.2021,RESIDENT SERVICES,APEX HOUSING SOLUTIONS LTD,"1,891.00",TA PLACEMENTS,EXTERNAL AGENCIES AND BODIES,5902458422,1000079786
03.03.2021,RESIDENT SERVICES,APEX HOUSING SOLUTIONS LTD,"2,172.65",TA PLACEMENTS,EXTERNAL AGENCIES AND BODIES,5902458430,1000079786
03.03.2021,SBS SUPPORT,T4 INTELLIGENT INFRASTRUCTURE,"2,013.69",SBS - HOLDING ACCOUNT,OTHER CONTRACTORS,2103225854,3000001985
03.03.2021,SBS SUPPORT,T4 INTELLIGENT INFRASTRUCTURE,"3,548.21",SBS - HOLDING ACCOUNT,OTHER CONTRACTORS,2103225855,3000001985
03.03.2021,SBS SUPPORT,T4 INTELLIGENT INFRASTRUCTURE,"3,706.60",SBS - HOLDING ACCOUNT,OTHER CONTRACTORS,2103225848,3000001985
03.03.2021,SBS SUPPORT,T4 INTELLIGENT INFRASTRUCTURE,"4,901.57",SBS - HOLDING ACCOUNT,OTHER CONTRACTORS,2103225853,3000001985
03.03.2021,SBS SUPPORT,T4 INTELLIGENT INFRASTRUCTURE,"5,231.60",SBS - HOLDING ACCOUNT,OTHER CONTRACTORS,2103225847,3000001985
03.03.2021,SBS SUPPORT,T4 INTELLIGENT INFRASTRUCTURE,"5,952.28",SBS - HOLDING ACCOUNT,OTHER CONTRACTORS,2103225851,3000001985
03.03.2021,SBS SUPPORT,T4 INTELLIGENT INFRASTRUCTURE,"7,889.74",SBS - HOLDING ACCOUNT,OTHER CONTRACTORS,2103225852,3000001985
03.03.2021,SBS SUPPORT,T4 INTELLIGENT INFRASTRUCTURE,"15,556.23",SBS - HOLDING ACCOUNT,OTHER CONTRACTORS,2103225846,3000001985
03.03.2021,SOUTHWARK BUILDING SERVICES,CALLOW MASTER LOCKSMITHS,608.09,STORES/LOGISTICS,CREDITORS -GR/IR CLEARING ACCOUNT,5902458382,11179552
04.03.2021,ADULT SOCIAL CARE,REDACTED PERSONAL DATA,400.00,APPOINTEESHIPS,OTHER PAYMENTS FOR CLIENTS,REDACTED,REDACTED
04.03.2021,ADULT SOCIAL CARE,REDACTED PERSONAL DATA,600.00,APPOINTEESHIPS,OTHER PAYMENTS FOR CLIENTS,REDACTED,REDACTED
04.03.2021,ADULT SOCIAL CARE,JAMES BLEWETT TRAINING & CONSULTANCY,"1,300.00",ASW - PROFESSIONAL DEVELOPMENT,TRAINING,5902458486,1000024008
04.03.2021,ADULT SOCIAL CARE,MISSION CARE,"9,441.45",DIR OF ASC,EXTERNAL AGENCIES AND BODIES,5902458326,11059369
04.03.2021,ADULT SOCIAL CARE,SAFFRONLAND HOMES,913.69,DIR OF ASC,EXTERNAL AGENCIES AND BODIES,5902458363,11172608
04.03.2021,ADULT SOCIAL CARE,ANCHOR TRUST,"68,222.10",DIR OF ASC,EXTERNAL AGENCIES AND BODIES,5902458329,11257534
04.03.2021,ADULT SOCIAL CARE,HC-ONE LTD (TOWER BRIDGE CARE HOME),"38,984.07",DIR OF ASC,EXTERNAL AGENCIES AND BODIES,5902458523,1000067670
04.03.2021,ADULT SOCIAL CARE,SAFFRONLAND HOMES,"1,827.38",DIR OF ASC,EXTERNAL AGENCIES AND BODIES,5902458331,1000072153
04.03.2021,ADULT SOCIAL CARE,LONDON CYRENIANS HOUSING LTD,815.00,DIR OF ASC,EXTERNAL AGENCIES AND BODIES,5902458464,1000078600
04.03.2021,ADULT SOCIAL CARE,LONDON CARE LTD,"48,811.88",EXTRA CARE CONTRACT,HOMECARE - C&V,5902458609,1000003398
04.03.2021,ADULT SOCIAL CARE,SURREY DOCKS FARM PROVIDENT SOCIETY,480.00,LD LTS 18-64,DAYCARE,2103226043,1000000958
04.03.2021,ADULT SOCIAL CARE,SURREY DOCKS FARM PROVIDENT SOCIETY,487.50,LD LTS 18-64,DAYCARE,2103226045,1000000958
04.03.2021,ADULT SOCIAL CARE,SURREY DOCKS FARM PROVIDENT SOCIETY,720.00,LD LTS 18-64,DAYCARE,2103226047,1000000958
04.03.2021,ADULT SOCIAL CARE,NATIONAL AUTISTIC SOCIETY CARE PACK,727.86,LD LTS 18-64,DAYCARE,2103225902,1000020538
04.03.2021,ADULT SOCIAL CARE,NATIONAL AUTISTIC SOCIETY CARE PACK,"1,455.72",LD LTS 18-64,DAYCARE,2103225901,1000020538
04.03.2021,ADULT SOCIAL CARE,NATIONAL AUTISTIC SOCIETY CARE PACK,"3,285.60",LD LTS 18-64,DAYCARE,2103225904,1000020538
04.03.2021,ADULT SOCIAL CARE,NATIONAL AUTISTIC SOCIETY CARE PACK,"3,614.16",LD LTS 18-64,DAYCARE,2103225905,1000020538
04.03.2021,ADULT SOCIAL CARE,SAGECARE LTD,"1,749.84",LD STS 18-64,HOMECARE - IC,2103225995,1000080924
04.03.2021,ADULT SOCIAL CARE,BLISSETT CARE LTD,487.76,MEM LTS 65+,HOMECARE - C&V,2103225985,1000042627
04.03.2021,ADULT SOCIAL CARE,BLISSETT CARE LTD,802.36,PHY LTS 18-64,HOMECARE - C&V,2103226057,1000042627
04.03.2021,ADULT SOCIAL CARE,BLISSETT CARE LTD,802.36,PHY LTS 18-64,HOMECARE - C&V,2103226055,1000042627
04.03.2021,ADULT SOCIAL CARE,SAGECARE LTD,702.66,PHY LTS 18-64,HOMECARE - C&V,2103226027,1000080924
04.03.2021,ADULT SOCIAL CARE,SAGECARE LTD,845.93,PHY LTS 18-64,HOMECARE - C&V,2103226003,1000080924
04.03.2021,ADULT SOCIAL CARE,SAGECARE LTD,854.86,PHY LTS 18-64,HOMECARE - C&V,2103226029,1000080924
04.03.2021,ADULT SOCIAL CARE,SAGECARE LTD,"1,248.66",PHY LTS 18-64,HOMECARE - C&V,2103226001,1000080924
04.03.2021,ADULT SOCIAL CARE,BLISSETT CARE LTD,321.12,PHY LTS 65+,HOMECARE - C&V,2103226059,1000042627
04.03.2021,ADULT SOCIAL CARE,BLISSETT CARE LTD,794.22,PHY LTS 65+,HOMECARE - C&V,2103225979,1000042627
04.03.2021,ADULT SOCIAL CARE,BLISSETT CARE LTD,"2,470.84",PHY LTS 65+,HOMECARE - C&V,2103226061,1000042627
04.03.2021,ADULT SOCIAL CARE,SAGECARE LTD,993.09,PHY LTS 65+,HOMECARE - C&V,2103226037,1000080924
04.03.2021,ADULT SOCIAL CARE,SAGECARE LTD,"1,042.68",PHY LTS 65+,HOMECARE - C&V,2103225993,1000080924
04.03.2021,ADULT SOCIAL CARE,ANCHOR TRUST,"544,233.19",PHY LTS 65+,RESIDENTIAL CARE,5902458648,11257534
04.03.2021,ADULT SOCIAL CARE,SAGECARE LTD,268.60,PHY STS 18-64,HOMECARE - IC,2103226013,1000080924
04.03.2021,ADULT SOCIAL CARE,SAGECARE LTD,729.54,PHY STS 18-64,HOMECARE - IC,2103225991,1000080924
04.03.2021,ADULT SOCIAL CARE,SAGECARE LTD,774.35,PHY STS 18-64,HOMECARE - IC,2103225997,1000080924
04.03.2021,ADULT SOCIAL CARE,SAGECARE LTD,639.93,PHY STS 65+,HOMECARE - IC,2103226031,1000080924
04.03.2021,ADULT SOCIAL CARE,METROPOLITAN HOUSING TRUST LTD,"69,045.00",S75 SUPHSG SCH LBS LEAD,EXTERNAL AGENCIES AND BODIES,5902458645,1000047547
04.03.2021,ADULT SOCIAL CARE,SURREY DOCKS FARM PROVIDENT SOCIETY,500.00,SOCIAL ISOLATION,DAYCARE,2103226041,1000000958
04.03.2021,ASSET MANAGEMENT,PARS LTD,"2,630.00",ADAPTATIONS,BUILDING R&M,5902458577,1000061276
04.03.2021,CENTRAL FUNCTIONS,STANBURY BUILDING SERVICES LTD,495.00,COMMERCIAL PROPERTIES,BUILDING R&M,5902457995,1000078207
04.03.2021,CENTRAL FUNCTIONS,STANBURY BUILDING SERVICES LTD,"1,395.00",COMMERCIAL PROPERTIES,BUILDING R&M,5902458076,1000078207
04.03.2021,CENTRAL FUNCTIONS,KENT COUNTY COUNCIL - LASER,409.88,HEATING ACCOUNT,ELECTRICITY,2103226162,1000012926
04.03.2021,CENTRAL FUNCTIONS,KENT COUNTY COUNCIL - LASER,"1,075.79",HEATING ACCOUNT,ELECTRICITY,2103226161,1000012926
04.03.2021,CENTRAL FUNCTIONS,KENT COUNTY COUNCIL - LASER,"1,292.43",HEATING ACCOUNT,ELECTRICITY,2103226164,1000012926
04.03.2021,CENTRAL FUNCTIONS,KENT COUNTY COUNCIL - LASER,"1,578.66",HEATING ACCOUNT,GAS,2103226165,1000012926
04.03.2021,CENTRAL FUNCTIONS,1ST ACE SECURITY LTD,"23,016.00",LAKANAL (TENANCY),OTHER R&M,5902458504,1000006992
04.03.2021,CHIEF EXECUTIVE,HAYATSU ARCHITECTS LTD,"4,137.40",CAPITAL PS (REGEN),CONSTRUCTION FEES,5902458421,1000082843
04.03.2021,CHIEF EXECUTIVE,BRAC CONTRACTS,"4,696.79",CAPITAL PS (REGEN),CONSTRUCTION FEES - ARCHITECT,2103226482,3000002025
04.03.2021,CHIEF EXECUTIVE'S OFFICE,ST GILES TRUST,"13,794.26",CHIEF EXECUTIVE'S OFFICE,EXTERNAL AGENCIES AND BODIES,5902458497,1013828
04.03.2021,CHIEF EXECUTIVE'S OFFICE,ST GILES TRUST,"26,088.96",CHIEF EXECUTIVE'S OFFICE,EXTERNAL AGENCIES AND BODIES,5902458508,1013828
04.03.2021,CHIEF EXECUTIVE'S OFFICE,ST GILES TRUST,"26,826.60",CHIEF EXECUTIVE'S OFFICE,EXTERNAL AGENCIES AND BODIES,5902458502,1013828
04.03.2021,CHILDREN AND ADULT,SHARPE PRITCHARD LLP,938.00,CAPITAL PS (EDUCATION),CONSTRUCTION FEES - LEGAL,5902458451,1790085
04.03.2021,CHILDREN AND FAMILIES,THE SUPPORT-ED PROJECT LTD,652.50,AI TEAMS E-G & KFT,OTHER PAYMENTS FOR CLIENTS,5902458526,1000086359
04.03.2021,CHILDREN AND FAMILIES,THE SUPPORT-ED PROJECT LTD,725.00,AI TEAMS E-G & KFT,OTHER PAYMENTS FOR CLIENTS,5902458529,1000086359
04.03.2021,CHILDREN AND FAMILIES,THE SUPPORT-ED PROJECT LTD,870.00,AI TEAMS E-G & KFT,OTHER PAYMENTS FOR CLIENTS,5902458527,1000086359
04.03.2021,CHILDREN AND FAMILIES,INTERPRETING DIRECT CO (UK) LTD,"12,456.00",CENTRAL SUPPORT,INTERPRETING SERVICES,5902458566,1000070133
04.03.2021,CHILDREN AND FAMILIES,NETWORK RECRUITMENT SOLUTIONS,300.00,CONTACT SERVICE,OTHER PAYMENTS FOR CLIENTS,5902458550,1000071241
04.03.2021,CHILDREN AND FAMILIES,NETWORK RECRUITMENT SOLUTIONS,354.50,CONTACT SERVICE,OTHER PAYMENTS FOR CLIENTS,5902458552,1000071241
04.03.2021,CHILDREN AND FAMILIES,NETWORK RECRUITMENT SOLUTIONS,525.00,CONTACT SERVICE,OTHER PAYMENTS FOR CLIENTS,5902458544,1000071241
04.03.2021,CHILDREN AND FAMILIES,NETWORK RECRUITMENT SOLUTIONS,600.00,CONTACT SERVICE,OTHER PAYMENTS FOR CLIENTS,5902458543,1000071241
04.03.2021,CHILDREN AND FAMILIES,NETWORK RECRUITMENT SOLUTIONS,675.00,CONTACT SERVICE,OTHER PAYMENTS FOR CLIENTS,5902458547,1000071241
04.03.2021,CHILDREN AND FAMILIES,NETWORK RECRUITMENT SOLUTIONS,921.60,CONTACT SERVICE,OTHER PAYMENTS FOR CLIENTS,5902458553,1000071241
04.03.2021,CHILDREN AND FAMILIES,PURPLE PEBBLES(CHILD CARE) SERVICES,"1,700.00",EDGE OF CARE DECIS�S,OTHER PAYMENTS FOR CLIENTS,2103225977,1000070705
04.03.2021,CHILDREN AND FAMILIES,WILLISPALMER,885.50,FAMILY ASSESS RESID,RESIDENTIAL CARE,5902458536,1000056409
04.03.2021,CHILDREN AND FAMILIES,YOUNG FUTURES,"-1,463.00",FAMILY ASSESS RESID,RESIDENTIAL CARE,2103225975,1000059563
04.03.2021,CHILDREN AND FAMILIES,YOUNG FUTURES,"2,520.00",FAMILY ASSESS RESID,RESIDENTIAL CARE,2103225973,1000059563
04.03.2021,CHILDREN AND FAMILIES,OPENMINDS SOCIAL CARE,400.00,FE SUPPORT,OTHER PAYMENTS FOR CLIENTS,5902458524,1000085800
04.03.2021,CHILDREN AND FAMILIES,REDACTED PERSONAL DATA,"2,483.57",FRIENDS &FAMILY FOST,PAYMENTS TO CARERS,REDACTED,REDACTED
04.03.2021,CHILDREN AND FAMILIES,REDACTED PERSONAL DATA,"2,483.57",FRIENDS &FAMILY FOST,PAYMENTS TO CARERS,REDACTED,REDACTED
04.03.2021,CHILDREN AND FAMILIES,SOUTH LONDON & MAUDSLEY HOSPITAL,"5,000.00",MGMT & PARENTING,EXTERNAL AGENCIES AND BODIES,5902458530,1000013096
04.03.2021,CHILDREN AND FAMILIES,LUCRE RECRUITMENT SOLUTIONS,350.00,PAUSE,PROFESSIONAL FEES,5902458034,1000084506
04.03.2021,CHILDREN AND FAMILIES,PURPLE PEBBLES(CHILD CARE) SERVICES,"-2,263.82",SEMI-IND CARELEAVERS,COSTS RECOVERED,2103226151,1000070705
04.03.2021,CHILDREN AND FAMILIES,PURPLE PEBBLES(CHILD CARE) SERVICES,"-1,789.98",SEMI-IND CARELEAVERS,COSTS RECOVERED,2103226150,1000070705
04.03.2021,CHILDREN AND FAMILIES,PURPLE PEBBLES(CHILD CARE) SERVICES,"-1,592.74",SEMI-IND CARELEAVERS,COSTS RECOVERED,2103226152,1000070705
04.03.2021,CHILDREN AND FAMILIES,PURPLE PEBBLES(CHILD CARE) SERVICES,-894.99,SEMI-IND CARELEAVERS,COSTS RECOVERED,2103226153,1000070705
04.03.2021,CHILDREN AND FAMILIES,PURPLE PEBBLES(CHILD CARE) SERVICES,-875.00,SEMI-IND CARELEAVERS,COSTS RECOVERED,2103226154,1000070705
04.03.2021,CHILDREN AND FAMILIES,PURPLE PEBBLES(CHILD CARE) SERVICES,-516.52,SEMI-IND CARELEAVERS,COSTS RECOVERED,2103226149,1000070705
04.03.2021,CHILDREN AND FAMILIES,PURPLE PEBBLES(CHILD CARE) SERVICES,"1,540.00",SEMI-IND CARELEAVERS,EXTERNAL AGENCIES AND BODIES,2103225906,1000070705
04.03.2021,CHILDREN AND FAMILIES,PURPLE PEBBLES(CHILD CARE) SERVICES,"1,585.71",SEMI-IND CARELEAVERS,EXTERNAL AGENCIES AND BODIES,2103225912,1000070705
04.03.2021,CHILDREN AND FAMILIES,PURPLE PEBBLES(CHILD CARE) SERVICES,"1,800.00",SEMI-IND CARELEAVERS,EXTERNAL AGENCIES AND BODIES,2103225910,1000070705
04.03.2021,CHILDREN AND FAMILIES,PURPLE PEBBLES(CHILD CARE) SERVICES,"1,900.00",SEMI-IND CARELEAVERS,EXTERNAL AGENCIES AND BODIES,2103225925,1000070705
04.03.2021,CHILDREN AND FAMILIES,PURPLE PEBBLES(CHILD CARE) SERVICES,"2,200.00",SEMI-IND CARELEAVERS,EXTERNAL AGENCIES AND BODIES,2103225929,1000070705
04.03.2021,CHILDREN AND FAMILIES,PURPLE PEBBLES(CHILD CARE) SERVICES,"2,240.00",SEMI-IND CARELEAVERS,EXTERNAL AGENCIES AND BODIES,2103225943,1000070705
04.03.2021,CHILDREN AND FAMILIES,PURPLE PEBBLES(CHILD CARE) SERVICES,"2,340.00",SEMI-IND CARELEAVERS,EXTERNAL AGENCIES AND BODIES,2103225911,1000070705
04.03.2021,CHILDREN AND FAMILIES,NETPEX LTD CORPORATE SERVICES,"2,299.98",SEMI-IND CARELEAVERS,EXTERNAL AGENCIES AND BODIES,2103226081,1000076073
04.03.2021,CHILDREN AND FAMILIES,NETPEX LTD CORPORATE SERVICES,"2,500.12",SEMI-IND CARELEAVERS,EXTERNAL AGENCIES AND BODIES,2103226085,1000076073
04.03.2021,CHILDREN AND FAMILIES,NETPEX LTD CORPORATE SERVICES,"2,999.92",SEMI-IND CARELEAVERS,EXTERNAL AGENCIES AND BODIES,2103226075,1000076073
04.03.2021,CHILDREN AND FAMILIES,NETPEX LTD CORPORATE SERVICES,"3,800.16",SEMI-IND CARELEAVERS,EXTERNAL AGENCIES AND BODIES,2103226087,1000076073
04.03.2021,CHILDREN AND FAMILIES,PROJECT FOR THE REGISTRATION OF CHILDREN AS BRITISH CITIZENS,"1,031.20",SEMI-IND CARELEAVERS,EXTERNAL AGENCIES AND BODIES,5902458525,1000086367
04.03.2021,CHILDREN AND FAMILIES,PURPLE PEBBLES(CHILD CARE) SERVICES,"1,760.00",SEMI-IND LAC 16-17,EXTERNAL AGENCIES AND BODIES,2103225971,1000070705
04.03.2021,CHILDREN AND FAMILIES,PURPLE PEBBLES(CHILD CARE) SERVICES,"5,000.00",SEMI-IND LAC 16-17,EXTERNAL AGENCIES AND BODIES,2103225969,1000070705
04.03.2021,CHILDREN AND FAMILIES,RELA SUPPORT SERVICES LTD,"11,980.00",SEMI-IND LAC 16-17,EXTERNAL AGENCIES AND BODIES,2103225963,1000073128
04.03.2021,CHILDREN AND FAMILIES,PURPLE PEBBLES(CHILD CARE) SERVICES,280.00,SEMI-IND LAC 16-17,OTHER PAYMENTS FOR CLIENTS,2103225961,1000070705
04.03.2021,CHILDREN AND FAMILIES,ARC COMMUNITY TRUSTEES,650.00,SPECIAL GUARDIANSHIP,EXTERNAL AGENCIES AND BODIES,5902458468,1000046206
04.03.2021,CHILDREN AND FAMILIES,GREATER LONDON FOSTERING,"2,092.36",STAYPUT- FOST CARERS,EXTERNAL AGENCIES AND BODIES,2103225931,1000029184
04.03.2021,CHILDREN AND FAMILIES,ZENITH CARS LTD,550.00,TEAM A,HIRED VEHICLES,5902458634,1000070570
04.03.2021,CHILDREN AND FAMILIES,ZENITH CARS LTD,"1,050.00",TEAM B,HIRED VEHICLES,5902458634,1000070570
04.03.2021,CHILDREN AND FAMILIES,ALPHA BIOLABORATORIES LEGAL LTD,"2,270.00",TEAM B,OTHER PAYMENTS FOR CLIENTS,5902458513,1000086208
04.03.2021,CHILDREN AND FAMILIES,ZENITH CARS LTD,560.00,TEAM C,HIRED VEHICLES,5902458634,1000070570
04.03.2021,CHILDREN AND FAMILIES,AFRUCA,"3,000.00",TEAM C,RESIDENTIAL CARE,5902458531,1000038382
04.03.2021,CHILDREN AND FAMILIES,LONDON EARLY YEARS FOUNDATION,578.76,TEAM D,OTHER PAYMENTS FOR CLIENTS,5902458532,1000077919
04.03.2021,CHILDREN AND FAMILIES,PURPLE PEBBLES(CHILD CARE) SERVICES,-516.52,UASC CARELEAVERS,COSTS RECOVERED,2103226148,1000070705
04.03.2021,CHILDREN AND FAMILIES,PURPLE PEBBLES(CHILD CARE) SERVICES,"1,440.00",UASC CARELEAVERS,EXTERNAL AGENCIES AND BODIES,2103225907,1000070705
04.03.2021,CHILDREN AND FAMILIES,PURPLE PEBBLES(CHILD CARE) SERVICES,"1,460.00",UASC CARELEAVERS,EXTERNAL AGENCIES AND BODIES,2103225935,1000070705
04.03.2021,CHILDREN AND FAMILIES,PURPLE PEBBLES(CHILD CARE) SERVICES,"1,500.00",UASC CARELEAVERS,EXTERNAL AGENCIES AND BODIES,2103225941,1000070705
04.03.2021,CHILDREN AND FAMILIES,PURPLE PEBBLES(CHILD CARE) SERVICES,"1,580.00",UASC CARELEAVERS,EXTERNAL AGENCIES AND BODIES,2103225921,1000070705
04.03.2021,CHILDREN AND FAMILIES,PURPLE PEBBLES(CHILD CARE) SERVICES,"1,600.00",UASC CARELEAVERS,EXTERNAL AGENCIES AND BODIES,2103225947,1000070705
04.03.2021,CHILDREN AND FAMILIES,PURPLE PEBBLES(CHILD CARE) SERVICES,"1,640.00",UASC CARELEAVERS,EXTERNAL AGENCIES AND BODIES,2103225917,1000070705
04.03.2021,CHILDREN AND FAMILIES,PURPLE PEBBLES(CHILD CARE) SERVICES,"1,700.00",UASC CARELEAVERS,EXTERNAL AGENCIES AND BODIES,2103225913,1000070705
04.03.2021,CHILDREN AND FAMILIES,PURPLE PEBBLES(CHILD CARE) SERVICES,"1,720.00",UASC CARELEAVERS,EXTERNAL AGENCIES AND BODIES,2103225939,1000070705
04.03.2021,CHILDREN AND FAMILIES,PURPLE PEBBLES(CHILD CARE) SERVICES,"1,790.00",UASC CARELEAVERS,EXTERNAL AGENCIES AND BODIES,2103225949,1000070705
04.03.2021,CHILDREN AND FAMILIES,PURPLE PEBBLES(CHILD CARE) SERVICES,"1,800.00",UASC CARELEAVERS,EXTERNAL AGENCIES AND BODIES,2103225909,1000070705
04.03.2021,CHILDREN AND FAMILIES,PURPLE PEBBLES(CHILD CARE) SERVICES,"1,800.00",UASC CARELEAVERS,EXTERNAL AGENCIES AND BODIES,2103225908,1000070705
04.03.2021,CHILDREN AND FAMILIES,PURPLE PEBBLES(CHILD CARE) SERVICES,"1,860.00",UASC CARELEAVERS,EXTERNAL AGENCIES AND BODIES,2103225914,1000070705
04.03.2021,CHILDREN AND FAMILIES,PURPLE PEBBLES(CHILD CARE) SERVICES,"1,890.00",UASC CARELEAVERS,EXTERNAL AGENCIES AND BODIES,2103225923,1000070705
04.03.2021,CHILDREN AND FAMILIES,PURPLE PEBBLES(CHILD CARE) SERVICES,"2,200.00",UASC CARELEAVERS,EXTERNAL AGENCIES AND BODIES,2103225927,1000070705
04.03.2021,CHILDREN AND FAMILIES,NETPEX LTD CORPORATE SERVICES,"3,800.16",UASC CARELEAVERS,EXTERNAL AGENCIES AND BODIES,2103226077,1000076073
04.03.2021,CHILDREN AND FAMILIES,HOLMDENE HOUSING SERVICES,280.00,UASC CARELEAVERS,OTHER PAYMENTS FOR CLIENTS,2103225919,1000058072
04.03.2021,CHILDREN AND FAMILIES,PURPLE PEBBLES(CHILD CARE) SERVICES,280.00,UASC CARELEAVERS,OTHER PAYMENTS FOR CLIENTS,2103225945,1000070705
04.03.2021,CHILDREN AND FAMILIES,PURPLE PEBBLES(CHILD CARE) SERVICES,"1,760.00",UASC LAC 16-17,EXTERNAL AGENCIES AND BODIES,2103225967,1000070705
04.03.2021,CHILDREN AND FAMILIES,PURPLE PEBBLES(CHILD CARE) SERVICES,"1,760.00",UASC LAC 16-17,EXTERNAL AGENCIES AND BODIES,2103225965,1000070705
04.03.2021,CHILDREN AND FAMILIES,PURPLE PEBBLES(CHILD CARE) SERVICES,"1,760.00",UASC LAC 16-17,EXTERNAL AGENCIES AND BODIES,2103225955,1000070705
04.03.2021,CHILDREN AND FAMILIES,PURPLE PEBBLES(CHILD CARE) SERVICES,280.00,UASC LAC 16-17,OTHER PAYMENTS FOR CLIENTS,2103225959,1000070705
04.03.2021,CHILDREN AND FAMILIES,PURPLE PEBBLES(CHILD CARE) SERVICES,280.00,UASC LAC 16-17,OTHER PAYMENTS FOR CLIENTS,2103225953,1000070705
04.03.2021,CHILDREN AND FAMILIES,PURPLE PEBBLES(CHILD CARE) SERVICES,280.00,UASC LAC 16-17,OTHER PAYMENTS FOR CLIENTS,2103225951,1000070705
04.03.2021,COMMUNITIES,S7 CHAUFFEURS LTD,292.50,MAYORAL SUPPORT,HIRED VEHICLES,5902458624,1000075707
04.03.2021,COMMUNITIES,S7 CHAUFFEURS LTD,880.00,MAYORAL SUPPORT,HIRED VEHICLES,5902458623,1000075707
04.03.2021,COMMUNITIES,S7 CHAUFFEURS LTD,"2,222.50",MAYORAL SUPPORT,HIRED VEHICLES,5902458621,1000075707
04.03.2021,COMMUNITIES,FLAMINGO CREATIVE,296.00,MAYORAL SUPPORT,PRINTING,5902458626,1000044711
04.03.2021,COMMUNITIES,FLAMINGO CREATIVE,310.00,MAYORAL SUPPORT,PRINTING,5902458627,1000044711
04.03.2021,COMMUNITIES,SAGECARE LTD,661.11,NO RECOURSE TO PUBLIC FUNDS,HOMECARE - C&V,2103226005,1000080924
04.03.2021,COMMUNITIES,SAGECARE LTD,783.13,NO RECOURSE TO PUBLIC FUNDS,HOMECARE - C&V,2103226011,1000080924
04.03.2021,COMMUNITIES,SAGECARE LTD,859.20,NO RECOURSE TO PUBLIC FUNDS,HOMECARE - C&V,2103226019,1000080924
04.03.2021,COMMUNITIES,SAGECARE LTD,"1,145.60",NO RECOURSE TO PUBLIC FUNDS,HOMECARE - C&V,2103226025,1000080924
04.03.2021,COMMUNITIES,SAGECARE LTD,"1,145.60",NO RECOURSE TO PUBLIC FUNDS,HOMECARE - C&V,2103226009,1000080924
04.03.2021,COMMUNITIES,SAGECARE LTD,"1,709.46",NO RECOURSE TO PUBLIC FUNDS,HOMECARE - C&V,2103225999,1000080924
04.03.2021,COMMUNITIES,BOOTS UK LTD,"1,824.00",PHARMACY SM (INSTEAD OF ADULT SM S75),OTHER CONTRACTORS,2103225872,1000032374
04.03.2021,COMMUNITIES,KRISTAL ENTERPRISES LTD,"1,704.00",PHARMACY SM (INSTEAD OF ADULT SM S75),OTHER CONTRACTORS,2103225877,1000051105
04.03.2021,COMMUNITIES,DP & SP LTD,346.00,PHARMACY SM (INSTEAD OF ADULT SM S75),OTHER CONTRACTORS,2103225874,1000062767
04.03.2021,COMMUNITIES,ST GEORGES HEALTHCARE LTD,"1,188.00",PHARMACY SM (INSTEAD OF ADULT SM S75),OTHER CONTRACTORS,2103225873,1000072195
04.03.2021,COMMUNITIES,AAM PHARMA LTD T/A A R CHEMIST,"2,908.00",PHARMACY SM (INSTEAD OF ADULT SM S75),OTHER CONTRACTORS,2103225871,1000072623
04.03.2021,COMMUNITIES,LLOYDS PHARMACY LTD,500.00,PHARMACY SM (INSTEAD OF ADULT SM S75),OTHER CONTRACTORS,2103225880,1000072662
04.03.2021,COMMUNITIES,LLOYDS PHARMACY LTD,526.00,PHARMACY SM (INSTEAD OF ADULT SM S75),OTHER CONTRACTORS,2103225881,1000072662
04.03.2021,COMMUNITIES,LLOYDS PHARMACY LTD,"1,090.00",PHARMACY SM (INSTEAD OF ADULT SM S75),OTHER CONTRACTORS,2103225879,1000072662
04.03.2021,COMMUNITIES,FLEXIHEALTH LTD,"1,712.00",PHARMACY SM (INSTEAD OF ADULT SM S75),OTHER CONTRACTORS,2103225876,1000072668
04.03.2021,COMMUNITIES,DAY LEWIS - CAMBERWELL,"1,231.00",PHARMACY SM (INSTEAD OF ADULT SM S75),OTHER CONTRACTORS,2103225870,1000072891
04.03.2021,COMMUNITIES,QRYSTAL LTD,"2,036.00",PHARMACY SM (INSTEAD OF ADULT SM S75),OTHER CONTRACTORS,2103225885,1000072892
04.03.2021,COMMUNITIES,SUPERDRUG STORES PLC (CAMBERWELL),"1,176.00",PHARMACY SM (INSTEAD OF ADULT SM S75),OTHER CONTRACTORS,2103225884,1000078628
04.03.2021,COMMUNITIES,K.S.C. 1T LTD,"2,380.00",PHARMACY SM (INSTEAD OF ADULT SM S75),OTHER CONTRACTORS,2103225882,1000081458
04.03.2021,COMMUNITIES,EQUALITEACH C.I.C.,"1,500.00",PREVENT,PROFESSIONAL FEES,5902458611,1000079800
04.03.2021,COMMUNITIES,ACTIVE COMMUNITIES NETWORK LTD,"7,200.00",SOUTHWARK ANTI VIOLENCE UNIT,GRANTS,5902458579,1000057408
04.03.2021,COMMUNITIES,ACTIVE COMMUNITIES NETWORK LTD,"7,200.00",SOUTHWARK ANTI VIOLENCE UNIT,GRANTS,5902458574,1000057408
04.03.2021,COMMUNITIES,ANIMA YOUTH CIC,"2,400.00",SOUTHWARK ANTI VIOLENCE UNIT,GRANTS,5902458338,1000083977
04.03.2021,COMMUNITIES,SILK & MACKMAN SERVICES LTD,"6,785.00",TRA HALLS (REPAIRS),BUILDING R&M,5902458510,1000035282
04.03.2021,CUSTOMER EXPERIENCE HGF,FINEFAIR LTD,466.00,COVID-19 SUPPORT,EXTERNAL AGENCIES AND BODIES,5902458499,1000075570
04.03.2021,CUSTOMER EXPERIENCE HGF,FINEFAIR LTD,"1,000.00",COVID-19 SUPPORT,EXTERNAL AGENCIES AND BODIES,5902458495,1000075570
04.03.2021,CUSTOMER EXPERIENCE HGF,FINEFAIR LTD,"27,900.00",COVID-19 SUPPORT,EXTERNAL AGENCIES AND BODIES,5902458496,1000075570
04.03.2021,CUSTOMER EXPERIENCE HGF,REDACTED PERSONAL DATA,"1,210.56",HOMELESS PROJECTS,GRANTS,REDACTED,REDACTED
04.03.2021,CUSTOMER EXPERIENCE HGF,REDACTED PERSONAL DATA,"1,235.81",HOMELESS PROJECTS,GRANTS,REDACTED,REDACTED
04.03.2021,CUSTOMER EXPERIENCE HGF,REDACTED PERSONAL DATA,"3,000.00",HOMELESS PROJECTS,GRANTS,REDACTED,REDACTED
04.03.2021,CUSTOMER EXPERIENCE HGF,REDACTED PERSONAL DATA,"3,000.00",HOMELESS PROJECTS,GRANTS,REDACTED,REDACTED
04.03.2021,CUSTOMER EXPERIENCE HGF,HELP2SUPPORT LIMITED,"1,864.08",HOMELESS PROJECTS,GRANTS,5902458503,1000084604
04.03.2021,CUSTOMER EXPERIENCE HGF,HELP2SUPPORT LIMITED,"3,000.00",HOMELESS PROJECTS,GRANTS,5902458501,1000084604
04.03.2021,CUSTOMER EXPERIENCE HGF,ASHMAN PROPERTY SOLUTIONS LIMITED,"1,013.22",HOMELESS PROJECTS,GRANTS,5902458573,1000086373
04.03.2021,CUSTOMER EXPERIENCE HGF,FINEFAIR LTD,"7,236.09",NIGHTLY TA (NSC),EXTERNAL AGENCIES AND BODIES,5902458576,1000075570
04.03.2021,CUSTOMER EXPERIENCE HGF,SECURENT LTD,"9,901.20",NIGHTLY TA (NSC),EXTERNAL AGENCIES AND BODIES,5902458465,1000079400
04.03.2021,CUSTOMER EXPERIENCE HGF,ZFA ACCOMMODATION LTD,"35,456.50",NIGHTLY TA (NSC),EXTERNAL AGENCIES AND BODIES,5902458512,1000082620
04.03.2021,CUSTOMER EXPERIENCE HGF,FINEFAIR LTD,"296,433.48",PSL PLACEMENTS,EXTERNAL AGENCIES AND BODIES,5902458493,1000075570
04.03.2021,CUSTOMER EXPERIENCE HGF,FINEFAIR LTD,"2,158.63",PSL PLACEMENTS,GRANTS,5902458494,1000075570
04.03.2021,DSG,FLEET TUTORS,"8,477.00",ALTERNATIVE PROVISION,EXTERNAL AGENCIES AND BODIES,5902458479,1000044820
04.03.2021,DSG,WINSTON'S WISH,875.00,AST,TRAINING,5902458469,1000086226
04.03.2021,DSG,RG SOUND SOLUTIONS LTD,"1,104.00",HEARING AND VISUAL IMPAIRMENT TEAM,OP LEASE/HIRE CHARGES:PLANT/EQUIP/FURNIT,5902458200,1000081824
04.03.2021,DSG,EUROPEAN ELECTRONIQUE LTD,"7,893.00",LAC EDUCATION,HARDWARE,5902458398,1000084230
04.03.2021,EDUCATION,LEARNING UNLIMITED,"15,540.00",ADULT SKILLS BUDGET,GRANTS,5902458643,1000068095
04.03.2021,EDUCATION,OFFICE DEPOT UK LTD,399.22,ALC  DIRECT DELIVERY,STATIONERY,5902458450,1109426
04.03.2021,EDUCATION,WALWORTH GARDEN LTD,875.00,ALC COMMUNITY LEARNING,GRANTS,5902458516,1000042204
04.03.2021,EDUCATION,KIDS,"2,100.00",CENTRAL COSTS - SEN,PROFESSIONAL FEES,5902458630,1000030036
04.03.2021,EDUCATION,JOHN GUEST SAFEGUARDING LIMITED,325.00,GOVERNOR TRAINING,CONSULTANTS SERVICES,5902458610,1000065465
04.03.2021,ENV & LEIS,STREET TREE CARE LTD,"79,119.10",CAPITAL PS (LEISURE),CONSTRUCTION FEES,2103226467,3000001537
04.03.2021,ENV & LEIS,COMUZI LTD,"6,896.25",PH DIRECTOR'S TEAM,EXTERNAL AGENCIES AND BODIES,5902458578,1000084003
04.03.2021,ENVIRONMENT AND LEISURE,STANBURY BUILDING SERVICES LTD,"2,700.00",CAPITAL PS (LEISURE),CONST'N MAIN CONTRACT - NON CERTIFICATED,2103226160,3000001967
04.03.2021,ENVIRONMENT AND LEISURE,DIVECO MARINE LTD,"80,840.17",CAPITAL PS (LEISURE),CONSTRUCTION FEES  - EXTERNAL,2103225802,3000002162
04.03.2021,ENVIRONMENT AND LEISURE,ROGER MEARS ARCHITECTS LLP,"1,975.00",CAPITAL PS (LEISURE),CONSTRUCTION FEES - ARCHITECT,5902458617,1000085548
04.03.2021,ENVIRONMENT DIRECTORATE,ANGLESEY BOLLARD LTD,"2,360.00",ENGINEERING CRAFTS,MATERIALS,5902458608,1000068368
04.03.2021,ENVIRONMENT DIRECTORATE,SPALDINGS (UK) LTD,514.79,GROUNDS MAINTENANCE - GENERAL,MATERIALS,5902458638,1907384
04.03.2021,ENVIRONMENT DIRECTORATE,SPALDINGS (UK) LTD,520.00,GROUNDS MAINTENANCE - GENERAL,MATERIALS,5902458625,1907384
04.03.2021,ENVIRONMENT DIRECTORATE,SPALDINGS (UK) LTD,736.25,GROUNDS MAINTENANCE - GENERAL,MATERIALS,5902458635,1907384
04.03.2021,ENVIRONMENT DIRECTORATE,DRAIN SCAN,690.00,SUBWAYS MINOR ROADS,OTHER CONTRACTORS,5902458587,1908746
04.03.2021,F & C S EXCLUDING CORPORATE BUDGETS,SHARPE PRITCHARD LLP,370.00,LEGAL SVCES MANAGEMENT,PROFESSIONAL FEES,5902458476,1790085
04.03.2021,F & C S EXCLUDING CORPORATE BUDGETS,HEYWOOD LIMITED,"238,687.68",PENSIONS,CONSULTANTS SERVICES,5902458491,1000038304
04.03.2021,F & C S EXCLUDING CORPORATE BUDGETS,ALPHA BIOLABORATORIES LEGAL LTD,410.00,SAFEGUARDING,LEGAL FEES & COURT COSTS,5902458484,1000086208
04.03.2021,HOUSING,SPOKEMEAD MAINTENANCE LTD,"144,663.61",PAYMENTS CONTROL ACCOUNT - SPOKEMEAD,I-WORLD CONTRACTORS HOLDING ACCOUNT,5902458619,1000059211
04.03.2021,HOUSING,PRB ESTATES LTD,"65,075.90",PRBE,I-WORLD CONTRACTORS HOLDING ACCOUNT,2103225890,3000001691
04.03.2021,HOUSING,BIG ROCKS OF LIFE,735.46,WOMEN'S NETWORK,TRAINING,6101972116,INTERNATIONAL PAYMENT
04.03.2021,HOUSING GENERAL FUND,HUNTERS CONTRACTS LTD,425.00,CAPITAL PS (HOUSING GF),FURNITURE & FITTINGS ACQUISITION,5902458641,1000065904
04.03.2021,HOUSING GENERAL FUND,HUNTERS CONTRACTS LTD,"2,760.00",CAPITAL PS (HOUSING GF),FURNITURE & FITTINGS ACQUISITION,5902458641,1000065904
04.03.2021,HOUSING GENERAL FUND,HUNTERS CONTRACTS LTD,"3,680.00",CAPITAL PS (HOUSING GF),FURNITURE & FITTINGS ACQUISITION,5902458641,1000065904
04.03.2021,HOUSING HRA,AMCAS- ASSET MANAGEMENT & COMPLIANCY AUDITING SERVICES,"1,240.00",CAPITAL PS (HRA),CONSTRUCTION,5902458454,1000086291
04.03.2021,HOUSING HRA,FAITHFUL & GOULD,"9,176.62",CAPITAL PS (HRA),CONSTRUCTION FEES,5902458639,1000061390
04.03.2021,HOUSING HRA,CALFORD SEADEN LLP,"3,428.57",CAPITAL PS (HRA),CONSTRUCTION FEES  - EXTERNAL,5902458032,1061592
04.03.2021,HOUSING HRA,STANBURY BUILDING SERVICES LTD,400.00,CAPITAL PS (HRA),CONSTRUCTION FEES  - EXTERNAL,5902457991,1000078207
04.03.2021,HOUSING HRA,STANBURY BUILDING SERVICES LTD,"1,100.00",CAPITAL PS (HRA),CONSTRUCTION FEES  - EXTERNAL,5902457989,1000078207
04.03.2021,LEISURE DIRECTORATE,KENT COUNTY COUNCIL - LASER,298.71,BURGESS AREA TEAM,ELECTRICITY,5902458489,1000012926
04.03.2021,LEISURE DIRECTORATE,KENT COUNTY COUNCIL - LASER,305.16,BURGESS AREA TEAM,ELECTRICITY,5902458614,1000012926
04.03.2021,LEISURE DIRECTORATE,KENT COUNTY COUNCIL - LASER,792.66,BURGESS AREA TEAM,ELECTRICITY,5902458618,1000012926
04.03.2021,LEISURE DIRECTORATE,KENT COUNTY COUNCIL - LASER,719.23,BURGESS SPORTS CENTRE,ELECTRICITY,5902458616,1000012926
04.03.2021,LEISURE DIRECTORATE,QUADRON SERVICES LIMITED,609.68,CLIENT SERV(GRNS MAIN),OTHER CONTRACTORS,5902458452,1000066528
04.03.2021,LEISURE DIRECTORATE,QUADRON SERVICES LIMITED,"2,655.36",CLIENT SERV(GRNS MAIN),OTHER CONTRACTORS,5902458453,1000066528
04.03.2021,LEISURE DIRECTORATE,FACULTATIEVE TECHNOLOGIES LTD,"10,762.71",CREMATORIUM,PLANNED MAINTENANCE,5902458492,1000077525
04.03.2021,LEISURE DIRECTORATE,KENT COUNTY COUNCIL - LASER,415.39,PLAY SOUTH,ELECTRICITY,5902458615,1000012926
04.03.2021,LEISURE DIRECTORATE,KENT COUNTY COUNCIL - LASER,486.31,PLAY SOUTH,ELECTRICITY,5902458613,1000012926
04.03.2021,LEISURE DIRECTORATE,KENT COUNTY COUNCIL - LASER,"3,097.78",SOUTHWARK AREA TEAM,ELECTRICITY,5902458612,1000012926
04.03.2021,MODERNISATION HGF,ROYAL MAIL GROUP LTD,"2,049.49",160 TOOLEY ST.,POSTAGES,5902458481,1000008168
04.03.2021,MODERNISATION HGF,ROYAL MAIL GROUP LTD,"2,348.59",160 TOOLEY ST.,POSTAGES,5902458483,1000008168
04.03.2021,MODERNISATION HGF,ROYAL MAIL GROUP LTD,"2,385.64",160 TOOLEY ST.,POSTAGES,5902458488,1000008168
04.03.2021,MODERNISATION HGF,ROYAL MAIL GROUP LTD,"2,499.69",160 TOOLEY ST.,POSTAGES,5902458490,1000008168
04.03.2021,MODERNISATION HGF,MINDAPPLES TRADING LTD,650.00,CORPORATE TRAINING BUDGETS,TRAINING,5902458598,1000080028
04.03.2021,MODERNISATION HGF,WEB LABS LTD,"4,125.00",DIGITAL DELIVERY,CONSULTANTS SERVICES,5902458646,1000039819
04.03.2021,MODERNISATION HGF,P3OD LIMITED,"1,250.00",IT MANAGEMENT,TRAINING,5902458591,1000085859
04.03.2021,PLANNING AND TRANSPORT,SOUTHWARK NEWSPAPER LTD,252.00,DEVELOPMENT CONTROL ADMINSTRATION,MARKETING & PUBLICITY SERVICES,5902458601,1556957
04.03.2021,PLANNING AND TRANSPORT,SOUTHWARK NEWSPAPER LTD,504.00,DEVELOPMENT CONTROL ADMINSTRATION,MARKETING & PUBLICITY SERVICES,5902458599,1556957
04.03.2021,PLANNING AND TRANSPORT,SOUTHWARK NEWSPAPER LTD,504.00,DEVELOPMENT CONTROL ADMINSTRATION,MARKETING & PUBLICITY SERVICES,5902458594,1556957
04.03.2021,PUBLIC HEALTH,OXFORD BROOKES UNIVERSITY,"1,290.00",HEALTH PROTECTION,TRAINING,5902458139,1000005331
04.03.2021,REGENERATION,OPEN COMMUNITIES LTD,"1,020.00",CAPITAL PS (REGEN),CONSTRUCTION FEES  - EXTERNAL,5902458642,1000065800
04.03.2021,REGENERATION,DDS DEMOLITION LTD,"1,943.37",CAPITAL PS (REGEN),CONSTRUCTION SITE COSTS,2103225888,3000002058
04.03.2021,REGENERATION,DDS DEMOLITION LTD,"4,578.40",CAPITAL PS (REGEN),CONSTRUCTION SITE COSTS,2103225889,3000002058
04.03.2021,REGENERATION,STANBURY BUILDING SERVICES LTD,"2,650.00",VCS MANAGED MSC BUILDILNGS,BUILDING R&M,2103223262,3000001967
04.03.2021,RESIDENT SERVICES,BRIDGEWATER ROOFING CONTRACTORS LTD,"76,446.00",PARKING CONTROL,OTHER R&M,2103225891,3000001482
04.03.2021,SBS SUPPORT,EE LTD (AIRTIME ACCOUNT),"5,341.31",R & M OVERHEADS,TELEPHONES (MOBILES),5902458597,1000079805
04.03.2021,STRATEGIC FINANCING BUDGETS,COMENSURA LTD,"630,477.84",WEEKLY PAYMENTS,AGENCY STAFF,5902458606,1000051261
04.03.2021,SUSTAINABILITY & BUSINESS DEVELOPMENT,GREEN PARK INTERIM & EXECUTIVE LTD,"1,000.00",STRATEGIC DIRECTOR'S OFFICE E AND L,RECRUITMENT ADVERTISING,5902458647,1000085365
04.03.2021,SUSTAINABILITY & BUSINESS DEVELOPMENT,GREEN PARK INTERIM & EXECUTIVE LTD,"9,000.00",STRATEGIC DIRECTOR'S OFFICE E AND L,RECRUITMENT ADVERTISING,5902458647,1000085365
05.03.2021,ADULT SOCIAL CARE,KINGS COLLEGE LONDON,"5,000.00",ASW - PROFESSIONAL DEVELOPMENT,SUBSCRIPTIONS,5902458378,1000021115
05.03.2021,ADULT SOCIAL CARE,SOUTH EAST LONDON BAPTIST HOME,"7,918.64",DIR OF ASC,EXTERNAL AGENCIES AND BODIES,5902458376,1670766
05.03.2021,ADULT SOCIAL CARE,KAIROS COMMUNITY TRUST,"12,487.09",DIR OF ASC,EXTERNAL AGENCIES AND BODIES,5902458522,1000025479
05.03.2021,ASSET MANAGEMENT,WATERMAN BUILDING SERVICES LTD,"5,000.00",COMMERCIAL (QS),HEATING - DISTRICT SYSTEM REPAIR,5902458408,1000077421
05.03.2021,ASSET MANAGEMENT,WATERMAN BUILDING SERVICES LTD,"16,100.00",ENG CONTRACTS,PROFESSIONAL FEES,5902458436,1000077421
05.03.2021,ASSET MANAGEMENT,WATERMAN BUILDING SERVICES LTD,"19,100.00",ENG CONTRACTS,PROFESSIONAL FEES,5902458433,1000077421
05.03.2021,ASSET MANAGEMENT,RELIANCE HIGH-TECH LTD,743.00,REPAIRS OPERATIONS,OFFICE EXPENSES,5902458500,1000079374
05.03.2021,CENTRAL FUNCTIONS,KENT COUNTY COUNCIL - LASER,"40,675.60",HEATING ACCOUNT,ELECTRICITY,5902458135,1000012926
05.03.2021,CENTRAL FUNCTIONS,KENT COUNTY COUNCIL - LASER,"64,865.31",HEATING ACCOUNT,ELECTRICITY,5902458135,1000012926
05.03.2021,CENTRAL FUNCTIONS,KENT COUNTY COUNCIL - LASER,"70,965.19",HEATING ACCOUNT,GAS,5902458132,1000012926
05.03.2021,CENTRAL FUNCTIONS,KENT COUNTY COUNCIL - LASER,"532,407.95",HEATING ACCOUNT,GAS,5902458132,1000012926
05.03.2021,CHIEF EXECUTIVE,WATERMAN INFRASTRUCTURE & ENVIRONMENT LTD,"6,063.00",CAPITAL PS (REGEN),CONSTR'N SUB CONTRACT - NON CERTIFICATED,5902458122,1000060529
05.03.2021,CHIEF EXECUTIVE,CURRIE & BROWN UK LTD,"6,035.00",CAPITAL PS (REGEN),CONSTRUCTION,5902458101,1000033455
05.03.2021,CUSTOMER EXPERIENCE HGF,VALTECH LTD,378.45,BLUE BADGES,MATERIALS,5902458487,1000082245
05.03.2021,CUSTOMER EXPERIENCE HGF,IMPERIAL COLLEGE PROJECTS LTD,292.00,CORONER'S,PROFESSIONAL FEES,5902458272,1000080106
05.03.2021,CUSTOMER EXPERIENCE HGF,IMPERIAL COLLEGE PROJECTS LTD,292.00,CORONER'S,PROFESSIONAL FEES,5902458233,1000080106
05.03.2021,CUSTOMER EXPERIENCE HGF,IMPERIAL COLLEGE PROJECTS LTD,336.00,CORONER'S,PROFESSIONAL FEES,5902458228,1000080106
05.03.2021,CUSTOMER EXPERIENCE HGF,IMPERIAL COLLEGE PROJECTS LTD,388.00,CORONER'S,PROFESSIONAL FEES,5902458519,1000080106
05.03.2021,CUSTOMER EXPERIENCE HGF,IMPERIAL COLLEGE PROJECTS LTD,388.00,CORONER'S,PROFESSIONAL FEES,5902458276,1000080106
05.03.2021,CUSTOMER EXPERIENCE HGF,IMPERIAL COLLEGE PROJECTS LTD,408.00,CORONER'S,PROFESSIONAL FEES,5902458232,1000080106
05.03.2021,CUSTOMER EXPERIENCE HGF,IMPERIAL COLLEGE PROJECTS LTD,408.00,CORONER'S,PROFESSIONAL FEES,5902458229,1000080106
05.03.2021,CUSTOMER EXPERIENCE HGF,IMPERIAL COLLEGE PROJECTS LTD,452.00,CORONER'S,PROFESSIONAL FEES,5902458277,1000080106
05.03.2021,CUSTOMER EXPERIENCE HGF,IMPERIAL COLLEGE PROJECTS LTD,516.00,CORONER'S,PROFESSIONAL FEES,5902458231,1000080106
05.03.2021,CUSTOMER EXPERIENCE HGF,IMPERIAL COLLEGE PROJECTS LTD,524.00,CORONER'S,PROFESSIONAL FEES,5902458275,1000080106
05.03.2021,CUSTOMER EXPERIENCE HGF,IMPERIAL COLLEGE PROJECTS LTD,548.00,CORONER'S,PROFESSIONAL FEES,5902458273,1000080106
05.03.2021,CUSTOMER EXPERIENCE HGF,ANISTEN HOMES,"24,046.06",PSL PLACEMENTS,EXTERNAL AGENCIES AND BODIES,5902458636,1000084438
05.03.2021,ENVIRONMENT AND LEISURE,SAWYER FISHER (EPSOM) LTD,"1,542.40",CAPITAL PS (LEISURE),CONSTRUCTION FEES - QUANTITY SURVEYOR,5902458071,1000083380
05.03.2021,ENVIRONMENT AND LEISURE,VINCENTSTOKES LTD,"184,391.21",CAPITAL PS (LEISURE),CONSTRUCTION MAIN CONTRACT -CERTIFICATED,2103225807,3000001965
05.03.2021,ENVIRONMENT DIRECTORATE,LANDSCAPE SUPPLY COMPANY,"3,567.00",GROUNDS MAINTENANCE - GENERAL,EQUIPMENT PURCHASE & REPAIR,5902458295,1000051937
05.03.2021,F & C S EXCLUDING CORPORATE BUDGETS,BDO LLP,"22,005.00",INTERNAL AUDIT CONTRACTS,PAYMENTS FOR FINANCIAL SERVICES,5902458112,1000057898
05.03.2021,F & C S EXCLUDING CORPORATE BUDGETS,BDO LLP,"2,083.33",RISK ADMIN,PROFESSIONAL FEES,5902458281,1000057898
05.03.2021,F & C S EXCLUDING CORPORATE BUDGETS,REDACTED PERSONAL DATA,500.00,SESS,OTHER PAYMENTS FOR CLIENTS,REDACTED,REDACTED
05.03.2021,F & C S EXCLUDING CORPORATE BUDGETS,REDACTED PERSONAL DATA,500.00,SESS,OTHER PAYMENTS FOR CLIENTS,REDACTED,REDACTED
05.03.2021,F & C S EXCLUDING CORPORATE BUDGETS,REDACTED PERSONAL DATA,500.00,SESS,OTHER PAYMENTS FOR CLIENTS,REDACTED,REDACTED
05.03.2021,F & C S EXCLUDING CORPORATE BUDGETS,REDACTED PERSONAL DATA,500.00,SESS,OTHER PAYMENTS FOR CLIENTS,REDACTED,REDACTED
05.03.2021,F & C S EXCLUDING CORPORATE BUDGETS,REDACTED PERSONAL DATA,500.00,SESS,OTHER PAYMENTS FOR CLIENTS,REDACTED,REDACTED
05.03.2021,F & C S EXCLUDING CORPORATE BUDGETS,REDACTED PERSONAL DATA,500.00,SESS,OTHER PAYMENTS FOR CLIENTS,REDACTED,REDACTED
05.03.2021,HOUSING HRA,CALFORD SEADEN LLP,"1,000.00",CAPITAL PS (HRA),CONSTRUCTION FEES  - EXTERNAL,5902458371,1061592
05.03.2021,HOUSING HRA,SALTASH ENTERPRISES LTD,"74,427.31",CAPITAL PS (HRA),CONSTRUCTION MAIN CONTRACT -CERTIFICATED,2103224955,4013605
05.03.2021,HOUSING HRA,BRITISH GAS,561.44,CAPITAL PS (HRA),UTILITIES INSTALLATION,5902458115,1000054825
05.03.2021,HOUSING HRA,BUILT SERVICES DESIGN ASSOCIATES LTD,"3,200.00",CAPITAL PS (REGEN),CONSTRUCTION FEES  - EXTERNAL,5902458581,1000083230
05.03.2021,HUMAN RESOURCES,HALFORDS LTD,"1,250.00",BIKE SCHEME,OTHER EMPLOYEE EXPENSES,5902458303,1000041969
05.03.2021,LEISURE DIRECTORATE,THE COLUMBARIA COMPANY,"5,000.00",CREMATORIUM,BUILDING R&M,5902458447,1632437
05.03.2021,LEISURE DIRECTORATE,NPOWER,280.73,SDM BUDGET,ELECTRICITY,5902458336,1000032342
05.03.2021,LEISURE DIRECTORATE,NPOWER,578.54,SDM BUDGET,ELECTRICITY,5902458334,1000032342
05.03.2021,LEISURE DIRECTORATE,THE MARINE CANVAS HUT,"2,100.00",SDM BUDGET,EQUIPMENT PURCHASE & REPAIR,5902458086,1000081172
05.03.2021,RESIDENT SERVICES,RELIANCE HIGH-TECH LTD,"1,784.70",OPERATIONS/OFFICES ACCOMMODATION,OFFICE EXPENSES,5902458500,1000079374
05.03.2021,RESIDENT SERVICES,PINNACLE POWER LTD,"3,154.92",PRIVATE SERVICE CHARGES,SERVICE CHARGES,5902458241,1000081494
05.03.2021,STRATEGIC FINANCING BUDGETS,JOHNSON AUSTIN LTD,500.00,PROPERTY RELATED INSURANCE,PROFESSIONAL FEES,5902458482,1000040202
06.03.2021,ADULT SOCIAL CARE,CONTACT PROFESSIONALS,478.80,PHY LTS 18-64,OTHER PAYMENTS FOR CLIENTS,5902458537,1000057263
06.03.2021,CHILDREN AND ADULT,ARVI CONSTRUCTION LTD,"25,000.00",CAPITAL PS (EDUCATION),CONSTRUCTION MAIN CONTRACT,2103225835,3000002133
06.03.2021,CHILDREN AND FAMILIES,THE ANNA FREUD CENTRE,"12,000.00",ADOPTION SUPP FUND,PROFESSIONAL FEES,5902457892,1000017805
06.03.2021,CHILDREN AND FAMILIES,NEGOTIATORS FAMILY CENTRE LIMITED,540.00,CONTACT SERVICE,OTHER PAYMENTS FOR CLIENTS,5902458632,1000075672
06.03.2021,CHILDREN AND FAMILIES,CORAM CHILDRENS LEGAL CENTRE LTD,"2,591.00",FOSTERING TEAM,EXTERNAL AGENCIES AND BODIES,5902457787,1000072367
06.03.2021,COMMUNITIES,FIGHT FOR CHANGE FOUNDATION,"2,800.00",SOUTHWARK ANTI VIOLENCE UNIT,GRANTS,5902458463,1000064516
06.03.2021,CUSTOMER EXPERIENCE HGF,IMPERIAL COLLEGE PROJECTS LTD,457.00,CORONER'S,PROFESSIONAL FEES,5902458520,1000080106
06.03.2021,CUSTOMER EXPERIENCE HGF,IMPERIAL COLLEGE PROJECTS LTD,484.00,CORONER'S,PROFESSIONAL FEES,5902458521,1000080106
06.03.2021,ENV & LEIS,ELITE GUARDING (UK) LTD,"31,776.00",COVID-19 MASS RAPID TESTING,EXTERNAL AGENCIES AND BODIES,5902458607,1000086183
06.03.2021,HOUSING HRA,BLAKEDOWN LANDSCAPES,"78,185.00",CAPITAL PS (HRA),CONSTRUCTION MAIN CONTRACT,2103223268,4005399
06.03.2021,LEISURE DIRECTORATE,R H WROUGHT IRON MANUFACTURERS,885.00,PLAY NORTH,OTHER R&M,5902458633,1000015848
06.03.2021,MODERNISATION HGF,MINDAPPLES TRADING LTD,350.00,LGBTQ+,TRAINING,5902458381,1000080028
06.03.2021,REGENERATION,TIBBALDS PLANNING & URBAN DESIGN LTD,"5,741.00",MASTER PLAN-H/WAY & TRANS INTERCHANGE,PROFESSIONAL FEES,5902458410,1000029772
07.03.2021,COMMISSIONING & CENTRAL,LONDON BOROUGH OF EALING,756.10,STRATEGIC DIRECTOR OF C&AS,EXTERNAL AGENCIES AND BODIES,5902458585,1000033322
07.03.2021,COMMUNITIES,DOCKLAND SETTLEMENT COMMUNITY,"1,600.00",SOUTHWARK ANTI VIOLENCE UNIT,GRANTS,5902458429,1000075662
07.03.2021,COMMUNITIES,DOCKLAND SETTLEMENT COMMUNITY,"1,600.00",SOUTHWARK ANTI VIOLENCE UNIT,GRANTS,5902458426,1000075662
07.03.2021,F & C S EXCLUDING CORPORATE BUDGETS,RECOGNISING EXCELLENCE LTD,"1,237.50",LEGAL SVCES MANAGEMENT,PROFESSIONAL FEES,5902458593,1000072397
07.03.2021,HOUSING,SILK & MACKMAN SERVICES LTD,"37,533.70",ENG CONTRACTS (NORTH),I-WORLD CONTRACTORS HOLDING ACCOUNT,5902458584,1000035282
07.03.2021,HOUSING,LIFTEC LIFTS LTD,"105,056.86",PAYMENTS CONTROL ACCOUNT - LIFTEC,I-WORLD CONTRACTORS HOLDING ACCOUNT,5902458604,1000057278
07.03.2021,PLANNING AND TRANSPORT,SOUTHWARK NEWSPAPER LTD,504.00,DEVELOPMENT CONTROL ADMINSTRATION,MARKETING & PUBLICITY SERVICES,5902458605,1556957
08.03.2021,ADULT SOCIAL CARE,REDACTED PERSONAL DATA,279.85,APPOINTEESHIPS,OTHER PAYMENTS FOR CLIENTS,REDACTED,REDACTED
08.03.2021,ADULT SOCIAL CARE,REDACTED PERSONAL DATA,488.00,APPOINTEESHIPS,OTHER PAYMENTS FOR CLIENTS,REDACTED,REDACTED
08.03.2021,ADULT SOCIAL CARE,JIRD LIMITED,603.44,DIR OF ASC,EXTERNAL AGENCIES AND BODIES,5902458791,1000085700
08.03.2021,ADULT SOCIAL CARE,LONDON CARE LTD,"1,092.29",DISCHARGE TO ACCESS,HOMECARE - C&V,2103226794,1000003398
08.03.2021,ADULT SOCIAL CARE,THAMES HOMECARE SERVICE LTD,367.94,DISCHARGE TO ACCESS,HOMECARE - C&V,2103227029,1000079295
08.03.2021,ADULT SOCIAL CARE,SAFE STEPS LIMITED,"15,000.00",EXTERNALLY FUNDED PROJECTS,EXTERNAL AGENCIES AND BODIES,5902458762,1000084093
08.03.2021,ADULT SOCIAL CARE,ACCESS MOBILITY TRANSPORT LTD,"1,473.60",LD LTS 18-64,CLIENT TRANSPORT,2103227099,1000074637
08.03.2021,ADULT SOCIAL CARE,BEDE CAFE PROJECT,280.00,LD LTS 18-64,DAYCARE,2103226959,1553877
08.03.2021,ADULT SOCIAL CARE,BEDE CAFE PROJECT,464.00,LD LTS 18-64,DAYCARE,2103226976,1553877
08.03.2021,ADULT SOCIAL CARE,BEDE CAFE PROJECT,464.00,LD LTS 18-64,DAYCARE,2103226974,1553877
08.03.2021,ADULT SOCIAL CARE,BEDE CAFE PROJECT,464.00,LD LTS 18-64,DAYCARE,2103226973,1553877
08.03.2021,ADULT SOCIAL CARE,BEDE CAFE PROJECT,464.00,LD LTS 18-64,DAYCARE,2103226972,1553877
08.03.2021,ADULT SOCIAL CARE,BEDE CAFE PROJECT,464.00,LD LTS 18-64,DAYCARE,2103226971,1553877
08.03.2021,ADULT SOCIAL CARE,BEDE CAFE PROJECT,464.00,LD LTS 18-64,DAYCARE,2103226963,1553877
08.03.2021,ADULT SOCIAL CARE,BEDE CAFE PROJECT,464.00,LD LTS 18-64,DAYCARE,2103226958,1553877
08.03.2021,ADULT SOCIAL CARE,BEDE CAFE PROJECT,464.00,LD LTS 18-64,DAYCARE,2103226957,1553877
08.03.2021,ADULT SOCIAL CARE,BEDE CAFE PROJECT,464.00,LD LTS 18-64,DAYCARE,2103226952,1553877
08.03.2021,ADULT SOCIAL CARE,BEDE CAFE PROJECT,464.00,LD LTS 18-64,DAYCARE,2103226951,1553877
08.03.2021,ADULT SOCIAL CARE,BEDE CAFE PROJECT,464.00,LD LTS 18-64,DAYCARE,2103226948,1553877
08.03.2021,ADULT SOCIAL CARE,BEDE CAFE PROJECT,464.00,LD LTS 18-64,DAYCARE,2103226946,1553877
08.03.2021,ADULT SOCIAL CARE,BEDE CAFE PROJECT,696.00,LD LTS 18-64,DAYCARE,2103226969,1553877
08.03.2021,ADULT SOCIAL CARE,BEDE CAFE PROJECT,928.00,LD LTS 18-64,DAYCARE,2103226970,1553877
08.03.2021,ADULT SOCIAL CARE,BEDE CAFE PROJECT,928.00,LD LTS 18-64,DAYCARE,2103226968,1553877
08.03.2021,ADULT SOCIAL CARE,BEDE CAFE PROJECT,928.00,LD LTS 18-64,DAYCARE,2103226964,1553877
08.03.2021,ADULT SOCIAL CARE,BEDE CAFE PROJECT,928.00,LD LTS 18-64,DAYCARE,2103226961,1553877
08.03.2021,ADULT SOCIAL CARE,BEDE CAFE PROJECT,928.00,LD LTS 18-64,DAYCARE,2103226950,1553877
08.03.2021,ADULT SOCIAL CARE,BEDE CAFE PROJECT,928.00,LD LTS 18-64,DAYCARE,2103226947,1553877
08.03.2021,ADULT SOCIAL CARE,BEDE CAFE PROJECT,"1,020.00",LD LTS 18-64,DAYCARE,2103226955,1553877
08.03.2021,ADULT SOCIAL CARE,BEDE CAFE PROJECT,"1,160.00",LD LTS 18-64,DAYCARE,2103226978,1553877
08.03.2021,ADULT SOCIAL CARE,BEDE CAFE PROJECT,"2,308.00",LD LTS 18-64,DAYCARE,2103226979,1553877
08.03.2021,ADULT SOCIAL CARE,LONDON CARE LTD,952.00,LD LTS 18-64,HOMECARE - C&V,2103226805,1000003398
08.03.2021,ADULT SOCIAL CARE,LONDON CARE LTD,"1,015.85",LD LTS 18-64,HOMECARE - C&V,2103226804,1000003398
08.03.2021,ADULT SOCIAL CARE,BEDE CAFE PROJECT,464.00,LD LTS 18-64,SUPPORTED LIVING,2103226956,1553877
08.03.2021,ADULT SOCIAL CARE,CARE O LINE,"1,835.65",LD LTS 18-64,SUPPORTED LIVING,2103227077,11241743
08.03.2021,ADULT SOCIAL CARE,CARE O LINE,"1,922.82",LD LTS 18-64,SUPPORTED LIVING,2103227079,11241743
08.03.2021,ADULT SOCIAL CARE,DARETHEALTHCARE UK LTD,728.16,LD LTS 18-64,SUPPORTED LIVING,2103227080,1000059149
08.03.2021,ADULT SOCIAL CARE,CARE DIRECT UK LTD,330.96,LD LTS 18-64,SUPPORTED LIVING,2103227155,1000066322
08.03.2021,ADULT SOCIAL CARE,CARE DIRECT UK LTD,399.91,LD LTS 18-64,SUPPORTED LIVING,2103226986,1000066322
08.03.2021,ADULT SOCIAL CARE,LONDON CARE LTD,"6,464.25",LD LTS 65+,HOMECARE - C&V,2103226883,1000003398
08.03.2021,ADULT SOCIAL CARE,LONDON CARE LTD,403.88,MEM LTS 18-64,HOMECARE - C&V,2103226834,1000003398
08.03.2021,ADULT SOCIAL CARE,LONDON CARE LTD,795.20,MEM LTS 18-64,HOMECARE - C&V,2103226504,1000003398
08.03.2021,ADULT SOCIAL CARE,LONDON CARE LTD,273.07,MEM LTS 65+,HOMECARE - C&V,2103226661,1000003398
08.03.2021,ADULT SOCIAL CARE,LONDON CARE LTD,304.32,MEM LTS 65+,HOMECARE - C&V,2103226642,1000003398
08.03.2021,ADULT SOCIAL CARE,LONDON CARE LTD,595.00,MEM LTS 65+,HOMECARE - C&V,2103226616,1000003398
08.03.2021,ADULT SOCIAL CARE,LONDON CARE LTD,693.74,MEM LTS 65+,HOMECARE - C&V,2103226712,1000003398
08.03.2021,ADULT SOCIAL CARE,LONDON CARE LTD,892.50,MEM LTS 65+,HOMECARE - C&V,2103226656,1000003398
08.03.2021,ADULT SOCIAL CARE,LONDON CARE LTD,"1,078.55",MEM LTS 65+,HOMECARE - C&V,2103226891,1000003398
08.03.2021,ADULT SOCIAL CARE,LONDON CARE LTD,"1,409.73",MEM LTS 65+,HOMECARE - C&V,2103226814,1000003398
08.03.2021,ADULT SOCIAL CARE,LONDON CARE LTD,"1,415.25",MEM LTS 65+,HOMECARE - C&V,2103226564,1000003398
08.03.2021,ADULT SOCIAL CARE,LONDON CARE LTD,"1,495.13",MEM LTS 65+,HOMECARE - C&V,2103226860,1000003398
08.03.2021,ADULT SOCIAL CARE,LONDON CARE LTD,"2,762.50",MEM LTS 65+,HOMECARE - C&V,2103226540,1000003398
08.03.2021,ADULT SOCIAL CARE,SUPREME CARE SERVICES LTD,357.72,MEM LTS 65+,HOMECARE - C&V,2103227139,1000059416
08.03.2021,ADULT SOCIAL CARE,WESTMINSTER HOMECARE LTD,"1,550.22",MEM LTS 65+,HOMECARE - SPOT,2103227174,1000075287
08.03.2021,ADULT SOCIAL CARE,PROFAD CARE AGENCY,"1,302.00",MEM LTS 65+,HOMECARE - SPOT,2103226982,1000079032
08.03.2021,ADULT SOCIAL CARE,SUPREME CARE SERVICES LTD,"1,134.26",MEM STS 65+,HOMECARE - IC,2103227138,1000059416
08.03.2021,ADULT SOCIAL CARE,BEDE CAFE PROJECT,280.00,MH LTS 18-64,DAYCARE,2103226975,1553877
08.03.2021,ADULT SOCIAL CARE,LONDON CARE LTD,272.00,MH LTS 18-64,HOMECARE - C&V,2103226878,1000003398
08.03.2021,ADULT SOCIAL CARE,LONDON CARE LTD,367.09,MH LTS 18-64,HOMECARE - C&V,2103226641,1000003398
08.03.2021,ADULT SOCIAL CARE,LONDON CARE LTD,429.60,MH LTS 18-64,HOMECARE - C&V,2103226570,1000003398
08.03.2021,ADULT SOCIAL CARE,LONDON CARE LTD,443.20,MH LTS 18-64,HOMECARE - C&V,2103226745,1000003398
08.03.2021,ADULT SOCIAL CARE,LONDON CARE LTD,487.82,MH LTS 18-64,HOMECARE - C&V,2103226858,1000003398
08.03.2021,ADULT SOCIAL CARE,LONDON CARE LTD,501.20,MH LTS 18-64,HOMECARE - C&V,2103226742,1000003398
08.03.2021,ADULT SOCIAL CARE,LONDON CARE LTD,548.25,MH LTS 18-64,HOMECARE - C&V,2103226904,1000003398
08.03.2021,ADULT SOCIAL CARE,LONDON CARE LTD,777.66,MH LTS 18-64,HOMECARE - C&V,2103226828,1000003398
08.03.2021,ADULT SOCIAL CARE,LONDON CARE LTD,810.00,MH LTS 18-64,HOMECARE - C&V,2103226741,1000003398
08.03.2021,ADULT SOCIAL CARE,LONDON CARE LTD,901.00,MH LTS 18-64,HOMECARE - C&V,2103226840,1000003398
08.03.2021,ADULT SOCIAL CARE,LONDON CARE LTD,993.73,MH LTS 18-64,HOMECARE - C&V,2103226770,1000003398
08.03.2021,ADULT SOCIAL CARE,LONDON CARE LTD,"1,557.05",MH LTS 18-64,HOMECARE - C&V,2103226915,1000003398
08.03.2021,ADULT SOCIAL CARE,THAMES HOMECARE SERVICE LTD,445.17,MH LTS 18-64,HOMECARE - SPOT,2103227050,1000079295
08.03.2021,ADULT SOCIAL CARE,LONDON CARE LTD,272.98,MH LTS 65+,HOMECARE - C&V,2103226759,1000003398
08.03.2021,ADULT SOCIAL CARE,LONDON CARE LTD,286.40,MH LTS 65+,HOMECARE - C&V,2103226830,1000003398
08.03.2021,ADULT SOCIAL CARE,LONDON CARE LTD,308.87,MH LTS 65+,HOMECARE - C&V,2103226780,1000003398
08.03.2021,ADULT SOCIAL CARE,LONDON CARE LTD,546.00,MH LTS 65+,HOMECARE - C&V,2103226701,1000003398
08.03.2021,ADULT SOCIAL CARE,LONDON CARE LTD,572.80,MH LTS 65+,HOMECARE - C&V,2103226914,1000003398
08.03.2021,ADULT SOCIAL CARE,LONDON CARE LTD,702.71,MH LTS 65+,HOMECARE - C&V,2103226623,1000003398
08.03.2021,ADULT SOCIAL CARE,LONDON CARE LTD,"1,056.28",MH LTS 65+,HOMECARE - C&V,2103226664,1000003398
08.03.2021,ADULT SOCIAL CARE,LONDON CARE LTD,"2,452.54",MH LTS 65+,HOMECARE - C&V,2103226575,1000003398
08.03.2021,ADULT SOCIAL CARE,WESTMINSTER HOMECARE LTD,"1,018.04",MH LTS 65+,HOMECARE - SPOT,2103227161,1000075287
08.03.2021,ADULT SOCIAL CARE,THAMES HOMECARE SERVICE LTD,472.42,MH LTS 65+,HOMECARE - SPOT,2103227072,1000079295
08.03.2021,ADULT SOCIAL CARE,LONDON CARE LTD,255.00,PHY LTS 18-64,HOMECARE - C&V,2103226842,1000003398
08.03.2021,ADULT SOCIAL CARE,LONDON CARE LTD,259.64,PHY LTS 18-64,HOMECARE - C&V,2103226793,1000003398
08.03.2021,ADULT SOCIAL CARE,LONDON CARE LTD,266.68,PHY LTS 18-64,HOMECARE - C&V,2103226879,1000003398
08.03.2021,ADULT SOCIAL CARE,LONDON CARE LTD,284.75,PHY LTS 18-64,HOMECARE - C&V,2103226594,1000003398
08.03.2021,ADULT SOCIAL CARE,LONDON CARE LTD,306.00,PHY LTS 18-64,HOMECARE - C&V,2103226873,1000003398
08.03.2021,ADULT SOCIAL CARE,LONDON CARE LTD,340.10,PHY LTS 18-64,HOMECARE - C&V,2103226845,1000003398
08.03.2021,ADULT SOCIAL CARE,LONDON CARE LTD,344.67,PHY LTS 18-64,HOMECARE - C&V,2103226702,1000003398
08.03.2021,ADULT SOCIAL CARE,LONDON CARE LTD,353.84,PHY LTS 18-64,HOMECARE - C&V,2103226847,1000003398
08.03.2021,ADULT SOCIAL CARE,LONDON CARE LTD,353.88,PHY LTS 18-64,HOMECARE - C&V,2103226895,1000003398
08.03.2021,ADULT SOCIAL CARE,LONDON CARE LTD,376.03,PHY LTS 18-64,HOMECARE - C&V,2103226668,1000003398
08.03.2021,ADULT SOCIAL CARE,LONDON CARE LTD,376.04,PHY LTS 18-64,HOMECARE - C&V,2103226886,1000003398
08.03.2021,ADULT SOCIAL CARE,LONDON CARE LTD,384.95,PHY LTS 18-64,HOMECARE - C&V,2103226632,1000003398
08.03.2021,ADULT SOCIAL CARE,LONDON CARE LTD,389.45,PHY LTS 18-64,HOMECARE - C&V,2103226798,1000003398
08.03.2021,ADULT SOCIAL CARE,LONDON CARE LTD,389.46,PHY LTS 18-64,HOMECARE - C&V,2103226776,1000003398
08.03.2021,ADULT SOCIAL CARE,LONDON CARE LTD,398.39,PHY LTS 18-64,HOMECARE - C&V,2103226692,1000003398
08.03.2021,ADULT SOCIAL CARE,LONDON CARE LTD,408.14,PHY LTS 18-64,HOMECARE - C&V,2103226554,1000003398
08.03.2021,ADULT SOCIAL CARE,LONDON CARE LTD,429.60,PHY LTS 18-64,HOMECARE - C&V,2103226533,1000003398
08.03.2021,ADULT SOCIAL CARE,LONDON CARE LTD,434.09,PHY LTS 18-64,HOMECARE - C&V,2103226839,1000003398
08.03.2021,ADULT SOCIAL CARE,LONDON CARE LTD,446.25,PHY LTS 18-64,HOMECARE - C&V,2103226600,1000003398
08.03.2021,ADULT SOCIAL CARE,LONDON CARE LTD,449.64,PHY LTS 18-64,HOMECARE - C&V,2103226900,1000003398
08.03.2021,ADULT SOCIAL CARE,LONDON CARE LTD,452.01,PHY LTS 18-64,HOMECARE - C&V,2103226779,1000003398
08.03.2021,ADULT SOCIAL CARE,LONDON CARE LTD,492.34,PHY LTS 18-64,HOMECARE - C&V,2103226715,1000003398
08.03.2021,ADULT SOCIAL CARE,LONDON CARE LTD,505.75,PHY LTS 18-64,HOMECARE - C&V,2103226581,1000003398
08.03.2021,ADULT SOCIAL CARE,LONDON CARE LTD,528.15,PHY LTS 18-64,HOMECARE - C&V,2103226754,1000003398
08.03.2021,ADULT SOCIAL CARE,LONDON CARE LTD,536.96,PHY LTS 18-64,HOMECARE - C&V,2103226538,1000003398
08.03.2021,ADULT SOCIAL CARE,LONDON CARE LTD,541.13,PHY LTS 18-64,HOMECARE - C&V,2103226836,1000003398
08.03.2021,ADULT SOCIAL CARE,LONDON CARE LTD,541.60,PHY LTS 18-64,HOMECARE - C&V,2103226720,1000003398
08.03.2021,ADULT SOCIAL CARE,LONDON CARE LTD,561.00,PHY LTS 18-64,HOMECARE - C&V,2103226887,1000003398
08.03.2021,ADULT SOCIAL CARE,LONDON CARE LTD,572.80,PHY LTS 18-64,HOMECARE - C&V,2103226869,1000003398
08.03.2021,ADULT SOCIAL CARE,LONDON CARE LTD,617.55,PHY LTS 18-64,HOMECARE - C&V,2103226771,1000003398
08.03.2021,ADULT SOCIAL CARE,LONDON CARE LTD,626.63,PHY LTS 18-64,HOMECARE - C&V,2103226700,1000003398
08.03.2021,ADULT SOCIAL CARE,LONDON CARE LTD,626.65,PHY LTS 18-64,HOMECARE - C&V,2103226680,1000003398
08.03.2021,ADULT SOCIAL CARE,LONDON CARE LTD,635.58,PHY LTS 18-64,HOMECARE - C&V,2103226769,1000003398
08.03.2021,ADULT SOCIAL CARE,LONDON CARE LTD,654.50,PHY LTS 18-64,HOMECARE - C&V,2103226930,1000003398
08.03.2021,ADULT SOCIAL CARE,LONDON CARE LTD,666.89,PHY LTS 18-64,HOMECARE - C&V,2103226826,1000003398
08.03.2021,ADULT SOCIAL CARE,LONDON CARE LTD,680.00,PHY LTS 18-64,HOMECARE - C&V,2103226591,1000003398
08.03.2021,ADULT SOCIAL CARE,LONDON CARE LTD,682.99,PHY LTS 18-64,HOMECARE - C&V,2103226728,1000003398
08.03.2021,ADULT SOCIAL CARE,LONDON CARE LTD,697.00,PHY LTS 18-64,HOMECARE - C&V,2103226868,1000003398
08.03.2021,ADULT SOCIAL CARE,LONDON CARE LTD,702.75,PHY LTS 18-64,HOMECARE - C&V,2103226613,1000003398
08.03.2021,ADULT SOCIAL CARE,LONDON CARE LTD,705.50,PHY LTS 18-64,HOMECARE - C&V,2103226892,1000003398
08.03.2021,ADULT SOCIAL CARE,LONDON CARE LTD,707.18,PHY LTS 18-64,HOMECARE - C&V,2103226723,1000003398
08.03.2021,ADULT SOCIAL CARE,LONDON CARE LTD,714.00,PHY LTS 18-64,HOMECARE - C&V,2103226817,1000003398
08.03.2021,ADULT SOCIAL CARE,LONDON CARE LTD,743.75,PHY LTS 18-64,HOMECARE - C&V,2103226518,1000003398
08.03.2021,ADULT SOCIAL CARE,LONDON CARE LTD,751.91,PHY LTS 18-64,HOMECARE - C&V,2103226816,1000003398
08.03.2021,ADULT SOCIAL CARE,LONDON CARE LTD,766.04,PHY LTS 18-64,HOMECARE - C&V,2103226837,1000003398
08.03.2021,ADULT SOCIAL CARE,LONDON CARE LTD,801.03,PHY LTS 18-64,HOMECARE - C&V,2103226902,1000003398
08.03.2021,ADULT SOCIAL CARE,LONDON CARE LTD,831.80,PHY LTS 18-64,HOMECARE - C&V,2103226905,1000003398
08.03.2021,ADULT SOCIAL CARE,LONDON CARE LTD,895.14,PHY LTS 18-64,HOMECARE - C&V,2103226727,1000003398
08.03.2021,ADULT SOCIAL CARE,LONDON CARE LTD,895.28,PHY LTS 18-64,HOMECARE - C&V,2103226622,1000003398
08.03.2021,ADULT SOCIAL CARE,LONDON CARE LTD,936.57,PHY LTS 18-64,HOMECARE - C&V,2103226901,1000003398
08.03.2021,ADULT SOCIAL CARE,LONDON CARE LTD,"1,015.98",PHY LTS 18-64,HOMECARE - C&V,2103226831,1000003398
08.03.2021,ADULT SOCIAL CARE,LONDON CARE LTD,"1,028.50",PHY LTS 18-64,HOMECARE - C&V,2103226917,1000003398
08.03.2021,ADULT SOCIAL CARE,LONDON CARE LTD,"1,045.50",PHY LTS 18-64,HOMECARE - C&V,2103226546,1000003398
08.03.2021,ADULT SOCIAL CARE,LONDON CARE LTD,"1,056.24",PHY LTS 18-64,HOMECARE - C&V,2103226746,1000003398
08.03.2021,ADULT SOCIAL CARE,LONDON CARE LTD,"1,069.80",PHY LTS 18-64,HOMECARE - C&V,2103226513,1000003398
08.03.2021,ADULT SOCIAL CARE,LONDON CARE LTD,"1,127.70",PHY LTS 18-64,HOMECARE - C&V,2103226704,1000003398
08.03.2021,ADULT SOCIAL CARE,LONDON CARE LTD,"1,127.87",PHY LTS 18-64,HOMECARE - C&V,2103226832,1000003398
08.03.2021,ADULT SOCIAL CARE,LONDON CARE LTD,"1,194.87",PHY LTS 18-64,HOMECARE - C&V,2103226827,1000003398
08.03.2021,ADULT SOCIAL CARE,LONDON CARE LTD,"1,360.57",PHY LTS 18-64,HOMECARE - C&V,2103226778,1000003398
08.03.2021,ADULT SOCIAL CARE,LONDON CARE LTD,"1,398.85",PHY LTS 18-64,HOMECARE - C&V,2103226813,1000003398
08.03.2021,ADULT SOCIAL CARE,LONDON CARE LTD,"1,485.85",PHY LTS 18-64,HOMECARE - C&V,2103226582,1000003398
08.03.2021,ADULT SOCIAL CARE,LONDON CARE LTD,"1,938.00",PHY LTS 18-64,HOMECARE - C&V,2103226572,1000003398
08.03.2021,ADULT SOCIAL CARE,LONDON CARE LTD,"2,044.25",PHY LTS 18-64,HOMECARE - C&V,2103226652,1000003398
08.03.2021,ADULT SOCIAL CARE,LONDON CARE LTD,"2,152.62",PHY LTS 18-64,HOMECARE - C&V,2103226875,1000003398
08.03.2021,ADULT SOCIAL CARE,LONDON CARE LTD,"2,282.58",PHY LTS 18-64,HOMECARE - C&V,2103226629,1000003398
08.03.2021,ADULT SOCIAL CARE,LONDON CARE LTD,"2,356.80",PHY LTS 18-64,HOMECARE - C&V,2103226898,1000003398
08.03.2021,ADULT SOCIAL CARE,LONDON CARE LTD,"3,339.19",PHY LTS 18-64,HOMECARE - C&V,2103226560,1000003398
08.03.2021,ADULT SOCIAL CARE,LONDON CARE LTD,"3,401.77",PHY LTS 18-64,HOMECARE - C&V,2103226515,1000003398
08.03.2021,ADULT SOCIAL CARE,LONDON CARE LTD,"3,451.00",PHY LTS 18-64,HOMECARE - C&V,2103226556,1000003398
08.03.2021,ADULT SOCIAL CARE,SUPREME CARE SERVICES LTD,623.85,PHY LTS 18-64,HOMECARE - C&V,2103227112,1000059416
08.03.2021,ADULT SOCIAL CARE,SUPREME CARE SERVICES LTD,"1,657.75",PHY LTS 18-64,HOMECARE - C&V,2103227143,1000059416
08.03.2021,ADULT SOCIAL CARE,LONDON CARE LTD,387.16,PHY LTS 18-64,HOMECARE - SPOT,2103226876,1000003398
08.03.2021,ADULT SOCIAL CARE,LONDON CARE LTD,709.75,PHY LTS 18-64,HOMECARE - SPOT,2103226806,1000003398
08.03.2021,ADULT SOCIAL CARE,WESTMINSTER HOMECARE LTD,"1,110.60",PHY LTS 18-64,HOMECARE - SPOT,2103227169,1000075287
08.03.2021,ADULT SOCIAL CARE,WESTMINSTER HOMECARE LTD,"1,341.98",PHY LTS 18-64,HOMECARE - SPOT,2103227172,1000075287
08.03.2021,ADULT SOCIAL CARE,WESTMINSTER HOMECARE LTD,"2,073.12",PHY LTS 18-64,HOMECARE - SPOT,2103227164,1000075287
08.03.2021,ADULT SOCIAL CARE,WESTMINSTER HOMECARE LTD,"2,980.13",PHY LTS 18-64,HOMECARE - SPOT,2103227163,1000075287
08.03.2021,ADULT SOCIAL CARE,THAMES HOMECARE SERVICE LTD,258.92,PHY LTS 18-64,HOMECARE - SPOT,2103227062,1000079295
08.03.2021,ADULT SOCIAL CARE,THAMES HOMECARE SERVICE LTD,286.18,PHY LTS 18-64,HOMECARE - SPOT,2103227061,1000079295
08.03.2021,ADULT SOCIAL CARE,THAMES HOMECARE SERVICE LTD,349.77,PHY LTS 18-64,HOMECARE - SPOT,2103227053,1000079295
08.03.2021,ADULT SOCIAL CARE,THAMES HOMECARE SERVICE LTD,363.40,PHY LTS 18-64,HOMECARE - SPOT,2103227017,1000079295
08.03.2021,ADULT SOCIAL CARE,THAMES HOMECARE SERVICE LTD,386.11,PHY LTS 18-64,HOMECARE - SPOT,2103227006,1000079295
08.03.2021,ADULT SOCIAL CARE,THAMES HOMECARE SERVICE LTD,572.36,PHY LTS 18-64,HOMECARE - SPOT,2103227019,1000079295
08.03.2021,ADULT SOCIAL CARE,THAMES HOMECARE SERVICE LTD,572.36,PHY LTS 18-64,HOMECARE - SPOT,2103227018,1000079295
08.03.2021,ADULT SOCIAL CARE,THAMES HOMECARE SERVICE LTD,608.70,PHY LTS 18-64,HOMECARE - SPOT,2103227025,1000079295
08.03.2021,ADULT SOCIAL CARE,THAMES HOMECARE SERVICE LTD,635.95,PHY LTS 18-64,HOMECARE - SPOT,2103227010,1000079295
08.03.2021,ADULT SOCIAL CARE,THAMES HOMECARE SERVICE LTD,649.58,PHY LTS 18-64,HOMECARE - SPOT,2103227033,1000079295
08.03.2021,ADULT SOCIAL CARE,THAMES HOMECARE SERVICE LTD,699.55,PHY LTS 18-64,HOMECARE - SPOT,2103226998,1000079295
08.03.2021,ADULT SOCIAL CARE,THAMES HOMECARE SERVICE LTD,844.91,PHY LTS 18-64,HOMECARE - SPOT,2103227043,1000079295
08.03.2021,ADULT SOCIAL CARE,LONDON CARE LTD,250.60,PHY LTS 65+,HOMECARE - C&V,2103226671,1000003398
08.03.2021,ADULT SOCIAL CARE,LONDON CARE LTD,250.60,PHY LTS 65+,HOMECARE - C&V,2103226611,1000003398
08.03.2021,ADULT SOCIAL CARE,LONDON CARE LTD,255.08,PHY LTS 65+,HOMECARE - C&V,2103226729,1000003398
08.03.2021,ADULT SOCIAL CARE,LONDON CARE LTD,255.09,PHY LTS 65+,HOMECARE - C&V,2103226756,1000003398
08.03.2021,ADULT SOCIAL CARE,LONDON CARE LTD,258.13,PHY LTS 65+,HOMECARE - C&V,2103226908,1000003398
08.03.2021,ADULT SOCIAL CARE,LONDON CARE LTD,259.57,PHY LTS 65+,HOMECARE - C&V,2103226645,1000003398
08.03.2021,ADULT SOCIAL CARE,LONDON CARE LTD,264.12,PHY LTS 65+,HOMECARE - C&V,2103226696,1000003398
08.03.2021,ADULT SOCIAL CARE,LONDON CARE LTD,273.07,PHY LTS 65+,HOMECARE - C&V,2103226763,1000003398
08.03.2021,ADULT SOCIAL CARE,LONDON CARE LTD,281.96,PHY LTS 65+,HOMECARE - C&V,2103226772,1000003398
08.03.2021,ADULT SOCIAL CARE,LONDON CARE LTD,304.33,PHY LTS 65+,HOMECARE - C&V,2103226775,1000003398
08.03.2021,ADULT SOCIAL CARE,LONDON CARE LTD,313.26,PHY LTS 65+,HOMECARE - C&V,2103226734,1000003398
08.03.2021,ADULT SOCIAL CARE,LONDON CARE LTD,317.73,PHY LTS 65+,HOMECARE - C&V,2103226584,1000003398
08.03.2021,ADULT SOCIAL CARE,LONDON CARE LTD,317.77,PHY LTS 65+,HOMECARE - C&V,2103226569,1000003398
08.03.2021,ADULT SOCIAL CARE,LONDON CARE LTD,326.73,PHY LTS 65+,HOMECARE - C&V,2103226750,1000003398
08.03.2021,ADULT SOCIAL CARE,LONDON CARE LTD,328.39,PHY LTS 65+,HOMECARE - C&V,2103226825,1000003398
08.03.2021,ADULT SOCIAL CARE,LONDON CARE LTD,337.31,PHY LTS 65+,HOMECARE - C&V,2103226609,1000003398
08.03.2021,ADULT SOCIAL CARE,LONDON CARE LTD,340.22,PHY LTS 65+,HOMECARE - C&V,2103226563,1000003398
08.03.2021,ADULT SOCIAL CARE,LONDON CARE LTD,349.16,PHY LTS 65+,HOMECARE - C&V,2103226682,1000003398
08.03.2021,ADULT SOCIAL CARE,LONDON CARE LTD,350.60,PHY LTS 65+,HOMECARE - C&V,2103226695,1000003398
08.03.2021,ADULT SOCIAL CARE,LONDON CARE LTD,353.57,PHY LTS 65+,HOMECARE - C&V,2103226636,1000003398
08.03.2021,ADULT SOCIAL CARE,LONDON CARE LTD,356.13,PHY LTS 65+,HOMECARE - C&V,2103226543,1000003398
08.03.2021,ADULT SOCIAL CARE,LONDON CARE LTD,357.00,PHY LTS 65+,HOMECARE - C&V,2103226635,1000003398
08.03.2021,ADULT SOCIAL CARE,LONDON CARE LTD,358.00,PHY LTS 65+,HOMECARE - C&V,2103226665,1000003398
08.03.2021,ADULT SOCIAL CARE,LONDON CARE LTD,361.25,PHY LTS 65+,HOMECARE - C&V,2103226587,1000003398
08.03.2021,ADULT SOCIAL CARE,LONDON CARE LTD,362.60,PHY LTS 65+,HOMECARE - C&V,2103226709,1000003398
08.03.2021,ADULT SOCIAL CARE,LONDON CARE LTD,362.61,PHY LTS 65+,HOMECARE - C&V,2103226710,1000003398
08.03.2021,ADULT SOCIAL CARE,LONDON CARE LTD,367.08,PHY LTS 65+,HOMECARE - C&V,2103226719,1000003398
08.03.2021,ADULT SOCIAL CARE,LONDON CARE LTD,374.00,PHY LTS 65+,HOMECARE - C&V,2103226874,1000003398
08.03.2021,ADULT SOCIAL CARE,LONDON CARE LTD,375.92,PHY LTS 65+,HOMECARE - C&V,2103226619,1000003398
08.03.2021,ADULT SOCIAL CARE,LONDON CARE LTD,376.04,PHY LTS 65+,HOMECARE - C&V,2103226818,1000003398
08.03.2021,ADULT SOCIAL CARE,LONDON CARE LTD,376.04,PHY LTS 65+,HOMECARE - C&V,2103226687,1000003398
08.03.2021,ADULT SOCIAL CARE,LONDON CARE LTD,376.04,PHY LTS 65+,HOMECARE - C&V,2103226685,1000003398
08.03.2021,ADULT SOCIAL CARE,LONDON CARE LTD,380.45,PHY LTS 65+,HOMECARE - C&V,2103226726,1000003398
08.03.2021,ADULT SOCIAL CARE,LONDON CARE LTD,380.51,PHY LTS 65+,HOMECARE - C&V,2103226653,1000003398
08.03.2021,ADULT SOCIAL CARE,LONDON CARE LTD,380.51,PHY LTS 65+,HOMECARE - C&V,2103226578,1000003398
08.03.2021,ADULT SOCIAL CARE,LONDON CARE LTD,402.76,PHY LTS 65+,HOMECARE - C&V,2103226667,1000003398
08.03.2021,ADULT SOCIAL CARE,LONDON CARE LTD,402.81,PHY LTS 65+,HOMECARE - C&V,2103226789,1000003398
08.03.2021,ADULT SOCIAL CARE,LONDON CARE LTD,411.77,PHY LTS 65+,HOMECARE - C&V,2103226558,1000003398
08.03.2021,ADULT SOCIAL CARE,LONDON CARE LTD,414.26,PHY LTS 65+,HOMECARE - C&V,2103226537,1000003398
08.03.2021,ADULT SOCIAL CARE,LONDON CARE LTD,420.72,PHY LTS 65+,HOMECARE - C&V,2103226790,1000003398
08.03.2021,ADULT SOCIAL CARE,LONDON CARE LTD,425.17,PHY LTS 65+,HOMECARE - C&V,2103226751,1000003398
08.03.2021,ADULT SOCIAL CARE,LONDON CARE LTD,429.60,PHY LTS 65+,HOMECARE - C&V,2103226683,1000003398
08.03.2021,ADULT SOCIAL CARE,LONDON CARE LTD,438.68,PHY LTS 65+,HOMECARE - C&V,2103226736,1000003398
08.03.2021,ADULT SOCIAL CARE,LONDON CARE LTD,443.16,PHY LTS 65+,HOMECARE - C&V,2103226748,1000003398
08.03.2021,ADULT SOCIAL CARE,LONDON CARE LTD,452.04,PHY LTS 65+,HOMECARE - C&V,2103226788,1000003398
08.03.2021,ADULT SOCIAL CARE,LONDON CARE LTD,456.45,PHY LTS 65+,HOMECARE - C&V,2103226774,1000003398
08.03.2021,ADULT SOCIAL CARE,LONDON CARE LTD,461.02,PHY LTS 65+,HOMECARE - C&V,2103226786,1000003398
08.03.2021,ADULT SOCIAL CARE,LONDON CARE LTD,471.75,PHY LTS 65+,HOMECARE - C&V,2103226601,1000003398
08.03.2021,ADULT SOCIAL CARE,LONDON CARE LTD,488.75,PHY LTS 65+,HOMECARE - C&V,2103226841,1000003398
08.03.2021,ADULT SOCIAL CARE,LONDON CARE LTD,488.75,PHY LTS 65+,HOMECARE - C&V,2103226800,1000003398
08.03.2021,ADULT SOCIAL CARE,LONDON CARE LTD,492.25,PHY LTS 65+,HOMECARE - C&V,2103226688,1000003398
08.03.2021,ADULT SOCIAL CARE,LONDON CARE LTD,492.29,PHY LTS 65+,HOMECARE - C&V,2103226906,1000003398
08.03.2021,ADULT SOCIAL CARE,LONDON CARE LTD,497.25,PHY LTS 65+,HOMECARE - C&V,2103226646,1000003398
08.03.2021,ADULT SOCIAL CARE,LONDON CARE LTD,498.89,PHY LTS 65+,HOMECARE - C&V,2103226733,1000003398
08.03.2021,ADULT SOCIAL CARE,LONDON CARE LTD,510.15,PHY LTS 65+,HOMECARE - C&V,2103226809,1000003398
08.03.2021,ADULT SOCIAL CARE,LONDON CARE LTD,510.15,PHY LTS 65+,HOMECARE - C&V,2103226603,1000003398
08.03.2021,ADULT SOCIAL CARE,LONDON CARE LTD,537.20,PHY LTS 65+,HOMECARE - C&V,2103226517,1000003398
08.03.2021,ADULT SOCIAL CARE,LONDON CARE LTD,541.14,PHY LTS 65+,HOMECARE - C&V,2103226503,1000003398
08.03.2021,ADULT SOCIAL CARE,LONDON CARE LTD,541.58,PHY LTS 65+,HOMECARE - C&V,2103226566,1000003398
08.03.2021,ADULT SOCIAL CARE,LONDON CARE LTD,552.50,PHY LTS 65+,HOMECARE - C&V,2103226598,1000003398
08.03.2021,ADULT SOCIAL CARE,LONDON CARE LTD,554.91,PHY LTS 65+,HOMECARE - C&V,2103226730,1000003398
08.03.2021,ADULT SOCIAL CARE,LONDON CARE LTD,584.78,PHY LTS 65+,HOMECARE - C&V,2103226865,1000003398
08.03.2021,ADULT SOCIAL CARE,LONDON CARE LTD,586.50,PHY LTS 65+,HOMECARE - C&V,2103226894,1000003398
08.03.2021,ADULT SOCIAL CARE,LONDON CARE LTD,586.50,PHY LTS 65+,HOMECARE - C&V,2103226835,1000003398
08.03.2021,ADULT SOCIAL CARE,LONDON CARE LTD,586.50,PHY LTS 65+,HOMECARE - C&V,2103226534,1000003398
08.03.2021,ADULT SOCIAL CARE,LONDON CARE LTD,586.50,PHY LTS 65+,HOMECARE - C&V,2103226511,1000003398
08.03.2021,ADULT SOCIAL CARE,LONDON CARE LTD,589.20,PHY LTS 65+,HOMECARE - C&V,2103226707,1000003398
08.03.2021,ADULT SOCIAL CARE,LONDON CARE LTD,599.25,PHY LTS 65+,HOMECARE - C&V,2103226506,1000003398
08.03.2021,ADULT SOCIAL CARE,LONDON CARE LTD,599.40,PHY LTS 65+,HOMECARE - C&V,2103226803,1000003398
08.03.2021,ADULT SOCIAL CARE,LONDON CARE LTD,599.79,PHY LTS 65+,HOMECARE - C&V,2103226765,1000003398
08.03.2021,ADULT SOCIAL CARE,LONDON CARE LTD,608.62,PHY LTS 65+,HOMECARE - C&V,2103226697,1000003398
08.03.2021,ADULT SOCIAL CARE,LONDON CARE LTD,611.36,PHY LTS 65+,HOMECARE - C&V,2103226681,1000003398
08.03.2021,ADULT SOCIAL CARE,LONDON CARE LTD,611.68,PHY LTS 65+,HOMECARE - C&V,2103226922,1000003398
08.03.2021,ADULT SOCIAL CARE,LONDON CARE LTD,613.21,PHY LTS 65+,HOMECARE - C&V,2103226675,1000003398
08.03.2021,ADULT SOCIAL CARE,LONDON CARE LTD,620.50,PHY LTS 65+,HOMECARE - C&V,2103226812,1000003398
08.03.2021,ADULT SOCIAL CARE,LONDON CARE LTD,622.16,PHY LTS 65+,HOMECARE - C&V,2103226693,1000003398
08.03.2021,ADULT SOCIAL CARE,LONDON CARE LTD,626.64,PHY LTS 65+,HOMECARE - C&V,2103226592,1000003398
08.03.2021,ADULT SOCIAL CARE,LONDON CARE LTD,628.74,PHY LTS 65+,HOMECARE - C&V,2103226833,1000003398
08.03.2021,ADULT SOCIAL CARE,LONDON CARE LTD,634.33,PHY LTS 65+,HOMECARE - C&V,2103226743,1000003398
08.03.2021,ADULT SOCIAL CARE,LONDON CARE LTD,635.59,PHY LTS 65+,HOMECARE - C&V,2103226738,1000003398
08.03.2021,ADULT SOCIAL CARE,LONDON CARE LTD,639.95,PHY LTS 65+,HOMECARE - C&V,2103226764,1000003398
08.03.2021,ADULT SOCIAL CARE,LONDON CARE LTD,641.75,PHY LTS 65+,HOMECARE - C&V,2103226648,1000003398
08.03.2021,ADULT SOCIAL CARE,LONDON CARE LTD,680.25,PHY LTS 65+,HOMECARE - C&V,2103226620,1000003398
08.03.2021,ADULT SOCIAL CARE,LONDON CARE LTD,682.84,PHY LTS 65+,HOMECARE - C&V,2103226501,1000003398
08.03.2021,ADULT SOCIAL CARE,LONDON CARE LTD,684.76,PHY LTS 65+,HOMECARE - C&V,2103226731,1000003398
08.03.2021,ADULT SOCIAL CARE,LONDON CARE LTD,699.44,PHY LTS 65+,HOMECARE - C&V,2103226862,1000003398
08.03.2021,ADULT SOCIAL CARE,LONDON CARE LTD,705.50,PHY LTS 65+,HOMECARE - C&V,2103226520,1000003398
08.03.2021,ADULT SOCIAL CARE,LONDON CARE LTD,711.26,PHY LTS 65+,HOMECARE - C&V,2103226607,1000003398
08.03.2021,ADULT SOCIAL CARE,LONDON CARE LTD,711.67,PHY LTS 65+,HOMECARE - C&V,2103226677,1000003398
08.03.2021,ADULT SOCIAL CARE,LONDON CARE LTD,714.00,PHY LTS 65+,HOMECARE - C&V,2103226568,1000003398
08.03.2021,ADULT SOCIAL CARE,LONDON CARE LTD,720.22,PHY LTS 65+,HOMECARE - C&V,2103226913,1000003398
08.03.2021,ADULT SOCIAL CARE,LONDON CARE LTD,726.75,PHY LTS 65+,HOMECARE - C&V,2103226654,1000003398
08.03.2021,ADULT SOCIAL CARE,LONDON CARE LTD,738.65,PHY LTS 65+,HOMECARE - C&V,2103226576,1000003398
08.03.2021,ADULT SOCIAL CARE,LONDON CARE LTD,749.40,PHY LTS 65+,HOMECARE - C&V,2103226529,1000003398
08.03.2021,ADULT SOCIAL CARE,LONDON CARE LTD,756.30,PHY LTS 65+,HOMECARE - C&V,2103226699,1000003398
08.03.2021,ADULT SOCIAL CARE,LONDON CARE LTD,756.41,PHY LTS 65+,HOMECARE - C&V,2103226571,1000003398
08.03.2021,ADULT SOCIAL CARE,LONDON CARE LTD,778.82,PHY LTS 65+,HOMECARE - C&V,2103226666,1000003398
08.03.2021,ADULT SOCIAL CARE,LONDON CARE LTD,783.14,PHY LTS 65+,HOMECARE - C&V,2103226510,1000003398
08.03.2021,ADULT SOCIAL CARE,LONDON CARE LTD,799.00,PHY LTS 65+,HOMECARE - C&V,2103226590,1000003398
08.03.2021,ADULT SOCIAL CARE,LONDON CARE LTD,805.50,PHY LTS 65+,HOMECARE - C&V,2103226744,1000003398
08.03.2021,ADULT SOCIAL CARE,LONDON CARE LTD,806.06,PHY LTS 65+,HOMECARE - C&V,2103226811,1000003398
08.03.2021,ADULT SOCIAL CARE,LONDON CARE LTD,816.20,PHY LTS 65+,HOMECARE - C&V,2103226861,1000003398
08.03.2021,ADULT SOCIAL CARE,LONDON CARE LTD,832.35,PHY LTS 65+,HOMECARE - C&V,2103226628,1000003398
08.03.2021,ADULT SOCIAL CARE,LONDON CARE LTD,833.00,PHY LTS 65+,HOMECARE - C&V,2103226855,1000003398
08.03.2021,ADULT SOCIAL CARE,LONDON CARE LTD,841.40,PHY LTS 65+,HOMECARE - C&V,2103226630,1000003398
08.03.2021,ADULT SOCIAL CARE,LONDON CARE LTD,845.75,PHY LTS 65+,HOMECARE - C&V,2103226848,1000003398
08.03.2021,ADULT SOCIAL CARE,LONDON CARE LTD,845.75,PHY LTS 65+,HOMECARE - C&V,2103226507,1000003398
08.03.2021,ADULT SOCIAL CARE,LONDON CARE LTD,850.00,PHY LTS 65+,HOMECARE - C&V,2103226549,1000003398
08.03.2021,ADULT SOCIAL CARE,LONDON CARE LTD,854.25,PHY LTS 65+,HOMECARE - C&V,2103226614,1000003398
08.03.2021,ADULT SOCIAL CARE,LONDON CARE LTD,854.87,PHY LTS 65+,HOMECARE - C&V,2103226612,1000003398
08.03.2021,ADULT SOCIAL CARE,LONDON CARE LTD,862.75,PHY LTS 65+,HOMECARE - C&V,2103226884,1000003398
08.03.2021,ADULT SOCIAL CARE,LONDON CARE LTD,863.92,PHY LTS 65+,HOMECARE - C&V,2103226927,1000003398
08.03.2021,ADULT SOCIAL CARE,LONDON CARE LTD,870.10,PHY LTS 65+,HOMECARE - C&V,2103226821,1000003398
08.03.2021,ADULT SOCIAL CARE,LONDON CARE LTD,872.71,PHY LTS 65+,HOMECARE - C&V,2103226910,1000003398
08.03.2021,ADULT SOCIAL CARE,LONDON CARE LTD,886.20,PHY LTS 65+,HOMECARE - C&V,2103226660,1000003398
08.03.2021,ADULT SOCIAL CARE,LONDON CARE LTD,886.98,PHY LTS 65+,HOMECARE - C&V,2103226909,1000003398
08.03.2021,ADULT SOCIAL CARE,LONDON CARE LTD,889.08,PHY LTS 65+,HOMECARE - C&V,2103226749,1000003398
08.03.2021,ADULT SOCIAL CARE,LONDON CARE LTD,899.48,PHY LTS 65+,HOMECARE - C&V,2103226567,1000003398
08.03.2021,ADULT SOCIAL CARE,LONDON CARE LTD,901.00,PHY LTS 65+,HOMECARE - C&V,2103226586,1000003398
08.03.2021,ADULT SOCIAL CARE,LONDON CARE LTD,904.12,PHY LTS 65+,HOMECARE - C&V,2103226718,1000003398
08.03.2021,ADULT SOCIAL CARE,LONDON CARE LTD,935.33,PHY LTS 65+,HOMECARE - C&V,2103226911,1000003398
08.03.2021,ADULT SOCIAL CARE,LONDON CARE LTD,944.36,PHY LTS 65+,HOMECARE - C&V,2103226669,1000003398
08.03.2021,ADULT SOCIAL CARE,LONDON CARE LTD,960.50,PHY LTS 65+,HOMECARE - C&V,2103226857,1000003398
08.03.2021,ADULT SOCIAL CARE,LONDON CARE LTD,962.25,PHY LTS 65+,HOMECARE - C&V,2103226676,1000003398
08.03.2021,ADULT SOCIAL CARE,LONDON CARE LTD,966.00,PHY LTS 65+,HOMECARE - C&V,2103226890,1000003398
08.03.2021,ADULT SOCIAL CARE,LONDON CARE LTD,974.27,PHY LTS 65+,HOMECARE - C&V,2103226553,1000003398
08.03.2021,ADULT SOCIAL CARE,LONDON CARE LTD,980.17,PHY LTS 65+,HOMECARE - C&V,2103226655,1000003398
08.03.2021,ADULT SOCIAL CARE,LONDON CARE LTD,980.28,PHY LTS 65+,HOMECARE - C&V,2103226760,1000003398
08.03.2021,ADULT SOCIAL CARE,LONDON CARE LTD,984.66,PHY LTS 65+,HOMECARE - C&V,2103226678,1000003398
08.03.2021,ADULT SOCIAL CARE,LONDON CARE LTD,989.31,PHY LTS 65+,HOMECARE - C&V,2103226781,1000003398
08.03.2021,ADULT SOCIAL CARE,LONDON CARE LTD,"1,011.41",PHY LTS 65+,HOMECARE - C&V,2103226637,1000003398
08.03.2021,ADULT SOCIAL CARE,LONDON CARE LTD,"1,029.08",PHY LTS 65+,HOMECARE - C&V,2103226659,1000003398
08.03.2021,ADULT SOCIAL CARE,LONDON CARE LTD,"1,033.76",PHY LTS 65+,HOMECARE - C&V,2103226686,1000003398
08.03.2021,ADULT SOCIAL CARE,LONDON CARE LTD,"1,033.87",PHY LTS 65+,HOMECARE - C&V,2103226605,1000003398
08.03.2021,ADULT SOCIAL CARE,LONDON CARE LTD,"1,047.29",PHY LTS 65+,HOMECARE - C&V,2103226929,1000003398
08.03.2021,ADULT SOCIAL CARE,LONDON CARE LTD,"1,054.47",PHY LTS 65+,HOMECARE - C&V,2103226579,1000003398
08.03.2021,ADULT SOCIAL CARE,LONDON CARE LTD,"1,061.72",PHY LTS 65+,HOMECARE - C&V,2103226508,1000003398
08.03.2021,ADULT SOCIAL CARE,LONDON CARE LTD,"1,079.50",PHY LTS 65+,HOMECARE - C&V,2103226919,1000003398
08.03.2021,ADULT SOCIAL CARE,LONDON CARE LTD,"1,079.50",PHY LTS 65+,HOMECARE - C&V,2103226912,1000003398
08.03.2021,ADULT SOCIAL CARE,LONDON CARE LTD,"1,092.25",PHY LTS 65+,HOMECARE - C&V,2103226541,1000003398
08.03.2021,ADULT SOCIAL CARE,LONDON CARE LTD,"1,096.50",PHY LTS 65+,HOMECARE - C&V,2103226555,1000003398
08.03.2021,ADULT SOCIAL CARE,LONDON CARE LTD,"1,100.98",PHY LTS 65+,HOMECARE - C&V,2103226807,1000003398
08.03.2021,ADULT SOCIAL CARE,LONDON CARE LTD,"1,118.90",PHY LTS 65+,HOMECARE - C&V,2103226631,1000003398
08.03.2021,ADULT SOCIAL CARE,LONDON CARE LTD,"1,123.37",PHY LTS 65+,HOMECARE - C&V,2103226626,1000003398
08.03.2021,ADULT SOCIAL CARE,LONDON CARE LTD,"1,127.91",PHY LTS 65+,HOMECARE - C&V,2103226773,1000003398
08.03.2021,ADULT SOCIAL CARE,LONDON CARE LTD,"1,141.27",PHY LTS 65+,HOMECARE - C&V,2103226583,1000003398
08.03.2021,ADULT SOCIAL CARE,LONDON CARE LTD,"1,143.25",PHY LTS 65+,HOMECARE - C&V,2103226624,1000003398
08.03.2021,ADULT SOCIAL CARE,LONDON CARE LTD,"1,150.22",PHY LTS 65+,HOMECARE - C&V,2103226802,1000003398
08.03.2021,ADULT SOCIAL CARE,LONDON CARE LTD,"1,157.61",PHY LTS 65+,HOMECARE - C&V,2103226843,1000003398
08.03.2021,ADULT SOCIAL CARE,LONDON CARE LTD,"1,159.28",PHY LTS 65+,HOMECARE - C&V,2103226808,1000003398
08.03.2021,ADULT SOCIAL CARE,LONDON CARE LTD,"1,160.25",PHY LTS 65+,HOMECARE - C&V,2103226521,1000003398
08.03.2021,ADULT SOCIAL CARE,LONDON CARE LTD,"1,168.75",PHY LTS 65+,HOMECARE - C&V,2103226925,1000003398
08.03.2021,ADULT SOCIAL CARE,LONDON CARE LTD,"1,168.75",PHY LTS 65+,HOMECARE - C&V,2103226846,1000003398
08.03.2021,ADULT SOCIAL CARE,LONDON CARE LTD,"1,190.00",PHY LTS 65+,HOMECARE - C&V,2103226596,1000003398
08.03.2021,ADULT SOCIAL CARE,LONDON CARE LTD,"1,194.25",PHY LTS 65+,HOMECARE - C&V,2103226916,1000003398
08.03.2021,ADULT SOCIAL CARE,LONDON CARE LTD,"1,194.25",PHY LTS 65+,HOMECARE - C&V,2103226799,1000003398
08.03.2021,ADULT SOCIAL CARE,LONDON CARE LTD,"1,199.42",PHY LTS 65+,HOMECARE - C&V,2103226714,1000003398
08.03.2021,ADULT SOCIAL CARE,LONDON CARE LTD,"1,212.87",PHY LTS 65+,HOMECARE - C&V,2103226684,1000003398
08.03.2021,ADULT SOCIAL CARE,LONDON CARE LTD,"1,219.75",PHY LTS 65+,HOMECARE - C&V,2103226608,1000003398
08.03.2021,ADULT SOCIAL CARE,LONDON CARE LTD,"1,239.72",PHY LTS 65+,HOMECARE - C&V,2103226551,1000003398
08.03.2021,ADULT SOCIAL CARE,LONDON CARE LTD,"1,248.56",PHY LTS 65+,HOMECARE - C&V,2103226509,1000003398
08.03.2021,ADULT SOCIAL CARE,LONDON CARE LTD,"1,279.89",PHY LTS 65+,HOMECARE - C&V,2103226663,1000003398
08.03.2021,ADULT SOCIAL CARE,LONDON CARE LTD,"1,280.02",PHY LTS 65+,HOMECARE - C&V,2103226767,1000003398
08.03.2021,ADULT SOCIAL CARE,LONDON CARE LTD,"1,334.50",PHY LTS 65+,HOMECARE - C&V,2103226593,1000003398
08.03.2021,ADULT SOCIAL CARE,LONDON CARE LTD,"1,338.18",PHY LTS 65+,HOMECARE - C&V,2103226690,1000003398
08.03.2021,ADULT SOCIAL CARE,LONDON CARE LTD,"1,353.16",PHY LTS 65+,HOMECARE - C&V,2103226502,1000003398
08.03.2021,ADULT SOCIAL CARE,LONDON CARE LTD,"1,360.00",PHY LTS 65+,HOMECARE - C&V,2103226889,1000003398
08.03.2021,ADULT SOCIAL CARE,LONDON CARE LTD,"1,436.41",PHY LTS 65+,HOMECARE - C&V,2103226866,1000003398
08.03.2021,ADULT SOCIAL CARE,LONDON CARE LTD,"1,508.31",PHY LTS 65+,HOMECARE - C&V,2103226753,1000003398
08.03.2021,ADULT SOCIAL CARE,LONDON CARE LTD,"1,559.75",PHY LTS 65+,HOMECARE - C&V,2103226545,1000003398
08.03.2021,ADULT SOCIAL CARE,LONDON CARE LTD,"1,651.29",PHY LTS 65+,HOMECARE - C&V,2103226924,1000003398
08.03.2021,ADULT SOCIAL CARE,LONDON CARE LTD,"1,674.50",PHY LTS 65+,HOMECARE - C&V,2103226552,1000003398
08.03.2021,ADULT SOCIAL CARE,LONDON CARE LTD,"1,683.00",PHY LTS 65+,HOMECARE - C&V,2103226530,1000003398
08.03.2021,ADULT SOCIAL CARE,LONDON CARE LTD,"1,785.00",PHY LTS 65+,HOMECARE - C&V,2103226544,1000003398
08.03.2021,ADULT SOCIAL CARE,LONDON CARE LTD,"1,916.75",PHY LTS 65+,HOMECARE - C&V,2103226885,1000003398
08.03.2021,ADULT SOCIAL CARE,LONDON CARE LTD,"1,925.25",PHY LTS 65+,HOMECARE - C&V,2103226610,1000003398
08.03.2021,ADULT SOCIAL CARE,LONDON CARE LTD,"1,931.93",PHY LTS 65+,HOMECARE - C&V,2103226524,1000003398
08.03.2021,ADULT SOCIAL CARE,LONDON CARE LTD,"1,952.97",PHY LTS 65+,HOMECARE - C&V,2103226548,1000003398
08.03.2021,ADULT SOCIAL CARE,LONDON CARE LTD,"1,973.68",PHY LTS 65+,HOMECARE - C&V,2103226854,1000003398
08.03.2021,ADULT SOCIAL CARE,LONDON CARE LTD,"2,004.81",PHY LTS 65+,HOMECARE - C&V,2103226761,1000003398
08.03.2021,ADULT SOCIAL CARE,LONDON CARE LTD,"2,032.03",PHY LTS 65+,HOMECARE - C&V,2103226766,1000003398
08.03.2021,ADULT SOCIAL CARE,LONDON CARE LTD,"2,048.50",PHY LTS 65+,HOMECARE - C&V,2103226527,1000003398
08.03.2021,ADULT SOCIAL CARE,LONDON CARE LTD,"2,089.88",PHY LTS 65+,HOMECARE - C&V,2103226674,1000003398
08.03.2021,ADULT SOCIAL CARE,LONDON CARE LTD,"2,120.75",PHY LTS 65+,HOMECARE - C&V,2103226539,1000003398
08.03.2021,ADULT SOCIAL CARE,LONDON CARE LTD,"2,125.69",PHY LTS 65+,HOMECARE - C&V,2103226559,1000003398
08.03.2021,ADULT SOCIAL CARE,LONDON CARE LTD,"2,137.75",PHY LTS 65+,HOMECARE - C&V,2103226523,1000003398
08.03.2021,ADULT SOCIAL CARE,LONDON CARE LTD,"2,159.00",PHY LTS 65+,HOMECARE - C&V,2103226633,1000003398
08.03.2021,ADULT SOCIAL CARE,LONDON CARE LTD,"2,182.08",PHY LTS 65+,HOMECARE - C&V,2103226920,1000003398
08.03.2021,ADULT SOCIAL CARE,LONDON CARE LTD,"2,193.04",PHY LTS 65+,HOMECARE - C&V,2103226705,1000003398
08.03.2021,ADULT SOCIAL CARE,LONDON CARE LTD,"2,219.76",PHY LTS 65+,HOMECARE - C&V,2103226640,1000003398
08.03.2021,ADULT SOCIAL CARE,LONDON CARE LTD,"2,282.56",PHY LTS 65+,HOMECARE - C&V,2103226627,1000003398
08.03.2021,ADULT SOCIAL CARE,LONDON CARE LTD,"2,290.75",PHY LTS 65+,HOMECARE - C&V,2103226625,1000003398
08.03.2021,ADULT SOCIAL CARE,LONDON CARE LTD,"2,327.55",PHY LTS 65+,HOMECARE - C&V,2103226557,1000003398
08.03.2021,ADULT SOCIAL CARE,LONDON CARE LTD,"2,365.08",PHY LTS 65+,HOMECARE - C&V,2103226562,1000003398
08.03.2021,ADULT SOCIAL CARE,LONDON CARE LTD,"2,425.75",PHY LTS 65+,HOMECARE - C&V,2103226621,1000003398
08.03.2021,ADULT SOCIAL CARE,LONDON CARE LTD,"2,425.80",PHY LTS 65+,HOMECARE - C&V,2103226689,1000003398
08.03.2021,ADULT SOCIAL CARE,LONDON CARE LTD,"2,427.57",PHY LTS 65+,HOMECARE - C&V,2103226863,1000003398
08.03.2021,ADULT SOCIAL CARE,LONDON CARE LTD,"2,443.75",PHY LTS 65+,HOMECARE - C&V,2103226573,1000003398
08.03.2021,ADULT SOCIAL CARE,LONDON CARE LTD,"2,486.25",PHY LTS 65+,HOMECARE - C&V,2103226547,1000003398
08.03.2021,ADULT SOCIAL CARE,LONDON CARE LTD,"2,618.00",PHY LTS 65+,HOMECARE - C&V,2103226893,1000003398
08.03.2021,ADULT SOCIAL CARE,LONDON CARE LTD,"2,669.00",PHY LTS 65+,HOMECARE - C&V,2103226896,1000003398
08.03.2021,ADULT SOCIAL CARE,LONDON CARE LTD,"2,673.25",PHY LTS 65+,HOMECARE - C&V,2103226819,1000003398
08.03.2021,ADULT SOCIAL CARE,LONDON CARE LTD,"2,837.70",PHY LTS 65+,HOMECARE - C&V,2103226918,1000003398
08.03.2021,ADULT SOCIAL CARE,LONDON CARE LTD,"3,003.29",PHY LTS 65+,HOMECARE - C&V,2103226852,1000003398
08.03.2021,ADULT SOCIAL CARE,LONDON CARE LTD,"3,079.30",PHY LTS 65+,HOMECARE - C&V,2103226757,1000003398
08.03.2021,ADULT SOCIAL CARE,LONDON CARE LTD,"3,164.36",PHY LTS 65+,HOMECARE - C&V,2103226505,1000003398
08.03.2021,ADULT SOCIAL CARE,LONDON CARE LTD,"3,401.49",PHY LTS 65+,HOMECARE - C&V,2103226577,1000003398
08.03.2021,ADULT SOCIAL CARE,LONDON CARE LTD,"5,276.50",PHY LTS 65+,HOMECARE - C&V,2103226711,1000003398
08.03.2021,ADULT SOCIAL CARE,SUPREME CARE SERVICES LTD,488.60,PHY LTS 65+,HOMECARE - C&V,2103227120,1000059416
08.03.2021,ADULT SOCIAL CARE,SUPREME CARE SERVICES LTD,610.74,PHY LTS 65+,HOMECARE - C&V,2103227141,1000059416
08.03.2021,ADULT SOCIAL CARE,SUPREME CARE SERVICES LTD,641.29,PHY LTS 65+,HOMECARE - C&V,2103227118,1000059416
08.03.2021,ADULT SOCIAL CARE,SUPREME CARE SERVICES LTD,"2,198.70",PHY LTS 65+,HOMECARE - C&V,2103227123,1000059416
08.03.2021,ADULT SOCIAL CARE,WESTMINSTER HOMECARE LTD,768.17,PHY LTS 65+,HOMECARE - C&V,2103227170,1000075287
08.03.2021,ADULT SOCIAL CARE,THAMES HOMECARE SERVICE LTD,281.64,PHY LTS 65+,HOMECARE - C&V,2103227044,1000079295
08.03.2021,ADULT SOCIAL CARE,MEDACS HOMECARE,335.96,PHY LTS 65+,HOMECARE - SPOT,2103226981,11287415
08.03.2021,ADULT SOCIAL CARE,MEDACS HOMECARE,361.25,PHY LTS 65+,HOMECARE - SPOT,2103226980,11287415
08.03.2021,ADULT SOCIAL CARE,LONDON CARE LTD,508.03,PHY LTS 65+,HOMECARE - SPOT,2103226870,1000003398
08.03.2021,ADULT SOCIAL CARE,CARE DIRECT UK LTD,559.13,PHY LTS 65+,HOMECARE - SPOT,2103227153,1000066322
08.03.2021,ADULT SOCIAL CARE,CARE DIRECT UK LTD,559.13,PHY LTS 65+,HOMECARE - SPOT,2103226983,1000066322
08.03.2021,ADULT SOCIAL CARE,CARE DIRECT UK LTD,621.25,PHY LTS 65+,HOMECARE - SPOT,2103227156,1000066322
08.03.2021,ADULT SOCIAL CARE,CARE DIRECT UK LTD,621.25,PHY LTS 65+,HOMECARE - SPOT,2103226985,1000066322
08.03.2021,ADULT SOCIAL CARE,WESTMINSTER HOMECARE LTD,407.22,PHY LTS 65+,HOMECARE - SPOT,2103227176,1000075287
08.03.2021,ADULT SOCIAL CARE,WESTMINSTER HOMECARE LTD,499.76,PHY LTS 65+,HOMECARE - SPOT,2103227175,1000075287
08.03.2021,ADULT SOCIAL CARE,WESTMINSTER HOMECARE LTD,536.78,PHY LTS 65+,HOMECARE - SPOT,2103227178,1000075287
08.03.2021,ADULT SOCIAL CARE,WESTMINSTER HOMECARE LTD,652.47,PHY LTS 65+,HOMECARE - SPOT,2103227158,1000075287
08.03.2021,ADULT SOCIAL CARE,WESTMINSTER HOMECARE LTD,684.86,PHY LTS 65+,HOMECARE - SPOT,2103227167,1000075287
08.03.2021,ADULT SOCIAL CARE,WESTMINSTER HOMECARE LTD,814.45,PHY LTS 65+,HOMECARE - SPOT,2103227159,1000075287
08.03.2021,ADULT SOCIAL CARE,WESTMINSTER HOMECARE LTD,"1,027.31",PHY LTS 65+,HOMECARE - SPOT,2103227168,1000075287
08.03.2021,ADULT SOCIAL CARE,WESTMINSTER HOMECARE LTD,"1,193.89",PHY LTS 65+,HOMECARE - SPOT,2103227165,1000075287
08.03.2021,ADULT SOCIAL CARE,WESTMINSTER HOMECARE LTD,"1,374.38",PHY LTS 65+,HOMECARE - SPOT,2103227173,1000075287
08.03.2021,ADULT SOCIAL CARE,WESTMINSTER HOMECARE LTD,"1,439.16",PHY LTS 65+,HOMECARE - SPOT,2103227160,1000075287
08.03.2021,ADULT SOCIAL CARE,WESTMINSTER HOMECARE LTD,"1,628.88",PHY LTS 65+,HOMECARE - SPOT,2103227166,1000075287
08.03.2021,ADULT SOCIAL CARE,THAMES HOMECARE SERVICE LTD,268.01,PHY LTS 65+,HOMECARE - SPOT,2103227028,1000079295
08.03.2021,ADULT SOCIAL CARE,THAMES HOMECARE SERVICE LTD,268.01,PHY LTS 65+,HOMECARE - SPOT,2103226993,1000079295
08.03.2021,ADULT SOCIAL CARE,THAMES HOMECARE SERVICE LTD,272.55,PHY LTS 65+,HOMECARE - SPOT,2103226989,1000079295
08.03.2021,ADULT SOCIAL CARE,THAMES HOMECARE SERVICE LTD,286.18,PHY LTS 65+,HOMECARE - SPOT,2103227046,1000079295
08.03.2021,ADULT SOCIAL CARE,THAMES HOMECARE SERVICE LTD,322.52,PHY LTS 65+,HOMECARE - SPOT,2103227038,1000079295
08.03.2021,ADULT SOCIAL CARE,THAMES HOMECARE SERVICE LTD,336.15,PHY LTS 65+,HOMECARE - SPOT,2103227037,1000079295
08.03.2021,ADULT SOCIAL CARE,THAMES HOMECARE SERVICE LTD,349.77,PHY LTS 65+,HOMECARE - SPOT,2103227035,1000079295
08.03.2021,ADULT SOCIAL CARE,THAMES HOMECARE SERVICE LTD,377.03,PHY LTS 65+,HOMECARE - SPOT,2103227015,1000079295
08.03.2021,ADULT SOCIAL CARE,THAMES HOMECARE SERVICE LTD,445.17,PHY LTS 65+,HOMECARE - SPOT,2103227004,1000079295
08.03.2021,ADULT SOCIAL CARE,THAMES HOMECARE SERVICE LTD,499.68,PHY LTS 65+,HOMECARE - SPOT,2103227021,1000079295
08.03.2021,ADULT SOCIAL CARE,THAMES HOMECARE SERVICE LTD,508.76,PHY LTS 65+,HOMECARE - SPOT,2103227065,1000079295
08.03.2021,ADULT SOCIAL CARE,THAMES HOMECARE SERVICE LTD,508.76,PHY LTS 65+,HOMECARE - SPOT,2103227060,1000079295
08.03.2021,ADULT SOCIAL CARE,THAMES HOMECARE SERVICE LTD,572.36,PHY LTS 65+,HOMECARE - SPOT,2103227066,1000079295
08.03.2021,ADULT SOCIAL CARE,THAMES HOMECARE SERVICE LTD,572.36,PHY LTS 65+,HOMECARE - SPOT,2103227024,1000079295
08.03.2021,ADULT SOCIAL CARE,THAMES HOMECARE SERVICE LTD,572.36,PHY LTS 65+,HOMECARE - SPOT,2103227001,1000079295
08.03.2021,ADULT SOCIAL CARE,THAMES HOMECARE SERVICE LTD,599.61,PHY LTS 65+,HOMECARE - SPOT,2103227055,1000079295
08.03.2021,ADULT SOCIAL CARE,THAMES HOMECARE SERVICE LTD,608.70,PHY LTS 65+,HOMECARE - SPOT,2103227051,1000079295
08.03.2021,ADULT SOCIAL CARE,THAMES HOMECARE SERVICE LTD,608.70,PHY LTS 65+,HOMECARE - SPOT,2103227002,1000079295
08.03.2021,ADULT SOCIAL CARE,THAMES HOMECARE SERVICE LTD,640.49,PHY LTS 65+,HOMECARE - SPOT,2103226992,1000079295
08.03.2021,ADULT SOCIAL CARE,THAMES HOMECARE SERVICE LTD,654.12,PHY LTS 65+,HOMECARE - SPOT,2103227058,1000079295
08.03.2021,ADULT SOCIAL CARE,THAMES HOMECARE SERVICE LTD,663.21,PHY LTS 65+,HOMECARE - SPOT,2103227011,1000079295
08.03.2021,ADULT SOCIAL CARE,THAMES HOMECARE SERVICE LTD,699.55,PHY LTS 65+,HOMECARE - SPOT,2103227020,1000079295
08.03.2021,ADULT SOCIAL CARE,THAMES HOMECARE SERVICE LTD,699.55,PHY LTS 65+,HOMECARE - SPOT,2103227016,1000079295
08.03.2021,ADULT SOCIAL CARE,THAMES HOMECARE SERVICE LTD,763.14,PHY LTS 65+,HOMECARE - SPOT,2103226994,1000079295
08.03.2021,ADULT SOCIAL CARE,THAMES HOMECARE SERVICE LTD,772.23,PHY LTS 65+,HOMECARE - SPOT,2103227036,1000079295
08.03.2021,ADULT SOCIAL CARE,THAMES HOMECARE SERVICE LTD,781.31,PHY LTS 65+,HOMECARE - SPOT,2103227013,1000079295
08.03.2021,ADULT SOCIAL CARE,THAMES HOMECARE SERVICE LTD,799.48,PHY LTS 65+,HOMECARE - SPOT,2103227041,1000079295
08.03.2021,ADULT SOCIAL CARE,THAMES HOMECARE SERVICE LTD,"1,044.78",PHY LTS 65+,HOMECARE - SPOT,2103227032,1000079295
08.03.2021,ADULT SOCIAL CARE,THAMES HOMECARE SERVICE LTD,"1,480.86",PHY LTS 65+,HOMECARE - SPOT,2103226990,1000079295
08.03.2021,ADULT SOCIAL CARE,SUPREME CARE SERVICES LTD,396.41,PHY STS 18-64,HOMECARE - IC,2103227134,1000059416
08.03.2021,ADULT SOCIAL CARE,SUPREME CARE SERVICES LTD,405.71,PHY STS 18-64,HOMECARE - IC,2103227124,1000059416
08.03.2021,ADULT SOCIAL CARE,SUPREME CARE SERVICES LTD,488.60,PHY STS 18-64,HOMECARE - IC,2103227132,1000059416
08.03.2021,ADULT SOCIAL CARE,SUPREME CARE SERVICES LTD,"1,007.73",PHY STS 18-64,HOMECARE - IC,2103227111,1000059416
08.03.2021,ADULT SOCIAL CARE,SUPREME CARE SERVICES LTD,"2,196.08",PHY STS 18-64,HOMECARE - IC,2103227125,1000059416
08.03.2021,ADULT SOCIAL CARE,THAMES HOMECARE SERVICE LTD,699.55,PHY STS 18-64,HOMECARE - IC,2103227042,1000079295
08.03.2021,ADULT SOCIAL CARE,THAMES HOMECARE SERVICE LTD,826.74,PHY STS 18-64,HOMECARE - IC,2103227059,1000079295
08.03.2021,ADULT SOCIAL CARE,LONDON CARE LTD,280.48,PHY STS 65+,HOMECARE - IC,2103226694,1000003398
08.03.2021,ADULT SOCIAL CARE,LONDON CARE LTD,283.06,PHY STS 65+,HOMECARE - IC,2103226880,1000003398
08.03.2021,ADULT SOCIAL CARE,LONDON CARE LTD,333.08,PHY STS 65+,HOMECARE - IC,2103226516,1000003398
08.03.2021,ADULT SOCIAL CARE,LONDON CARE LTD,341.33,PHY STS 65+,HOMECARE - IC,2103226724,1000003398
08.03.2021,ADULT SOCIAL CARE,LONDON CARE LTD,489.32,PHY STS 65+,HOMECARE - IC,2103226921,1000003398
08.03.2021,ADULT SOCIAL CARE,LONDON CARE LTD,602.00,PHY STS 65+,HOMECARE - IC,2103226864,1000003398
08.03.2021,ADULT SOCIAL CARE,LONDON CARE LTD,707.49,PHY STS 65+,HOMECARE - IC,2103226658,1000003398
08.03.2021,ADULT SOCIAL CARE,LONDON CARE LTD,839.49,PHY STS 65+,HOMECARE - IC,2103226536,1000003398
08.03.2021,ADULT SOCIAL CARE,LONDON CARE LTD,"1,138.58",PHY STS 65+,HOMECARE - IC,2103226542,1000003398
08.03.2021,ADULT SOCIAL CARE,SUPREME CARE SERVICES LTD,440.61,PHY STS 65+,HOMECARE - IC,2103227113,1000059416
08.03.2021,ADULT SOCIAL CARE,SUPREME CARE SERVICES LTD,610.76,PHY STS 65+,HOMECARE - IC,2103227140,1000059416
08.03.2021,ADULT SOCIAL CARE,SUPREME CARE SERVICES LTD,977.20,PHY STS 65+,HOMECARE - IC,2103227131,1000059416
08.03.2021,ADULT SOCIAL CARE,SUPREME CARE SERVICES LTD,"1,047.00",PHY STS 65+,HOMECARE - IC,2103227116,1000059416
08.03.2021,ADULT SOCIAL CARE,SUPREME CARE SERVICES LTD,"1,090.63",PHY STS 65+,HOMECARE - IC,2103227149,1000059416
08.03.2021,ADULT SOCIAL CARE,SUPREME CARE SERVICES LTD,"1,221.50",PHY STS 65+,HOMECARE - IC,2103227133,1000059416
08.03.2021,ADULT SOCIAL CARE,SUPREME CARE SERVICES LTD,"1,265.13",PHY STS 65+,HOMECARE - IC,2103227152,1000059416
08.03.2021,ADULT SOCIAL CARE,SUPREME CARE SERVICES LTD,"1,465.80",PHY STS 65+,HOMECARE - IC,2103227130,1000059416
08.03.2021,ADULT SOCIAL CARE,SUPREME CARE SERVICES LTD,"1,465.80",PHY STS 65+,HOMECARE - IC,2103227119,1000059416
08.03.2021,ADULT SOCIAL CARE,SUPREME CARE SERVICES LTD,"2,198.70",PHY STS 65+,HOMECARE - IC,2103227147,1000059416
08.03.2021,ADULT SOCIAL CARE,SUPREME CARE SERVICES LTD,"2,259.78",PHY STS 65+,HOMECARE - IC,2103227145,1000059416
08.03.2021,ADULT SOCIAL CARE,SUPREME CARE SERVICES LTD,"3,001.40",PHY STS 65+,HOMECARE - IC,2103227115,1000059416
08.03.2021,ADULT SOCIAL CARE,SUPREME CARE SERVICES LTD,"3,124.13",PHY STS 65+,HOMECARE - IC,2103227148,1000059416
08.03.2021,ADULT SOCIAL CARE,SUPREME CARE SERVICES LTD,"3,836.96",PHY STS 65+,HOMECARE - IC,2103227135,1000059416
08.03.2021,ADULT SOCIAL CARE,WESTMINSTER HOMECARE LTD,259.16,PHY STS 65+,HOMECARE - IC,2103227177,1000075287
08.03.2021,ADULT SOCIAL CARE,THAMES HOMECARE SERVICE LTD,286.18,PHY STS 65+,HOMECARE - IC,2103227008,1000079295
08.03.2021,ADULT SOCIAL CARE,THAMES HOMECARE SERVICE LTD,377.03,PHY STS 65+,HOMECARE - IC,2103227012,1000079295
08.03.2021,ADULT SOCIAL CARE,THAMES HOMECARE SERVICE LTD,413.37,PHY STS 65+,HOMECARE - IC,2103227056,1000079295
08.03.2021,ADULT SOCIAL CARE,THAMES HOMECARE SERVICE LTD,558.73,PHY STS 65+,HOMECARE - IC,2103227031,1000079295
08.03.2021,ADULT SOCIAL CARE,THAMES HOMECARE SERVICE LTD,663.21,PHY STS 65+,HOMECARE - IC,2103226991,1000079295
08.03.2021,ADULT SOCIAL CARE,LONDON CARE LTD,250.60,SEN LTS 65+,HOMECARE - C&V,2103226722,1000003398
08.03.2021,ADULT SOCIAL CARE,LONDON CARE LTD,"1,324.88",SEN LTS 65+,HOMECARE - C&V,2103226522,1000003398
08.03.2021,ADULT SOCIAL CARE,THAMES HOMECARE SERVICE LTD,304.35,SEN LTS 65+,HOMECARE - SPOT,2103227027,1000079295
08.03.2021,ADULT SOCIAL CARE,BEDE CAFE PROJECT,880.00,SOCIAL ISOLATION,DAYCARE,2103226962,1553877
08.03.2021,ADULT SOCIAL CARE,LONDON CARE LTD,469.88,SOCIAL ISOLATION,HOMECARE - C&V,2103226897,1000003398
08.03.2021,ADULT SOCIAL CARE,LONDON CARE LTD,609.27,SOCIAL ISOLATION,HOMECARE - C&V,2103226662,1000003398
08.03.2021,ADULT SOCIAL CARE,LONDON CARE LTD,"1,041.25",SOCIAL ISOLATION,HOMECARE - C&V,2103226856,1000003398
08.03.2021,ADULT SOCIAL CARE,LONDON CARE LTD,"1,262.25",SOCIAL ISOLATION,HOMECARE - C&V,2103226926,1000003398
08.03.2021,ADULT SOCIAL CARE,LONDON CARE LTD,"1,485.90",SOCIAL ISOLATION,HOMECARE - C&V,2103226888,1000003398
08.03.2021,ADULT SOCIAL CARE,WESTMINSTER HOMECARE LTD,907.00,SOCIAL ISOLATION,HOMECARE - SPOT,2103227171,1000075287
08.03.2021,ASSET MANAGEMENT,ANTHONY GOLD SOLICITORS,"2,600.00",DISREPAIR,PAYMENTS FOR LEGAL SERVICES,2103219050,1000050198
08.03.2021,ASSET MANAGEMENT,STABILIS ASSOCIATES LTD,"7,760.58",REPAIRS OPERATIONS,PROFESSIONAL FEES,5902458766,1000082512
08.03.2021,CENTRAL FUNCTIONS,NPOWER LTD,"3,154.20",HEATING ACCOUNT,ELECTRICITY,5902458810,1000078994
08.03.2021,CENTRAL FUNCTIONS,NPOWER LTD,"5,180.42",HEATING ACCOUNT,ELECTRICITY,5902458810,1000078994
08.03.2021,CENTRAL FUNCTIONS,IRRV,"9,800.00",OPERATIONAL TEAM,TRAINING,5902458703,1153371
08.03.2021,CHIEF EXECUTIVE,CARTER JONAS LLP,672.50,CAPITAL PS (REGEN),CONSTRUCTION FEES,5902458655,1000073124
08.03.2021,CHIEF EXECUTIVE'S OFFICE,INFINITY NETWORKS LTD,386.00,CHIEF EXECUTIVE'S OFFICE,COMMS & COMPUTING CONTRACT CHARGES,5902458790,1000035571
08.03.2021,CHIEF EXECUTIVE'S OFFICE,NEW LOCAL GOVERNMENT NETWORK LTD,"12,900.00",CHIEF EXECUTIVE'S OFFICE,SUBSCRIPTIONS,5902458757,1000004785
08.03.2021,CHIEF EXECUTIVE'S OFFICE,TREE SHEPHERD LTD,"100,000.00",ELEPHANT & CASTLE,GRANTS,5902458775,1000076895
08.03.2021,CHILDREN AND ADULT,ECOLOGY CONSULANCY LTD,"1,665.00",CAPITAL PS (EDUCATION),CONSTRUCTION,5902458728,1000083939
08.03.2021,CHILDREN AND ADULT,WATERMAN INFRASTRUCTURE & ENVIRONMENT LTD,"21,725.00",CAPITAL PS (EDUCATION),CONSTRUCTION FEES,5902458686,1000060529
08.03.2021,CHILDREN AND ADULT,PELLINGS LLP,481.25,CAPITAL PS (EDUCATION),FIT-OUT,5902458761,1009262
08.03.2021,CHILDREN AND ADULT,PELLINGS LLP,481.25,CAPITAL PS (EDUCATION),FIT-OUT,5902458759,1009262
08.03.2021,CHILDREN AND ADULT,PELLINGS LLP,962.50,CAPITAL PS (EDUCATION),FIT-OUT,5902458765,1009262
08.03.2021,CHILDREN AND ADULT,PELLINGS LLP,962.50,CAPITAL PS (EDUCATION),FIT-OUT,5902458763,1009262
08.03.2021,CHILDREN AND FAMILIES,REDACTED PERSONAL DATA,302.73,16 PLUS TEAM,OTHER PAYMENTS FOR CLIENTS,REDACTED,REDACTED
08.03.2021,CHILDREN AND FAMILIES,REDACTED PERSONAL DATA,300.00,CARELEAVER UNIV SUPP,CLIENT TRANSPORT,REDACTED,REDACTED
08.03.2021,CHILDREN AND FAMILIES,REDACTED PERSONAL DATA,"1,200.00",CARELEAVER UNIV SUPP,OTHER PAYMENTS FOR CLIENTS,REDACTED,REDACTED
08.03.2021,CHILDREN AND FAMILIES,STONELAKE LONDON LTD,"16,800.00",CHILDREN�S RESID,EXTERNAL AGENCIES AND BODIES,2103227100,1000080075
08.03.2021,CHILDREN AND FAMILIES,TACT,306.00,FRIENDS & FAMILY FOSTERING,EXTERNAL AGENCIES AND BODIES,2103226942,1000012941
08.03.2021,CHILDREN AND FAMILIES,FIVE RIVERS CHILD CARE LTD,"3,065.20",FRIENDS & FAMILY FOSTERING,EXTERNAL AGENCIES AND BODIES,2103226945,1000018792
08.03.2021,CHILDREN AND FAMILIES,FIVE RIVERS CHILD CARE LTD,"3,065.20",FRIENDS & FAMILY FOSTERING,EXTERNAL AGENCIES AND BODIES,2103226943,1000018792
08.03.2021,CHILDREN AND FAMILIES,FIVE RIVERS CHILD CARE LTD,"3,181.60",FRIENDS & FAMILY FOSTERING,EXTERNAL AGENCIES AND BODIES,2103226940,1000018792
08.03.2021,CHILDREN AND FAMILIES,GREATER LONDON FOSTERING,"2,968.00",FRIENDS & FAMILY FOSTERING,EXTERNAL AGENCIES AND BODIES,2103227106,1000029184
08.03.2021,CHILDREN AND FAMILIES,GREATER LONDON FOSTERING,"2,968.00",FRIENDS & FAMILY FOSTERING,EXTERNAL AGENCIES AND BODIES,2103227105,1000029184
08.03.2021,CHILDREN AND FAMILIES,GREATER LONDON FOSTERING,"3,059.00",FRIENDS & FAMILY FOSTERING,EXTERNAL AGENCIES AND BODIES,2103227103,1000029184
08.03.2021,CHILDREN AND FAMILIES,GREATER LONDON FOSTERING,"3,226.44",FRIENDS & FAMILY FOSTERING,EXTERNAL AGENCIES AND BODIES,2103227108,1000029184
08.03.2021,CHILDREN AND FAMILIES,GREATER LONDON FOSTERING,"3,396.40",FRIENDS & FAMILY FOSTERING,EXTERNAL AGENCIES AND BODIES,2103227107,1000029184
08.03.2021,CHILDREN AND FAMILIES,GREATER LONDON FOSTERING,"4,195.80",FRIENDS & FAMILY FOSTERING,EXTERNAL AGENCIES AND BODIES,2103227104,1000029184
08.03.2021,CHILDREN AND FAMILIES,KASPER FOSTERING,"3,340.12",FRIENDS & FAMILY FOSTERING,EXTERNAL AGENCIES AND BODIES,2103227110,1000036628
08.03.2021,CHILDREN AND FAMILIES,KASPER FOSTERING,"4,411.96",FRIENDS & FAMILY FOSTERING,EXTERNAL AGENCIES AND BODIES,2103227109,1000036628
08.03.2021,CHILDREN AND FAMILIES,SUNBEAM FOSTERING AGENCY LTD,"3,100.00",FRIENDS & FAMILY FOSTERING,EXTERNAL AGENCIES AND BODIES,2103226944,1000041457
08.03.2021,CHILDREN AND FAMILIES,DIVERSE CARE (UK) LTD,"4,498.20",FRIENDS & FAMILY FOSTERING,EXTERNAL AGENCIES AND BODIES,2103226941,1000055636
08.03.2021,CHILDREN AND FAMILIES,FOSTERING LONDON LTD,"4,599.84",FRIENDS & FAMILY FOSTERING,EXTERNAL AGENCIES AND BODIES,2103227102,1000077541
08.03.2021,CHILDREN AND FAMILIES,FOSTERING LONDON LTD,"7,880.00",FRIENDS & FAMILY FOSTERING,EXTERNAL AGENCIES AND BODIES,2103227101,1000077541
08.03.2021,CHILDREN AND FAMILIES,REDACTED PERSONAL DATA,"1,000.00",LEAVING CARE GRANT,OTHER PAYMENTS FOR CLIENTS,REDACTED,REDACTED
08.03.2021,CHILDREN AND FAMILIES,PURPLE PEBBLES(CHILD CARE) SERVICES,"1,383.93",SEMI-IND CARELEAVERS,EXTERNAL AGENCIES AND BODIES,2103227076,1000070705
08.03.2021,CHILDREN AND FAMILIES,REDACTED PERSONAL DATA,800.00,SEMI-IND CARELEAVERS,OTHER PAYMENTS FOR CLIENTS,REDACTED,REDACTED
08.03.2021,CHILDREN AND FAMILIES,WILSON SOLICITORS LLP,"1,800.00",SEMI-IND CARELEAVERS,OTHER PAYMENTS FOR CLIENTS,5902458653,1000074614
08.03.2021,CHILDREN AND FAMILIES,NEXT STEP CARE MANAGEMENT LTD,"3,100.00",SEMI-IND LAC 16-17,EXTERNAL AGENCIES AND BODIES,2103226935,1825556
08.03.2021,CHILDREN AND FAMILIES,STEP AHEAD SERVICES LTD,395.00,SEMI-IND LAC 16-17,EXTERNAL AGENCIES AND BODIES,2103226939,1000036544
08.03.2021,CHILDREN AND FAMILIES,STEP AHEAD SERVICES LTD,"18,240.00",SEMI-IND LAC 16-17,EXTERNAL AGENCIES AND BODIES,2103226934,1000036544
08.03.2021,CHILDREN AND FAMILIES,FUTURE FOUNDATIONS LTD,500.00,SEMI-IND LAC 16-17,EXTERNAL AGENCIES AND BODIES,2103226937,1000063272
08.03.2021,CHILDREN AND FAMILIES,SYDNEY CARE LTD,"6,876.00",SEMI-IND LAC 16-17,EXTERNAL AGENCIES AND BODIES,2103226933,1000081598
08.03.2021,CHILDREN AND FAMILIES,STEP AHEAD SERVICES LTD,280.00,SEMI-IND LAC 16-17,OTHER PAYMENTS FOR CLIENTS,2103226932,1000036544
08.03.2021,CHILDREN AND FAMILIES,SYDNEY CARE LTD,280.00,SEMI-IND LAC 16-17,OTHER PAYMENTS FOR CLIENTS,2103226938,1000081598
08.03.2021,CHILDREN AND FAMILIES,CARE O LINE,602.25,TEAM A,OTHER PAYMENTS FOR CLIENTS,2103227081,11241743
08.03.2021,CHILDREN AND FAMILIES,PURPLE PEBBLES(CHILD CARE) SERVICES,332.14,UASC CARELEAVERS,EXTERNAL AGENCIES AND BODIES,2103227075,1000070705
08.03.2021,CHILDREN AND FAMILIES,REDACTED PERSONAL DATA,720.00,UASC LAC 16-17,OTHER PAYMENTS FOR CLIENTS,REDACTED,REDACTED
08.03.2021,CHILDREN AND FAMILIES,LONDON BOROUGH OF BARNET,450.00,YOS MGMT & SUPPORT,TRAINING,5902458666,1000072008
08.03.2021,CHILDREN AND FAMILIES,LONDON BOROUGH OF BARNET,850.00,YOS MGMT & SUPPORT,TRAINING,5902458670,1000072008
08.03.2021,CHILDREN'S,CBS MAINTENANCE SERVICES LTD,"12,677.37",CAPITAL PS (EDUCATION),CONST'N MAIN CONTRACT - NON CERTIFICATED,2103227365,3000001518
08.03.2021,CHILDREN'S,STANDAGE & CO LTD,600.00,CAPITAL PS (EDUCATION),CONSTRUCTION SITE COSTS,2103227366,4002817
08.03.2021,COMMUNITIES,POHWER,"2,417.00",NHS COMPLAINTS ADVOCACY,EXTERNAL AGENCIES AND BODIES,5902458704,1000070508
08.03.2021,COMMUNITIES,SUPREME CARE SERVICES LTD,596.21,NO RECOURSE TO PUBLIC FUNDS,HOMECARE - C&V,2103227128,1000059416
08.03.2021,COMMUNITIES,SUPREME CARE SERVICES LTD,610.75,NO RECOURSE TO PUBLIC FUNDS,HOMECARE - C&V,2103227114,1000059416
08.03.2021,COMMUNITIES,SUPREME CARE SERVICES LTD,"1,108.08",NO RECOURSE TO PUBLIC FUNDS,HOMECARE - C&V,2103227136,1000059416
08.03.2021,COMMUNITIES,SUPREME CARE SERVICES LTD,"1,710.10",NO RECOURSE TO PUBLIC FUNDS,HOMECARE - C&V,2103227144,1000059416
08.03.2021,COMMUNITIES,WESTMINSTER HOMECARE LTD,"1,258.68",NO RECOURSE TO PUBLIC FUNDS,HOMECARE - C&V,2103227162,1000075287
08.03.2021,COMMUNITIES,BOOTS UK LTD,824.50,PHARMACY SM (INSTEAD OF ADULT SM S75),OTHER CONTRACTORS,2103227190,1000032374
08.03.2021,COMMUNITIES,KRISTAL ENTERPRISES LTD,"1,002.50",PHARMACY SM (INSTEAD OF ADULT SM S75),OTHER CONTRACTORS,2103227195,1000051105
08.03.2021,COMMUNITIES,ST GEORGES HEALTHCARE LTD,"4,049.00",PHARMACY SM (INSTEAD OF ADULT SM S75),OTHER CONTRACTORS,2103227191,1000072195
08.03.2021,COMMUNITIES,CAREFIELD LTD,"1,605.00",PHARMACY SM (INSTEAD OF ADULT SM S75),OTHER CONTRACTORS,2103227200,1000072641
08.03.2021,COMMUNITIES,MONOKOVE LTD,844.50,PHARMACY SM (INSTEAD OF ADULT SM S75),OTHER CONTRACTORS,2103227193,1000072645
08.03.2021,COMMUNITIES,LLOYDS PHARMACY LTD,"1,788.80",PHARMACY SM (INSTEAD OF ADULT SM S75),OTHER CONTRACTORS,2103227196,1000072662
08.03.2021,COMMUNITIES,ROPHARM CHEMIST,"1,257.80",PHARMACY SM (INSTEAD OF ADULT SM S75),OTHER CONTRACTORS,2103227198,1000072667
08.03.2021,COMMUNITIES,FLEXIHEALTH LTD,"1,465.00",PHARMACY SM (INSTEAD OF ADULT SM S75),OTHER CONTRACTORS,2103227194,1000072668
08.03.2021,COMMUNITIES,DAY LEWIS - CAMBERWELL,779.00,PHARMACY SM (INSTEAD OF ADULT SM S75),OTHER CONTRACTORS,2103227192,1000072891
08.03.2021,COMMUNITIES,DAY LEWIS - CAMBERWELL,996.50,PHARMACY SM (INSTEAD OF ADULT SM S75),OTHER CONTRACTORS,2103227189,1000072891
08.03.2021,COMMUNITIES,SUPERDRUG STORES PLC (CAMBERWELL),"1,975.50",PHARMACY SM (INSTEAD OF ADULT SM S75),OTHER CONTRACTORS,2103227199,1000078628
08.03.2021,COMMUNITIES,K.S.C. 1T LTD,"3,533.00",PHARMACY SM (INSTEAD OF ADULT SM S75),OTHER CONTRACTORS,2103227197,1000081458
08.03.2021,CUSTOMER EXPERIENCE HGF,REDACTED PERSONAL DATA,"1,550.00",HOMELESS PROJECTS,GRANTS,REDACTED,REDACTED
08.03.2021,CUSTOMER EXPERIENCE HGF,CHAMPION LETTINGS LTD,"2,117.28",HOMELESS PROJECTS,GRANTS,5902458679,1000086357
08.03.2021,CUSTOMER EXPERIENCE HGF,EMPIRE LONDON PROPERTIES,"3,293.28",HOMELESS PROJECTS,GRANTS,5902458738,1000086378
08.03.2021,CUSTOMER EXPERIENCE HGF,NOWMEDICAL LTD,"3,884.00",HOUSING OPTIONS,PROFESSIONAL FEES,5902458768,1000068185
08.03.2021,CUSTOMER EXPERIENCE HGF,BIRCHAM DYSON BELL,"2,590.00",LONDON BRIDGE INQUEST,LEGAL FEES & COURT COSTS,5902458691,1000048605
08.03.2021,CUSTOMER EXPERIENCE HGF,EDEN ESTATES LONDON LTD,"20,161.40",NIGHTLY TA (NSC),EXTERNAL AGENCIES AND BODIES,5902458702,1000061217
08.03.2021,CUSTOMER EXPERIENCE HGF,NORBURY PROPERTY SERVICES (LONDON) LTD,304.00,NIGHTLY TA (NSC),EXTERNAL AGENCIES AND BODIES,5902458649,1000075566
08.03.2021,CUSTOMER EXPERIENCE HGF,NATIONWIDE ACCOMMODATION,740.46,PSL PLACEMENTS,EXTERNAL AGENCIES AND BODIES,5902458784,1000076112
08.03.2021,CUSTOMER EXPERIENCE HGF,NATIONWIDE ACCOMMODATION,"-5,964.08",PSL PLACEMENTS,GRANTS,5902458787,1000076112
08.03.2021,CUSTOMER EXPERIENCE HGF,NATIONWIDE ACCOMMODATION,"6,000.00",PSL PLACEMENTS,GRANTS,5902458785,1000076112
08.03.2021,CUSTOMER EXPERIENCE HGF,PROPERTYPLACEBOOK LTD,"3,780.00",RAPID REHOUSING,EXTERNAL AGENCIES AND BODIES,5902458677,1000077817
08.03.2021,DSG,SOUTHWARK INCLUSIVE LEARNING SERVICE,"18,000.00",COVID-19 SCHOOLS GRANTS,SCHOOLS CAPITATION,2103227291,5001000105
08.03.2021,DSG,ALBION PRIMARY SCHOOL,"2,128.00",COVID-19 SCHOOLS GRANTS,SCHOOLS CAPITATION,2103227287,5001000000
08.03.2021,DSG,BELLENDEN PRIMARY SCHOOL,"1,177.00",COVID-19 SCHOOLS GRANTS,SCHOOLS CAPITATION,2103227283,5001000007
08.03.2021,DSG,BOUCHER C OF E PRIMARY SCHOOL,"4,680.00",COVID-19 SCHOOLS GRANTS,SCHOOLS CAPITATION,2103227296,5001000011
08.03.2021,DSG,CAMELOT PRIMARY SCHOOL,"13,085.00",COVID-19 SCHOOLS GRANTS,SCHOOLS CAPITATION,2103227280,5001000014
08.03.2021,DSG,CHARLOTTE  SHARMAN PRIMARY SCHOOL,"6,375.00",COVID-19 SCHOOLS GRANTS,SCHOOLS CAPITATION,2103227294,5001000016
08.03.2021,DSG,COMBER GROVE PRIMARY SCHOOL,"1,957.00",COVID-19 SCHOOLS GRANTS,SCHOOLS CAPITATION,2103227277,5001000022
08.03.2021,DSG,CRAWFORD PRIMARY SCHOOL,"7,022.00",COVID-19 SCHOOLS GRANTS,SCHOOLS CAPITATION,2103227279,5001000024
08.03.2021,DSG,DULWICH VILLAGE CE INFANTS SCHOOL,"2,133.00",COVID-19 SCHOOLS GRANTS,SCHOOLS CAPITATION,2103227289,5001000027
08.03.2021,DSG,GOODRICH PRIMARY SCHOOL,"6,764.00",COVID-19 SCHOOLS GRANTS,SCHOOLS CAPITATION,2103227290,5001000028
08.03.2021,DSG,FRIARS PRIMARY SCHOOL,"3,245.00",COVID-19 SCHOOLS GRANTS,SCHOOLS CAPITATION,2103227295,5001000033
08.03.2021,DSG,HEBER PRIMARY SCHOOL,"7,064.00",COVID-19 SCHOOLS GRANTS,SCHOOLS CAPITATION,2103227288,5001000035
08.03.2021,DSG,HIGHSHORE SCHOOL,"3,545.00",COVID-19 SCHOOLS GRANTS,SCHOOLS CAPITATION,2103227298,5001000046
08.03.2021,DSG,NOTRE DAME RC GIRLS SCHOOL,"1,168.00",COVID-19 SCHOOLS GRANTS,SCHOOLS CAPITATION,2103227276,5001000050
08.03.2021,DSG,PILGRIM'S WAY PRIMARY SCHOOL,"1,478.00",COVID-19 SCHOOLS GRANTS,SCHOOLS CAPITATION,2103227284,5001000054
08.03.2021,DSG,RIVERSIDE PRIMARY SCHOOL,"13,100.00",COVID-19 SCHOOLS GRANTS,SCHOOLS CAPITATION,2103227278,5001000056
08.03.2021,DSG,ST JAMES CE SCHOOL,"54,313.00",COVID-19 SCHOOLS GRANTS,SCHOOLS CAPITATION,2103227292,5001000070
08.03.2021,DSG,ST JOSEPHS CATHOLIC SCHOOL,"5,920.00",COVID-19 SCHOOLS GRANTS,SCHOOLS CAPITATION,2103227281,5001000076
08.03.2021,DSG,ST JOSEPHS RC PRIMARY SCHOOL,"9,130.00",COVID-19 SCHOOLS GRANTS,SCHOOLS CAPITATION,2103227293,5001000077
08.03.2021,DSG,ST PETERS CE SCHOOL,"10,168.00",COVID-19 SCHOOLS GRANTS,SCHOOLS CAPITATION,2103227286,5001000083
08.03.2021,DSG,ST SAVIOURS & ST OLAVES SCHOOL,"13,000.00",COVID-19 SCHOOLS GRANTS,SCHOOLS CAPITATION,2103227282,5001000084
08.03.2021,DSG,TOWNSEND PRIMARY SCHOOL,270.00,COVID-19 SCHOOLS GRANTS,SCHOOLS CAPITATION,2103227285,5001000096
08.03.2021,DSG,TUKE SCHOOL,"7,316.00",COVID-19 SCHOOLS GRANTS,SCHOOLS CAPITATION,2103227297,5001000097
08.03.2021,DSG,SOUTHWARK INCLUSIVE LEARNING SERVICE,"8,000.00",COVID-19 SCHOOLS GRANTS,SPECIFIC GOV'T ADMIN GRANT,2103227275,5001000105
08.03.2021,DSG,ALBION PRIMARY SCHOOL,"10,270.00",COVID-19 SCHOOLS GRANTS,SPECIFIC GOV'T ADMIN GRANT,2103227206,5001000000
08.03.2021,DSG,ALFRED SALTER PRIMARY SCHOOL,"9,840.00",COVID-19 SCHOOLS GRANTS,SPECIFIC GOV'T ADMIN GRANT,2103227207,5001000005
08.03.2021,DSG,BELLENDEN PRIMARY SCHOOL,"5,070.00",COVID-19 SCHOOLS GRANTS,SPECIFIC GOV'T ADMIN GRANT,2103227208,5001000007
08.03.2021,DSG,BEORMUND PRIMARY SCHOOL,"2,800.00",COVID-19 SCHOOLS GRANTS,SPECIFIC GOV'T ADMIN GRANT,2103227272,5001000008
08.03.2021,DSG,BESSEMER GRANGE PRIMARY SCHOOL,"13,900.00",COVID-19 SCHOOLS GRANTS,SPECIFIC GOV'T ADMIN GRANT,2103227209,5001000009
08.03.2021,DSG,BETHLEM & MAUDSLEY HOSPITAL SCHOOL,"5,120.00",COVID-19 SCHOOLS GRANTS,SPECIFIC GOV'T ADMIN GRANT,2103227270,5001000010
08.03.2021,DSG,BOUCHER C OF E PRIMARY SCHOOL,"5,180.00",COVID-19 SCHOOLS GRANTS,SPECIFIC GOV'T ADMIN GRANT,2103227210,5001000011
08.03.2021,DSG,BRUNSWICK PARK PRIMARY SCHOOL,"11,100.00",COVID-19 SCHOOLS GRANTS,SPECIFIC GOV'T ADMIN GRANT,2103227211,5001000013
08.03.2021,DSG,CAMELOT PRIMARY SCHOOL,"8,840.00",COVID-19 SCHOOLS GRANTS,SPECIFIC GOV'T ADMIN GRANT,2103227212,5001000014
08.03.2021,DSG,CHARLOTTE  SHARMAN PRIMARY SCHOOL,"4,130.00",COVID-19 SCHOOLS GRANTS,SPECIFIC GOV'T ADMIN GRANT,2103227213,5001000016
08.03.2021,DSG,ST JOSEPHS RC JUNIOR  SCHOOL,"5,850.00",COVID-19 SCHOOLS GRANTS,SPECIFIC GOV'T ADMIN GRANT,2103227256,5001000017
08.03.2021,DSG,ST JOSEPHS CATHOLIC INFANTS SCHOOL,"3,920.00",COVID-19 SCHOOLS GRANTS,SPECIFIC GOV'T ADMIN GRANT,2103227255,5001000018
08.03.2021,DSG,ST JUDES CHURCH OF ENGLAND PRIMARY,"2,320.00",COVID-19 SCHOOLS GRANTS,SPECIFIC GOV'T ADMIN GRANT,2103227259,5001000019
08.03.2021,DSG,CHERRY GARDEN SCHOOL,"6,960.00",COVID-19 SCHOOLS GRANTS,SPECIFIC GOV'T ADMIN GRANT,2103227274,5001000020
08.03.2021,DSG,COBOURG PRIMARY SCHOOL,"6,570.00",COVID-19 SCHOOLS GRANTS,SPECIFIC GOV'T ADMIN GRANT,2103227214,5001000021
08.03.2021,DSG,COMBER GROVE PRIMARY SCHOOL,"5,100.00",COVID-19 SCHOOLS GRANTS,SPECIFIC GOV'T ADMIN GRANT,2103227215,5001000022
08.03.2021,DSG,CRAMPTON PRIMARY SCHOOL,"5,570.00",COVID-19 SCHOOLS GRANTS,SPECIFIC GOV'T ADMIN GRANT,2103227216,5001000023
08.03.2021,DSG,CRAWFORD PRIMARY SCHOOL,"11,080.00",COVID-19 SCHOOLS GRANTS,SPECIFIC GOV'T ADMIN GRANT,2103227217,5001000024
08.03.2021,DSG,DOG KENNEL HILL PRIMARY SCHOOL,"7,170.00",COVID-19 SCHOOLS GRANTS,SPECIFIC GOV'T ADMIN GRANT,2103227218,5001000025
08.03.2021,DSG,DULWICH VILLAGE CE INFANTS SCHOOL,"7,120.00",COVID-19 SCHOOLS GRANTS,SPECIFIC GOV'T ADMIN GRANT,2103227219,5001000027
08.03.2021,DSG,GOODRICH PRIMARY SCHOOL,"14,670.00",COVID-19 SCHOOLS GRANTS,SPECIFIC GOV'T ADMIN GRANT,2103227223,5001000028
08.03.2021,DSG,GRANGE PRIMARY SCHOOL,"8,750.00",COVID-19 SCHOOLS GRANTS,SPECIFIC GOV'T ADMIN GRANT,2103227224,5001000029
08.03.2021,DSG,ENGLISH MARTYRS RC PRIMARY SCHOOL,"7,560.00",COVID-19 SCHOOLS GRANTS,SPECIFIC GOV'T ADMIN GRANT,2103227221,5001000030
08.03.2021,DSG,EVELINA HOSPITAL SCHOOL,"4,240.00",COVID-19 SCHOOLS GRANTS,SPECIFIC GOV'T ADMIN GRANT,2103227269,5001000031
08.03.2021,DSG,PHOENIX PRIMARY SCHOOL,"15,550.00",COVID-19 SCHOOLS GRANTS,SPECIFIC GOV'T ADMIN GRANT,2103227236,5001000032
08.03.2021,DSG,FRIARS PRIMARY SCHOOL,"4,520.00",COVID-19 SCHOOLS GRANTS,SPECIFIC GOV'T ADMIN GRANT,2103227222,5001000033
08.03.2021,DSG,HEBER PRIMARY SCHOOL,"9,410.00",COVID-19 SCHOOLS GRANTS,SPECIFIC GOV'T ADMIN GRANT,2103227225,5001000035
08.03.2021,DSG,HOLLYDALE PRIMARY SCHOOL,"4,560.00",COVID-19 SCHOOLS GRANTS,SPECIFIC GOV'T ADMIN GRANT,2103227226,5001000036
08.03.2021,DSG,ILDERTON PRIMARY SCHOOL,"6,990.00",COVID-19 SCHOOLS GRANTS,SPECIFIC GOV'T ADMIN GRANT,2103227227,5001000037
08.03.2021,DSG,IVYDALE PRIMARY SCHOOL,"11,860.00",COVID-19 SCHOOLS GRANTS,SPECIFIC GOV'T ADMIN GRANT,2103227228,5001000038
08.03.2021,DSG,JOHN RUSKIN PRIMARY SCHOOL,"12,880.00",COVID-19 SCHOOLS GRANTS,SPECIFIC GOV'T ADMIN GRANT,2103227229,5001000040
08.03.2021,DSG,KEYWORTH PRIMARY SCHOOL,"7,740.00",COVID-19 SCHOOLS GRANTS,SPECIFIC GOV'T ADMIN GRANT,2103227230,5001000041
08.03.2021,DSG,DULWICH WOOD PRIMARY SCHOOL,"9,180.00",COVID-19 SCHOOLS GRANTS,SPECIFIC GOV'T ADMIN GRANT,2103227220,5001000042
08.03.2021,DSG,LYNDHURST PRIMARY SCHOOL,"11,900.00",COVID-19 SCHOOLS GRANTS,SPECIFIC GOV'T ADMIN GRANT,2103227231,5001000043
08.03.2021,DSG,HAYMERLE SCHOOL,"6,160.00",COVID-19 SCHOOLS GRANTS,SPECIFIC GOV'T ADMIN GRANT,2103227271,5001000045
08.03.2021,DSG,HIGHSHORE SCHOOL,"11,900.00",COVID-19 SCHOOLS GRANTS,SPECIFIC GOV'T ADMIN GRANT,2103227268,5001000046
08.03.2021,DSG,MICHAEL FARADAY PRIMARY SCHOOL,"10,440.00",COVID-19 SCHOOLS GRANTS,SPECIFIC GOV'T ADMIN GRANT,2103227232,5001000048
08.03.2021,DSG,NOTRE DAME RC GIRLS SCHOOL,"14,300.00",COVID-19 SCHOOLS GRANTS,SPECIFIC GOV'T ADMIN GRANT,2103227233,5001000050
08.03.2021,DSG,OLIVER GOLDSMITH PRIMARY SCHOOL,"8,430.00",COVID-19 SCHOOLS GRANTS,SPECIFIC GOV'T ADMIN GRANT,2103227234,5001000051
08.03.2021,DSG,PETER HILLS CE SCHOOL,"3,900.00",COVID-19 SCHOOLS GRANTS,SPECIFIC GOV'T ADMIN GRANT,2103227235,5001000053
08.03.2021,DSG,PILGRIM'S WAY PRIMARY SCHOOL,"4,470.00",COVID-19 SCHOOLS GRANTS,SPECIFIC GOV'T ADMIN GRANT,2103227237,5001000054
08.03.2021,DSG,RIVERSIDE PRIMARY SCHOOL,"7,820.00",COVID-19 SCHOOLS GRANTS,SPECIFIC GOV'T ADMIN GRANT,2103227238,5001000056
08.03.2021,DSG,ROBERT BROWNING PRIMARY SCHOOL,"4,400.00",COVID-19 SCHOOLS GRANTS,SPECIFIC GOV'T ADMIN GRANT,2103227239,5001000057
08.03.2021,DSG,ROTHERHITHE PRIMARY SCHOOL,"9,090.00",COVID-19 SCHOOLS GRANTS,SPECIFIC GOV'T ADMIN GRANT,2103227240,5001000058
08.03.2021,DSG,RYE OAK PRIMARY SCHOOL,"8,250.00",COVID-19 SCHOOLS GRANTS,SPECIFIC GOV'T ADMIN GRANT,2103227241,5001000059
08.03.2021,DSG,SNOWSFIELDS PRIMARY SCHOOL,"6,500.00",COVID-19 SCHOOLS GRANTS,SPECIFIC GOV'T ADMIN GRANT,2103227243,5001000061
08.03.2021,DSG,SOUTHWARK PARK PRIMARY SCHOOL,"10,180.00",COVID-19 SCHOOLS GRANTS,SPECIFIC GOV'T ADMIN GRANT,2103227244,5001000062
08.03.2021,DSG,ST ANTHONYS RC SCHOOL,"9,720.00",COVID-19 SCHOOLS GRANTS,SPECIFIC GOV'T ADMIN GRANT,2103227245,5001000064
08.03.2021,DSG,ST FRANCESCA CABRINI PRIMARY SCHOOL,"5,480.00",COVID-19 SCHOOLS GRANTS,SPECIFIC GOV'T ADMIN GRANT,2103227246,5001000065
08.03.2021,DSG,ST FRANCIS'S RC PRIMARY SCHOOL,"9,440.00",COVID-19 SCHOOLS GRANTS,SPECIFIC GOV'T ADMIN GRANT,2103227247,5001000067
08.03.2021,DSG,ST GEORGES RC SCHOOL,"4,780.00",COVID-19 SCHOOLS GRANTS,SPECIFIC GOV'T ADMIN GRANT,2103227248,5001000068
08.03.2021,DSG,ST GEORGES CE SCHOOL,"3,880.00",COVID-19 SCHOOLS GRANTS,SPECIFIC GOV'T ADMIN GRANT,2103227249,5001000069
08.03.2021,DSG,ST JAMES CE SCHOOL,"11,540.00",COVID-19 SCHOOLS GRANTS,SPECIFIC GOV'T ADMIN GRANT,2103227250,5001000070
08.03.2021,DSG,ST JAMES THE GREAT RC SCHOOL,"5,080.00",COVID-19 SCHOOLS GRANTS,SPECIFIC GOV'T ADMIN GRANT,2103227251,5001000071
08.03.2021,DSG,ST JOHNS WALWORTH CE SCHOOL,"4,000.00",COVID-19 SCHOOLS GRANTS,SPECIFIC GOV'T ADMIN GRANT,2103227254,5001000072
08.03.2021,DSG,ST JOHNS & ST CLEMENTS CE SCHOOL,"11,120.00",COVID-19 SCHOOLS GRANTS,SPECIFIC GOV'T ADMIN GRANT,2103227252,5001000073
08.03.2021,DSG,THE ST THOMAS THE APOSTLE COLLEGE,"20,870.00",COVID-19 SCHOOLS GRANTS,SPECIFIC GOV'T ADMIN GRANT,2103227264,5001000074
08.03.2021,DSG,ST JOHNS RC PRIMARY SCHOOL,"5,330.00",COVID-19 SCHOOLS GRANTS,SPECIFIC GOV'T ADMIN GRANT,2103227253,5001000075
08.03.2021,DSG,ST JOSEPHS CATHOLIC SCHOOL,"4,830.00",COVID-19 SCHOOLS GRANTS,SPECIFIC GOV'T ADMIN GRANT,2103227242,5001000076
08.03.2021,DSG,ST JOSEPHS RC PRIMARY SCHOOL,"8,010.00",COVID-19 SCHOOLS GRANTS,SPECIFIC GOV'T ADMIN GRANT,2103227258,5001000077
08.03.2021,DSG,ST JOSEPHS CATHOLIC PRIMARY SCHOOL,"5,390.00",COVID-19 SCHOOLS GRANTS,SPECIFIC GOV'T ADMIN GRANT,2103227257,5001000078
08.03.2021,DSG,ST MARY MAGDALENE CE SCHOOL,"3,380.00",COVID-19 SCHOOLS GRANTS,SPECIFIC GOV'T ADMIN GRANT,2103227260,5001000080
08.03.2021,DSG,ST PETERS CE SCHOOL,"4,550.00",COVID-19 SCHOOLS GRANTS,SPECIFIC GOV'T ADMIN GRANT,2103227261,5001000083
08.03.2021,DSG,ST SAVIOURS & ST OLAVES SCHOOL,"16,700.00",COVID-19 SCHOOLS GRANTS,SPECIFIC GOV'T ADMIN GRANT,2103227262,5001000084
08.03.2021,DSG,CATHEDRAL SCHOOL OF ST SAVIOUR & MARY,"5,420.00",COVID-19 SCHOOLS GRANTS,SPECIFIC GOV'T ADMIN GRANT,2103227263,5001000088
08.03.2021,DSG,TOWER BRIDGE PRIMARY SCHOOL,"4,620.00",COVID-19 SCHOOLS GRANTS,SPECIFIC GOV'T ADMIN GRANT,2103227265,5001000095
08.03.2021,DSG,TOWNSEND PRIMARY SCHOOL,"4,260.00",COVID-19 SCHOOLS GRANTS,SPECIFIC GOV'T ADMIN GRANT,2103227266,5001000096
08.03.2021,DSG,TUKE SCHOOL,"7,040.00",COVID-19 SCHOOLS GRANTS,SPECIFIC GOV'T ADMIN GRANT,2103227273,5001000097
08.03.2021,DSG,VICTORY SCHOOL,"3,090.00",COVID-19 SCHOOLS GRANTS,SPECIFIC GOV'T ADMIN GRANT,2103227267,5001000098
08.03.2021,DSG,KINGSDALE FOUNDATION SCHOOL,"6,990.00",HOLIDAY SCHL MEAL VOUCHERS,SCHOOLS CAPITATION,2103227301,1000065405
08.03.2021,DSG,SURREY SQUARE PRIMARY SCHOOL,"7,530.00",HOLIDAY SCHL MEAL VOUCHERS,SCHOOLS CAPITATION,2103227299,1000082648
08.03.2021,DSG,FOUNTAIN CHILDRENS CENTRE LIMITED,"1,126.80",NURSERY ED GRANT 3 AND 4 YR OLDS,GRANTS,2103227374,1000042265
08.03.2021,DSG,GERMAN KINDERGARTEN LTD,657.30,NURSERY ED GRANT 3 AND 4 YR OLDS,GRANTS,2103227372,1000058090
08.03.2021,DSG,MINI TREASURES NURSERY,"1,126.80",NURSERY ED GRANT 3 AND 4 YR OLDS,GRANTS,2103227377,1000062250
08.03.2021,DSG,GOOSE GREEN PRIMARY AND NURSERY SCHOOL,"13,333.00",NURSERY ED GRANT 3 AND 4 YR OLDS,GRANTS,2103227369,1000070613
08.03.2021,DSG,MINI TREASURES NURSERY LTD,"1,240.20",NURSERY ED GRANT 3 AND 4 YR OLDS,GRANTS,2103227376,1000071834
08.03.2021,DSG,BRIGHT EXPLORERS DAY NURSERY,572.40,NURSERY ED GRANT 3 AND 4 YR OLDS,GRANTS,2103227375,1000074268
08.03.2021,DSG,LONDON EARLY YEARS FOUNDATION,"14,541.12",NURSERY ED GRANT 3 AND 4 YR OLDS,GRANTS,2103227371,1000077919
08.03.2021,DSG,LONDON EARLY YEARS FOUNDATION,"36,653.40",NURSERY ED GRANT 3 AND 4 YR OLDS,GRANTS,2103227370,1000077919
08.03.2021,DSG,HARRIS PRIMARY ACADEMY PECKHAM PARK,667.80,NURSERY ED GRANT 3 AND 4 YR OLDS,GRANTS,2103227373,1000068029
08.03.2021,DSG,COBOURG PRIMARY SCHOOL,"62,278.48",SCHOOLS IN FINANCIAL DIFFICULTY,SCHOOLS CAPITATION,2103227300,5001000021
08.03.2021,DSG,CHERRY GARDEN SCHOOL,"37,418.00",SEN INCLUSION TEAM,PROFESSIONAL FEES,5902458685,5001000020
08.03.2021,EDUCATION,OFFICE DEPOT UK LTD,295.56,ALC  DIRECT DELIVERY,STATIONERY,5902458699,1109426
08.03.2021,EDUCATION,UNIVERSITY OF EXETER,"9,250.00",SCHOLARSHIP SCHEME,EXTERNAL AGENCIES AND BODIES,5902458852,1000042056
08.03.2021,EDUCATION,SOUTHWARK INCLUSIVE LEARNING SERVICE,"4,950.00",UNIVERSAL INFANT FREE SCHOOL MEALS,SCHOOLS CAPITATION,2103227361,5001000105
08.03.2021,EDUCATION,ALBION PRIMARY SCHOOL,"18,000.00",UNIVERSAL INFANT FREE SCHOOL MEALS,SCHOOLS CAPITATION,2103227302,5001000000
08.03.2021,EDUCATION,BELLENDEN PRIMARY SCHOOL,"7,200.00",UNIVERSAL INFANT FREE SCHOOL MEALS,SCHOOLS CAPITATION,2103227303,5001000007
08.03.2021,EDUCATION,BESSEMER GRANGE PRIMARY SCHOOL,"5,400.00",UNIVERSAL INFANT FREE SCHOOL MEALS,SCHOOLS CAPITATION,2103227358,5001000009
08.03.2021,EDUCATION,BOUCHER C OF E PRIMARY SCHOOL,"3,600.00",UNIVERSAL INFANT FREE SCHOOL MEALS,SCHOOLS CAPITATION,2103227330,5001000011
08.03.2021,EDUCATION,BRUNSWICK PARK PRIMARY SCHOOL,"4,050.00",UNIVERSAL INFANT FREE SCHOOL MEALS,SCHOOLS CAPITATION,2103227359,5001000013
08.03.2021,EDUCATION,CAMELOT PRIMARY SCHOOL,"13,950.00",UNIVERSAL INFANT FREE SCHOOL MEALS,SCHOOLS CAPITATION,2103227304,5001000014
08.03.2021,EDUCATION,ST JOSEPHS RC JUNIOR  SCHOOL,"4,050.00",UNIVERSAL INFANT FREE SCHOOL MEALS,SCHOOLS CAPITATION,2103227350,5001000017
08.03.2021,EDUCATION,ST JOSEPHS CATHOLIC INFANTS SCHOOL,"7,200.00",UNIVERSAL INFANT FREE SCHOOL MEALS,SCHOOLS CAPITATION,2103227351,5001000018
08.03.2021,EDUCATION,ST JUDES CHURCH OF ENGLAND PRIMARY,"5,850.00",UNIVERSAL INFANT FREE SCHOOL MEALS,SCHOOLS CAPITATION,2103227342,5001000019
08.03.2021,EDUCATION,CHERRY GARDEN SCHOOL,"2,700.00",UNIVERSAL INFANT FREE SCHOOL MEALS,SCHOOLS CAPITATION,2103227357,5001000020
08.03.2021,EDUCATION,COBOURG PRIMARY SCHOOL,"5,850.00",UNIVERSAL INFANT FREE SCHOOL MEALS,SCHOOLS CAPITATION,2103227305,5001000021
08.03.2021,EDUCATION,COMBER GROVE PRIMARY SCHOOL,"13,050.00",UNIVERSAL INFANT FREE SCHOOL MEALS,SCHOOLS CAPITATION,2103227306,5001000022
08.03.2021,EDUCATION,CRAMPTON PRIMARY SCHOOL,"2,700.00",UNIVERSAL INFANT FREE SCHOOL MEALS,SCHOOLS CAPITATION,2103227307,5001000023
08.03.2021,EDUCATION,CRAWFORD PRIMARY SCHOOL,"13,950.00",UNIVERSAL INFANT FREE SCHOOL MEALS,SCHOOLS CAPITATION,2103227308,5001000024
08.03.2021,EDUCATION,DOG KENNEL HILL PRIMARY SCHOOL,"6,750.00",UNIVERSAL INFANT FREE SCHOOL MEALS,SCHOOLS CAPITATION,2103227309,5001000025
08.03.2021,EDUCATION,GOODRICH PRIMARY SCHOOL,"6,300.00",UNIVERSAL INFANT FREE SCHOOL MEALS,SCHOOLS CAPITATION,2103227310,5001000028
08.03.2021,EDUCATION,GRANGE PRIMARY SCHOOL,"18,000.00",UNIVERSAL INFANT FREE SCHOOL MEALS,SCHOOLS CAPITATION,2103227311,5001000029
08.03.2021,EDUCATION,ENGLISH MARTYRS RC PRIMARY SCHOOL,"11,700.00",UNIVERSAL INFANT FREE SCHOOL MEALS,SCHOOLS CAPITATION,2103227331,5001000030
08.03.2021,EDUCATION,PHOENIX PRIMARY SCHOOL,"7,200.00",UNIVERSAL INFANT FREE SCHOOL MEALS,SCHOOLS CAPITATION,2103227327,5001000032
08.03.2021,EDUCATION,FRIARS PRIMARY SCHOOL,"2,250.00",UNIVERSAL INFANT FREE SCHOOL MEALS,SCHOOLS CAPITATION,2103227352,5001000033
08.03.2021,EDUCATION,HOLLYDALE PRIMARY SCHOOL,"7,200.00",UNIVERSAL INFANT FREE SCHOOL MEALS,SCHOOLS CAPITATION,2103227312,5001000036
08.03.2021,EDUCATION,ILDERTON PRIMARY SCHOOL,"2,700.00",UNIVERSAL INFANT FREE SCHOOL MEALS,SCHOOLS CAPITATION,2103227313,5001000037
08.03.2021,EDUCATION,IVYDALE PRIMARY SCHOOL,"5,400.00",UNIVERSAL INFANT FREE SCHOOL MEALS,SCHOOLS CAPITATION,2103227314,5001000038
08.03.2021,EDUCATION,JOHN RUSKIN PRIMARY SCHOOL,"3,600.00",UNIVERSAL INFANT FREE SCHOOL MEALS,SCHOOLS CAPITATION,2103227315,5001000040
08.03.2021,EDUCATION,KEYWORTH PRIMARY SCHOOL,"8,100.00",UNIVERSAL INFANT FREE SCHOOL MEALS,SCHOOLS CAPITATION,2103227316,5001000041
08.03.2021,EDUCATION,DULWICH WOOD PRIMARY SCHOOL,"9,900.00",UNIVERSAL INFANT FREE SCHOOL MEALS,SCHOOLS CAPITATION,2103227317,5001000042
08.03.2021,EDUCATION,LYNDHURST PRIMARY SCHOOL,450.00,UNIVERSAL INFANT FREE SCHOOL MEALS,SCHOOLS CAPITATION,2103227318,5001000043
08.03.2021,EDUCATION,HAYMERLE SCHOOL,450.00,UNIVERSAL INFANT FREE SCHOOL MEALS,SCHOOLS CAPITATION,2103227355,5001000045
08.03.2021,EDUCATION,MICHAEL FARADAY PRIMARY SCHOOL,"6,750.00",UNIVERSAL INFANT FREE SCHOOL MEALS,SCHOOLS CAPITATION,2103227319,5001000048
08.03.2021,EDUCATION,NOTRE DAME RC GIRLS SCHOOL,"1,800.00",UNIVERSAL INFANT FREE SCHOOL MEALS,SCHOOLS CAPITATION,2103227354,5001000050
08.03.2021,EDUCATION,OLIVER GOLDSMITH PRIMARY SCHOOL,"13,500.00",UNIVERSAL INFANT FREE SCHOOL MEALS,SCHOOLS CAPITATION,2103227329,5001000051
08.03.2021,EDUCATION,PETER HILLS CE SCHOOL,"9,450.00",UNIVERSAL INFANT FREE SCHOOL MEALS,SCHOOLS CAPITATION,2103227344,5001000053
08.03.2021,EDUCATION,PILGRIM'S WAY PRIMARY SCHOOL,450.00,UNIVERSAL INFANT FREE SCHOOL MEALS,SCHOOLS CAPITATION,2103227328,5001000054
08.03.2021,EDUCATION,RIVERSIDE PRIMARY SCHOOL,"5,850.00",UNIVERSAL INFANT FREE SCHOOL MEALS,SCHOOLS CAPITATION,2103227320,5001000056
08.03.2021,EDUCATION,ROTHERHITHE PRIMARY SCHOOL,"16,200.00",UNIVERSAL INFANT FREE SCHOOL MEALS,SCHOOLS CAPITATION,2103227321,5001000058
08.03.2021,EDUCATION,RYE OAK PRIMARY SCHOOL,"2,250.00",UNIVERSAL INFANT FREE SCHOOL MEALS,SCHOOLS CAPITATION,2103227360,5001000059
08.03.2021,EDUCATION,SNOWSFIELDS PRIMARY SCHOOL,"8,100.00",UNIVERSAL INFANT FREE SCHOOL MEALS,SCHOOLS CAPITATION,2103227322,5001000061
08.03.2021,EDUCATION,SOUTHWARK PARK PRIMARY SCHOOL,"20,700.00",UNIVERSAL INFANT FREE SCHOOL MEALS,SCHOOLS CAPITATION,2103227323,5001000062
08.03.2021,EDUCATION,ST ANTHONYS RC SCHOOL,"7,200.00",UNIVERSAL INFANT FREE SCHOOL MEALS,SCHOOLS CAPITATION,2103227349,5001000064
08.03.2021,EDUCATION,ST FRANCESCA CABRINI PRIMARY SCHOOL,"9,450.00",UNIVERSAL INFANT FREE SCHOOL MEALS,SCHOOLS CAPITATION,2103227348,5001000065
08.03.2021,EDUCATION,ST FRANCIS'S RC PRIMARY SCHOOL,"17,550.00",UNIVERSAL INFANT FREE SCHOOL MEALS,SCHOOLS CAPITATION,2103227333,5001000067
08.03.2021,EDUCATION,ST GEORGES RC SCHOOL,"5,400.00",UNIVERSAL INFANT FREE SCHOOL MEALS,SCHOOLS CAPITATION,2103227335,5001000068
08.03.2021,EDUCATION,ST GEORGES CE SCHOOL,"8,100.00",UNIVERSAL INFANT FREE SCHOOL MEALS,SCHOOLS CAPITATION,2103227334,5001000069
08.03.2021,EDUCATION,ST JAMES CE SCHOOL,"11,700.00",UNIVERSAL INFANT FREE SCHOOL MEALS,SCHOOLS CAPITATION,2103227336,5001000070
08.03.2021,EDUCATION,ST JAMES THE GREAT RC SCHOOL,"6,300.00",UNIVERSAL INFANT FREE SCHOOL MEALS,SCHOOLS CAPITATION,2103227332,5001000071
08.03.2021,EDUCATION,ST JOHNS WALWORTH CE SCHOOL,"3,600.00",UNIVERSAL INFANT FREE SCHOOL MEALS,SCHOOLS CAPITATION,2103227338,5001000072
08.03.2021,EDUCATION,ST JOHNS & ST CLEMENTS CE SCHOOL,"10,800.00",UNIVERSAL INFANT FREE SCHOOL MEALS,SCHOOLS CAPITATION,2103227337,5001000073
08.03.2021,EDUCATION,THE ST THOMAS THE APOSTLE COLLEGE,"30,150.00",UNIVERSAL INFANT FREE SCHOOL MEALS,SCHOOLS CAPITATION,2103227353,5001000074
08.03.2021,EDUCATION,ST JOSEPHS CATHOLIC SCHOOL,"2,250.00",UNIVERSAL INFANT FREE SCHOOL MEALS,SCHOOLS CAPITATION,2103227341,5001000076
08.03.2021,EDUCATION,ST JOSEPHS RC PRIMARY SCHOOL,"4,500.00",UNIVERSAL INFANT FREE SCHOOL MEALS,SCHOOLS CAPITATION,2103227339,5001000077
08.03.2021,EDUCATION,ST JOSEPHS CATHOLIC PRIMARY SCHOOL,"2,700.00",UNIVERSAL INFANT FREE SCHOOL MEALS,SCHOOLS CAPITATION,2103227340,5001000078
08.03.2021,EDUCATION,ST MARY MAGDALENE CE SCHOOL,"4,950.00",UNIVERSAL INFANT FREE SCHOOL MEALS,SCHOOLS CAPITATION,2103227343,5001000080
08.03.2021,EDUCATION,ST PETERS CE SCHOOL,"11,250.00",UNIVERSAL INFANT FREE SCHOOL MEALS,SCHOOLS CAPITATION,2103227345,5001000083
08.03.2021,EDUCATION,ST SAVIOURS & ST OLAVES SCHOOL,"14,850.00",UNIVERSAL INFANT FREE SCHOOL MEALS,SCHOOLS CAPITATION,2103227347,5001000084
08.03.2021,EDUCATION,CATHEDRAL SCHOOL OF ST SAVIOUR & MARY,"4,500.00",UNIVERSAL INFANT FREE SCHOOL MEALS,SCHOOLS CAPITATION,2103227346,5001000088
08.03.2021,EDUCATION,TOWER BRIDGE PRIMARY SCHOOL,"15,300.00",UNIVERSAL INFANT FREE SCHOOL MEALS,SCHOOLS CAPITATION,2103227324,5001000095
08.03.2021,EDUCATION,TOWNSEND PRIMARY SCHOOL,"6,750.00",UNIVERSAL INFANT FREE SCHOOL MEALS,SCHOOLS CAPITATION,2103227325,5001000096
08.03.2021,EDUCATION,TUKE SCHOOL,450.00,UNIVERSAL INFANT FREE SCHOOL MEALS,SCHOOLS CAPITATION,2103227356,5001000097
08.03.2021,EDUCATION,VICTORY SCHOOL,"5,400.00",UNIVERSAL INFANT FREE SCHOOL MEALS,SCHOOLS CAPITATION,2103227326,5001000098
08.03.2021,ENV & LEIS,P D CONSTRUCTION LTD,"2,900.00",CAPITAL PS (LEISURE),CONSTRUCTION FEES  - EXTERNAL,2103227205,4001883
08.03.2021,ENV & LEIS,BREEZE LANDSCAPE ARCHITECTS LTD,"1,000.00",CAPITAL PS (LEISURE),CONSTRUCTION FEES - ARCHITECT,5902458789,1000078053
08.03.2021,ENV & LEIS,WARWICK LANDSCAPING LTD,"13,520.00",CAPITAL PS (LEISURE),CONSTRUCTION MAIN CONTRACT,2103227367,3000001705
08.03.2021,ENV & LEIS,ELITE GUARDING (UK) LTD,"40,942.00",COVID-19 MASS RAPID TESTING,EXTERNAL AGENCIES AND BODIES,5902458650,1000086183
08.03.2021,ENV & LEIS,IMPERIAL COLLEGE LONDON,"6,500.00",COVID-19 TEST & TRACE SUPPORT GRANT,PROFESSIONAL FEES,5902458829,1000041205
08.03.2021,ENVIRONMENT AND LEISURE,C S G (USHERS) LTD,"8,867.50",CAPITAL PS (LEISURE),CONSTRUCTION SUB CONTRACT,5902458799,1000073203
08.03.2021,ENVIRONMENT DIRECTORATE,AUTOMOTIVE LEASING,398.12,COMMERCIAL VEH CTRL A/C,HIRED VEHICLES,5902458841,11014756
08.03.2021,ENVIRONMENT DIRECTORATE,AUTOMOTIVE LEASING,585.82,COMMERCIAL VEH CTRL A/C,HIRED VEHICLES,5902458839,11014756
08.03.2021,ENVIRONMENT DIRECTORATE,AUTOMOTIVE LEASING,840.00,COMMERCIAL VEH CTRL A/C,HIRED VEHICLES,5902458837,11014756
08.03.2021,ENVIRONMENT DIRECTORATE,AUTOMOTIVE LEASING,861.50,COMMERCIAL VEH CTRL A/C,HIRED VEHICLES,5902458834,11014756
08.03.2021,ENVIRONMENT DIRECTORATE,AUTOMOTIVE LEASING,870.00,COMMERCIAL VEH CTRL A/C,HIRED VEHICLES,5902458834,11014756
08.03.2021,ENVIRONMENT DIRECTORATE,AUTOMOTIVE LEASING,945.00,COMMERCIAL VEH CTRL A/C,HIRED VEHICLES,5902458832,11014756
08.03.2021,ENVIRONMENT DIRECTORATE,AUTOMOTIVE LEASING,"1,216.23",COMMERCIAL VEH CTRL A/C,HIRED VEHICLES,5902458837,11014756
08.03.2021,ENVIRONMENT DIRECTORATE,AUTOMOTIVE LEASING,"1,320.00",COMMERCIAL VEH CTRL A/C,HIRED VEHICLES,5902458834,11014756
08.03.2021,ENVIRONMENT DIRECTORATE,AUTOMOTIVE LEASING,"1,820.00",COMMERCIAL VEH CTRL A/C,HIRED VEHICLES,5902458837,11014756
08.03.2021,ENVIRONMENT DIRECTORATE,DAWSON RENTALS BUS & COACH LTD,"1,455.65",COMMERCIAL VEH CTRL A/C,HIRED VEHICLES,5902458831,1000042174
08.03.2021,ENVIRONMENT DIRECTORATE,DAWSON RENTALS SWEEPERS,298.60,COMMERCIAL VEH CTRL A/C,HIRED VEHICLES,5902458827,1000068168
08.03.2021,ENVIRONMENT DIRECTORATE,DAWSON RENTALS SWEEPERS,684.82,COMMERCIAL VEH CTRL A/C,HIRED VEHICLES,5902458826,1000068168
08.03.2021,ENVIRONMENT DIRECTORATE,E. H. ROBERTS - PENET GROUP LTD,455.54,COMMERCIAL VEH CTRL A/C,HIRED VEHICLES,5902458818,1000082787
08.03.2021,ENVIRONMENT DIRECTORATE,E. H. ROBERTS - PENET GROUP LTD,598.00,COMMERCIAL VEH CTRL A/C,HIRED VEHICLES,5902458820,1000082787
08.03.2021,ENVIRONMENT DIRECTORATE,E. H. ROBERTS - PENET GROUP LTD,"2,232.07",COMMERCIAL VEH CTRL A/C,HIRED VEHICLES,5902458817,1000082787
08.03.2021,ENVIRONMENT DIRECTORATE,SHELL UK OIL PRODUCTS LTD,369.13,COMMERCIAL VEH CTRL A/C,VEHICLE FUEL,5902458851,1000081254
08.03.2021,ENVIRONMENT DIRECTORATE,LONDON TOOLS LIMITED,425.00,ENGINEERING CRAFTS,MATERIALS,5902458716,1000003017
08.03.2021,ENVIRONMENT DIRECTORATE,LONDON TOOLS LIMITED,462.00,ENGINEERING CRAFTS,MATERIALS,5902458715,1000003017
08.03.2021,ENVIRONMENT DIRECTORATE,LONDON TOOLS LIMITED,"3,404.00",ENGINEERING CRAFTS,MATERIALS,5902458714,1000003017
08.03.2021,ENVIRONMENT DIRECTORATE,GREENHAM TRADING LTD,"1,707.60",ESTATE CLEANING-GENERAL,MATERIALS,5902458764,1000006610
08.03.2021,ENVIRONMENT DIRECTORATE,SPALDINGS (UK) LTD,"1,704.00",GROUNDS MAINTENANCE - GENERAL,MATERIALS,5902458751,1907384
08.03.2021,ENVIRONMENT DIRECTORATE,SOUTHWARK NEWSPAPER LTD,252.00,HIGHWAYS DEVELOPMENT,MARKETING & PUBLICITY SERVICES,5902458782,1556957
08.03.2021,ENVIRONMENT DIRECTORATE,SOUTHWARK NEWSPAPER LTD,264.00,HIGHWAYS DEVELOPMENT,MARKETING & PUBLICITY SERVICES,5902458783,1556957
08.03.2021,ENVIRONMENT DIRECTORATE,SOUTHWARK NEWSPAPER LTD,"1,020.00",HIGHWAYS DEVELOPMENT,MARKETING & PUBLICITY SERVICES,5902458780,1556957
08.03.2021,ENVIRONMENT DIRECTORATE,BRITISH PEST CONTROL ASSOCIATION,475.00,PEST CONTROL,TRAINING,5902458752,1000053441
08.03.2021,ENVIRONMENT DIRECTORATE,RH ENVIRONMENTAL LTD,"7,650.00",RESIDENTIAL SERVICES,SUBSCRIPTIONS,5902458651,1000079023
08.03.2021,ENVIRONMENT DIRECTORATE,BRITISH GAS,491.55,STREET TRADING A/C,ELECTRICITY,5902458629,1000054825
08.03.2021,ENVIRONMENT DIRECTORATE,SOUTHWARK NEWSPAPER LTD,300.00,STREET WORKS OVERHEADS,MARKETING & PUBLICITY SERVICES,5902458662,1556957
08.03.2021,ENVIRONMENT DIRECTORATE,SOUTHWARK NEWSPAPER LTD,336.00,STREET WORKS OVERHEADS,MARKETING & PUBLICITY SERVICES,5902458665,1556957
08.03.2021,ENVIRONMENT DIRECTORATE,SOUTHWARK NEWSPAPER LTD,408.00,STREET WORKS OVERHEADS,MARKETING & PUBLICITY SERVICES,5902458667,1556957
08.03.2021,ENVIRONMENT DIRECTORATE,SOUTHWARK NEWSPAPER LTD,432.00,STREET WORKS OVERHEADS,MARKETING & PUBLICITY SERVICES,5902458668,1556957
08.03.2021,ENVIRONMENT DIRECTORATE,SOUTHWARK NEWSPAPER LTD,432.00,STREET WORKS OVERHEADS,MARKETING & PUBLICITY SERVICES,5902458664,1556957
08.03.2021,ENVIRONMENT DIRECTORATE,NATIONAL CRIME AGENCY,290.00,TRADING STANDARDS,SUBSCRIPTIONS,5902458776,1000057139
08.03.2021,ENVIRONMENT DIRECTORATE,VEOLIA ES SOUTHWARK LTD,"49,761.00",WASTE PFI,PFI/PPP PAYMENTS,5902458825,1000056979
08.03.2021,F & C S EXCLUDING CORPORATE BUDGETS,ARTHUR J GALLAGHER INSURANCE BROKER,"6,500.00",INSURANCE ADMIN,PROFESSIONAL FEES,5902458792,1000082644
08.03.2021,F & C S EXCLUDING CORPORATE BUDGETS,REDACTED PERSONAL DATA,500.00,SESS,OTHER PAYMENTS FOR CLIENTS,REDACTED,REDACTED
08.03.2021,F & C S EXCLUDING CORPORATE BUDGETS,REDACTED PERSONAL DATA,500.00,SESS,OTHER PAYMENTS FOR CLIENTS,REDACTED,REDACTED
08.03.2021,F & C S EXCLUDING CORPORATE BUDGETS,REDACTED PERSONAL DATA,500.00,SESS,OTHER PAYMENTS FOR CLIENTS,REDACTED,REDACTED
08.03.2021,F & C S EXCLUDING CORPORATE BUDGETS,REDACTED PERSONAL DATA,500.00,SESS,OTHER PAYMENTS FOR CLIENTS,REDACTED,REDACTED
08.03.2021,HOUSING,PRB ESTATES LTD,"108,694.29",PRBE,I-WORLD CONTRACTORS HOLDING ACCOUNT,2103226487,3000001691
08.03.2021,HOUSING GENERAL FUND,L H BRIDGE LTD,"8,513.00",CAPITAL PS (HOUSING GF),CAPITAL GRANTS,5902458836,1000056928
08.03.2021,HOUSING GENERAL FUND,C & C BUILDERS LTD,"4,750.00",CAPITAL PS (HOUSING GF),CAPITAL GRANTS,5902458767,1000079100
08.03.2021,HOUSING GENERAL FUND,PELLINGS LLP,387.50,CAPITAL PS (REGEN),CONSTRUCTION MAIN CONTRACT,5902458755,1009262
08.03.2021,HOUSING GENERAL FUND,HITACHI SOLUTIONS EUROPE LIMITED,"40,900.00",CAPITAL PS (STRAT SERV),ICT ACQUISITION,5902458737,1000084180
08.03.2021,HOUSING HRA,C&C BUILDERS LTD,"8,840.00",CAPITAL PS (HRA),CONST'N MAIN CONTRACT - NON CERTIFICATED,2103227379,3000001986
08.03.2021,HOUSING HRA,POTTER RAPER LTD,"1,567.73",CAPITAL PS (HRA),CONSTRUCTION FEES  - EXTERNAL,5902458688,1009369
08.03.2021,HOUSING HRA,CALFORD SEADEN LLP,"2,444.42",CAPITAL PS (HRA),CONSTRUCTION FEES  - EXTERNAL,5902458674,1061592
08.03.2021,HOUSING HRA,CALFORD SEADEN LLP,"2,944.01",CAPITAL PS (HRA),CONSTRUCTION FEES  - EXTERNAL,5902458683,1061592
08.03.2021,HOUSING HRA,COUNTRYWIDE ESTATE AGENTS,"5,130.00",CAPITAL PS (HRA),CONSTRUCTION FEES  - EXTERNAL,5902458850,1000083582
08.03.2021,HOUSING HRA,WHITBY WOOD LTD,"3,000.00",CAPITAL PS (HRA),CONSTRUCTION FEES  - EXTERNAL,5902458804,1000086224
08.03.2021,HOUSING HRA,CALFORD SEADEN LLP,"1,176.00",CAPITAL PS (HRA),CONSTRUCTION FEES - EMPLOYERS AGENT,5902458806,1061592
08.03.2021,HOUSING HRA,SHARPE PRITCHARD LLP,365.00,CAPITAL PS (HRA),CONSTRUCTION FEES - LEGAL,5902458772,1790085
08.03.2021,HOUSING HRA,PJC CONSULTANCY LTD,685.00,CAPITAL PS (HRA),CONSTRUCTION FEES - QUANTITY SURVEYOR,5902458807,1000077403
08.03.2021,HOUSING HRA,PJC CONSULTANCY LTD,720.00,CAPITAL PS (HRA),CONSTRUCTION FEES - QUANTITY SURVEYOR,5902458803,1000077403
08.03.2021,HOUSING HRA,A & E ELKINS LTD,"177,464.15",CAPITAL PS (HRA),CONSTRUCTION MAIN CONTRACT -CERTIFICATED,2103227364,4012501
08.03.2021,HOUSING HRA,BSW HEATING LTD,"151,555.92",CAPITAL PS (HRA),CONSTRUCTION MAIN CONTRACT -CERTIFICATED,2103226488,3000000580
08.03.2021,HOUSING HRA,ENGIE REGENERATION LTD,"160,769.10",CAPITAL PS (HRA),CONSTRUCTION MAIN CONTRACT -CERTIFICATED,2103227363,3000002035
08.03.2021,HOUSING HRA,KARAKUSEVIC CARSON ARCHITECTS,"45,836.00",CAPITAL PS (REGEN),CONST'N MAIN CONTRACT - NON CERTIFICATED,5902458637,1000055150
08.03.2021,HOUSING HRA,HOARE LEA CONSULTING ENGINEERS,"5,560.93",CAPITAL PS (REGEN),CONSTRUCTION FEES  - EXTERNAL,5902458788,1000056233
08.03.2021,HOUSING HRA,MARTIN ARNOLD LTD,"6,290.65",CAPITAL PS (REGEN),CONSTRUCTION SITE COSTS,5902458735,1000076993
08.03.2021,LEISURE DIRECTORATE,C S G (USHERS) LTD,"1,115.00",EMERGENCY TREES RECOVERY PROJECT,OTHER CONTRACTORS,5902458794,1000073203
08.03.2021,LEISURE DIRECTORATE,C S G (USHERS) LTD,"1,479.00",EMERGENCY TREES RECOVERY PROJECT,OTHER CONTRACTORS,5902458796,1000073203
08.03.2021,LEISURE DIRECTORATE,C S G (USHERS) LTD,"5,758.00",EMERGENCY TREES RECOVERY PROJECT,OTHER CONTRACTORS,5902458795,1000073203
08.03.2021,LEISURE DIRECTORATE,KENT COUNTY COUNCIL - LASER,"1,678.57",KINGSWOOD HOUSE,ELECTRICITY,5902458736,1000012926
08.03.2021,LEISURE DIRECTORATE,NPOWER,509.81,SDM BUDGET,ELECTRICITY,5902458689,1000032342
08.03.2021,LEISURE DIRECTORATE,SP SERVICES (UK) LTD,427.20,SDM BUDGET,EQUIPMENT PURCHASE & REPAIR,5902458698,1000044716
08.03.2021,LEISURE DIRECTORATE,BRADY CORPORATION LTD,425.85,SDM BUDGET,MATERIALS,5902458658,1000028202
08.03.2021,LEISURE DIRECTORATE,CONWAY AECOM LTD,"6,600.00",SDM BUDGET,PROFESSIONAL FEES,5902458753,1000071205
08.03.2021,LEISURE DIRECTORATE,P D CONSTRUCTION LTD,"7,300.00",SOUTHWARK AREA TEAM,OTHER R&M,2103227362,4001883
08.03.2021,LEISURE DIRECTORATE,BOLINDA UK LTD,"1,000.00",STOCK SERVICES,BOOKS & PUBLICATIONS,5902458681,1000075655
08.03.2021,LEISURE DIRECTORATE,C S G (USHERS) LTD,"12,440.00",TREES PRINCIPAL ROADS,OTHER CONTRACTORS,5902458798,1000073203
08.03.2021,MODERNISATION HGF,SHARPE PRITCHARD LLP,"1,038.00",CFM OPERATIONAL BUDGET,SOLICITORS FRAMEWORK LEGAL SERVICES,5902458769,1790085
08.03.2021,MODERNISATION HGF,INTERSERVE (FACILITIES MANAGEMENT),"551,203.53",FM SERVICES BY INTERSERVE,INTEGRATED FACILITIES MANAGEMENT CONTRACT,5902458808,1000070792
08.03.2021,MODERNISATION HGF,TELEFONICA O2 UK LTD,"68,083.86",IT MANAGEMENT,TELEPHONES (MOBILES),5902458678,11269631
08.03.2021,MODERNISATION HGF,INFINITY NETWORKS LTD,865.00,REPAIR AND MAINTENANCE SERVICES,BUILDING R&M,5902458777,1000035571
08.03.2021,MODERNISATION HGF,INFINITY NETWORKS LTD,977.00,REPAIR AND MAINTENANCE SERVICES,COMMS & COMPUTING CONTRACT CHARGES,5902458793,1000035571
08.03.2021,NEW BUILD,BROWNE JACOBSON,"5,259.00",DEVELOPMENT DELIVERY,PAYMENTS FOR LEGAL SERVICES,5902458840,1000081338
08.03.2021,NEW BUILD,BROWNE JACOBSON,"6,396.90",DEVELOPMENT DELIVERY,PAYMENTS FOR LEGAL SERVICES,5902458823,1000081338
08.03.2021,NEW BUILD,BEACON PARTNERSHIP LLP,"8,800.00",DEVELOPMENT DELIVERY,PROFESSIONAL FEES,5902458805,1000082300
08.03.2021,NEW BUILD,RICHARD NICHOLLS,"2,970.00",DEVELOPMENT DELIVERY,TRAINING,5902456952,1000086308
08.03.2021,REGENERATION,CMA PLANNING LTD,259.00,CAPITAL PS (REGEN),CONSTRUCTION FEES  - EXTERNAL,5902458695,1000073955
08.03.2021,REGENERATION,CMA PLANNING LTD,"7,250.00",CAPITAL PS (REGEN),CONSTRUCTION FEES  - EXTERNAL,5902458695,1000073955
08.03.2021,REGENERATION,STANBURY BUILDING SERVICES LTD,"1,600.00",PROFESSIONAL SERVICES (GENERAL),OTHER R&M,2103227378,3000001967
08.03.2021,REGENERATION,STANBURY BUILDING SERVICES LTD,"6,000.00",PROFESSIONAL SERVICES (GENERAL),OTHER R&M,2103227378,3000001967
08.03.2021,REGENERATION,QUARTO COLOUR,320.00,PROFESSIONAL SERVICES (GENERAL),PRINTING,5902458669,1000070061
08.03.2021,REGENERATION,SAWYER FIELDING LTD,"3,750.00",PROFESSIONAL SERVICES (GENERAL),PROFESSIONAL FEES,5902458700,1000081434
08.03.2021,RESIDENT SERVICES,BRITISH GAS TRADING LTD,"2,134.51",OPERATIONS/OFFICES ACCOMMODATION,ELECTRICITY,5902457751,1000055977
08.03.2021,RESIDENT SERVICES,LONDON TOOLS LIMITED,420.00,TA HOSTELS,MATERIALS,5902458718,1000003017
08.03.2021,RESIDENT SERVICES,LONDON TOOLS LIMITED,800.00,TA HOSTELS,MATERIALS,5902458727,1000003017
08.03.2021,RESIDENT SERVICES,LONDON TOOLS LIMITED,864.00,TA HOSTELS,MATERIALS,5902458727,1000003017
08.03.2021,SBS OPERATIONS,LONDON TOOLS LIMITED,458.00,SBS COMMUNAL REPAIRS,MATERIALS,5902458706,1000003017
08.03.2021,SBS SUPPORT,LONDON TOOLS LIMITED,"6,270.00",R & M OVERHEADS,MATERIALS,5902458725,1000003017
08.03.2021,SOUTHWARK BUILDING SERVICES,N & C BUILDING MATERIALS,360.45,STORES/LOGISTICS,CREDITORS -GR/IR CLEARING ACCOUNT,5902458708,1005586
08.03.2021,SOUTHWARK BUILDING SERVICES,N & C BUILDING MATERIALS,461.70,STORES/LOGISTICS,CREDITORS -GR/IR CLEARING ACCOUNT,5902458708,1005586
09.03.2021,ADULT SOCIAL CARE,INTERSERVE (FACILITIES MANAGEMENT),"19,811.40",ANCHOR TRUST REPAIRS,BUILDING R&M,2103227711,3000000166
09.03.2021,ADULT SOCIAL CARE,SWK DISABLEMENT ASSN,"1,218.36",DISCHARGE TO ACCESS,HOMECARE - SPOT,2103227864,1000011698
09.03.2021,ADULT SOCIAL CARE,ROYAL BOROUGH OF KENSINGTON & CHELSEA,"9,450.00",ICES CONTRACT,SUBSCRIPTIONS,5902459055,1000033864
09.03.2021,ADULT SOCIAL CARE,THE CAMDEN SOCIETY (SOCIAL CARE),376.80,LD LTS 18-64,DAYCARE,2103227942,1000036369
09.03.2021,ADULT SOCIAL CARE,THE CAMDEN SOCIETY (SOCIAL CARE),384.00,LD LTS 18-64,DAYCARE,2103227961,1000036369
09.03.2021,ADULT SOCIAL CARE,THE CAMDEN SOCIETY (SOCIAL CARE),465.60,LD LTS 18-64,DAYCARE,2103227949,1000036369
09.03.2021,ADULT SOCIAL CARE,THE CAMDEN SOCIETY (SOCIAL CARE),480.00,LD LTS 18-64,DAYCARE,2103227983,1000036369
09.03.2021,ADULT SOCIAL CARE,THE CAMDEN SOCIETY (SOCIAL CARE),480.00,LD LTS 18-64,DAYCARE,2103227978,1000036369
09.03.2021,ADULT SOCIAL CARE,THE CAMDEN SOCIETY (SOCIAL CARE),480.00,LD LTS 18-64,DAYCARE,2103227969,1000036369
09.03.2021,ADULT SOCIAL CARE,THE CAMDEN SOCIETY (SOCIAL CARE),480.00,LD LTS 18-64,DAYCARE,2103227966,1000036369
09.03.2021,ADULT SOCIAL CARE,THE CAMDEN SOCIETY (SOCIAL CARE),500.00,LD LTS 18-64,DAYCARE,2103227977,1000036369
09.03.2021,ADULT SOCIAL CARE,THE CAMDEN SOCIETY (SOCIAL CARE),500.00,LD LTS 18-64,DAYCARE,2103227954,1000036369
09.03.2021,ADULT SOCIAL CARE,THE CAMDEN SOCIETY (SOCIAL CARE),594.00,LD LTS 18-64,DAYCARE,2103227945,1000036369
09.03.2021,ADULT SOCIAL CARE,THE CAMDEN SOCIETY (SOCIAL CARE),599.36,LD LTS 18-64,DAYCARE,2103227967,1000036369
09.03.2021,ADULT SOCIAL CARE,THE CAMDEN SOCIETY (SOCIAL CARE),609.60,LD LTS 18-64,DAYCARE,2103227950,1000036369
09.03.2021,ADULT SOCIAL CARE,THE CAMDEN SOCIETY (SOCIAL CARE),612.00,LD LTS 18-64,DAYCARE,2103227943,1000036369
09.03.2021,ADULT SOCIAL CARE,THE CAMDEN SOCIETY (SOCIAL CARE),674.16,LD LTS 18-64,DAYCARE,2103227939,1000036369
09.03.2021,ADULT SOCIAL CARE,THE CAMDEN SOCIETY (SOCIAL CARE),676.80,LD LTS 18-64,DAYCARE,2103227982,1000036369
09.03.2021,ADULT SOCIAL CARE,THE CAMDEN SOCIETY (SOCIAL CARE),704.00,LD LTS 18-64,DAYCARE,2103227976,1000036369
09.03.2021,ADULT SOCIAL CARE,THE CAMDEN SOCIETY (SOCIAL CARE),704.00,LD LTS 18-64,DAYCARE,2103227968,1000036369
09.03.2021,ADULT SOCIAL CARE,THE CAMDEN SOCIETY (SOCIAL CARE),704.00,LD LTS 18-64,DAYCARE,2103227959,1000036369
09.03.2021,ADULT SOCIAL CARE,THE CAMDEN SOCIETY (SOCIAL CARE),704.00,LD LTS 18-64,DAYCARE,2103227948,1000036369
09.03.2021,ADULT SOCIAL CARE,THE CAMDEN SOCIETY (SOCIAL CARE),704.00,LD LTS 18-64,DAYCARE,2103227940,1000036369
09.03.2021,ADULT SOCIAL CARE,THE CAMDEN SOCIETY (SOCIAL CARE),705.60,LD LTS 18-64,DAYCARE,2103227984,1000036369
09.03.2021,ADULT SOCIAL CARE,THE CAMDEN SOCIETY (SOCIAL CARE),903.60,LD LTS 18-64,DAYCARE,2103227957,1000036369
09.03.2021,ADULT SOCIAL CARE,THE CAMDEN SOCIETY (SOCIAL CARE),960.00,LD LTS 18-64,DAYCARE,2103227958,1000036369
09.03.2021,ADULT SOCIAL CARE,THE CAMDEN SOCIETY (SOCIAL CARE),960.00,LD LTS 18-64,DAYCARE,2103227955,1000036369
09.03.2021,ADULT SOCIAL CARE,THE CAMDEN SOCIETY (SOCIAL CARE),968.00,LD LTS 18-64,DAYCARE,2103227971,1000036369
09.03.2021,ADULT SOCIAL CARE,THE CAMDEN SOCIETY (SOCIAL CARE),988.00,LD LTS 18-64,DAYCARE,2103227975,1000036369
09.03.2021,ADULT SOCIAL CARE,THE CAMDEN SOCIETY (SOCIAL CARE),"1,056.00",LD LTS 18-64,DAYCARE,2103227987,1000036369
09.03.2021,ADULT SOCIAL CARE,THE CAMDEN SOCIETY (SOCIAL CARE),"1,056.00",LD LTS 18-64,DAYCARE,2103227979,1000036369
09.03.2021,ADULT SOCIAL CARE,THE CAMDEN SOCIETY (SOCIAL CARE),"1,056.00",LD LTS 18-64,DAYCARE,2103227947,1000036369
09.03.2021,ADULT SOCIAL CARE,THE CAMDEN SOCIETY (SOCIAL CARE),"1,056.00",LD LTS 18-64,DAYCARE,2103227946,1000036369
09.03.2021,ADULT SOCIAL CARE,THE CAMDEN SOCIETY (SOCIAL CARE),"1,200.00",LD LTS 18-64,DAYCARE,2103227960,1000036369
09.03.2021,ADULT SOCIAL CARE,THE CAMDEN SOCIETY (SOCIAL CARE),"1,408.00",LD LTS 18-64,DAYCARE,2103227985,1000036369
09.03.2021,ADULT SOCIAL CARE,THE CAMDEN SOCIETY (SOCIAL CARE),"1,408.00",LD LTS 18-64,DAYCARE,2103227980,1000036369
09.03.2021,ADULT SOCIAL CARE,THE CAMDEN SOCIETY (SOCIAL CARE),"1,451.52",LD LTS 18-64,DAYCARE,2103227973,1000036369
09.03.2021,ADULT SOCIAL CARE,THE CAMDEN SOCIETY (SOCIAL CARE),"1,500.00",LD LTS 18-64,DAYCARE,2103227953,1000036369
09.03.2021,ADULT SOCIAL CARE,THE CAMDEN SOCIETY (SOCIAL CARE),"1,536.00",LD LTS 18-64,DAYCARE,2103227944,1000036369
09.03.2021,ADULT SOCIAL CARE,THE CAMDEN SOCIETY (SOCIAL CARE),"1,760.00",LD LTS 18-64,DAYCARE,2103227952,1000036369
09.03.2021,ADULT SOCIAL CARE,THE CAMDEN SOCIETY (SOCIAL CARE),"1,760.00",LD LTS 18-64,DAYCARE,2103227941,1000036369
09.03.2021,ADULT SOCIAL CARE,THE CAMDEN SOCIETY (SOCIAL CARE),"1,824.40",LD LTS 18-64,DAYCARE,2103227938,1000036369
09.03.2021,ADULT SOCIAL CARE,THE CAMDEN SOCIETY (SOCIAL CARE),"1,848.00",LD LTS 18-64,DAYCARE,2103227963,1000036369
09.03.2021,ADULT SOCIAL CARE,THE CAMDEN SOCIETY (SOCIAL CARE),"1,848.00",LD LTS 18-64,DAYCARE,2103227951,1000036369
09.03.2021,ADULT SOCIAL CARE,THE CAMDEN SOCIETY (SOCIAL CARE),"2,000.00",LD LTS 18-64,DAYCARE,2103227956,1000036369
09.03.2021,ADULT SOCIAL CARE,THE CAMDEN SOCIETY (SOCIAL CARE),"2,020.00",LD LTS 18-64,DAYCARE,2103227937,1000036369
09.03.2021,ADULT SOCIAL CARE,THE CAMDEN SOCIETY (SOCIAL CARE),"2,154.48",LD LTS 18-64,DAYCARE,2103227989,1000036369
09.03.2021,ADULT SOCIAL CARE,THE CAMDEN SOCIETY (SOCIAL CARE),"2,160.00",LD LTS 18-64,DAYCARE,2103227964,1000036369
09.03.2021,ADULT SOCIAL CARE,THE CAMDEN SOCIETY (SOCIAL CARE),"2,374.00",LD LTS 18-64,DAYCARE,2103227962,1000036369
09.03.2021,ADULT SOCIAL CARE,THE CAMDEN SOCIETY (SOCIAL CARE),"2,448.00",LD LTS 18-64,DAYCARE,2103227986,1000036369
09.03.2021,ADULT SOCIAL CARE,THE CAMDEN SOCIETY (SOCIAL CARE),"3,160.00",LD LTS 18-64,DAYCARE,2103227972,1000036369
09.03.2021,ADULT SOCIAL CARE,THE CAMDEN SOCIETY (SOCIAL CARE),"3,534.00",LD LTS 18-64,DAYCARE,2103227970,1000036369
09.03.2021,ADULT SOCIAL CARE,KENT HARRIER PROPERTY MANAGEMENT,"1,520.00",LD LTS 18-64,EXTERNAL AGENCIES AND BODIES,2103227999,1000078130
09.03.2021,ADULT SOCIAL CARE,KENT HARRIER PROPERTY MANAGEMENT,"1,536.00",LD LTS 18-64,EXTERNAL AGENCIES AND BODIES,2103228000,1000078130
09.03.2021,ADULT SOCIAL CARE,SWK DISABLEMENT ASSN,"1,350.96",LD LTS 18-64,HOMECARE - C&V,2103227909,1000011698
09.03.2021,ADULT SOCIAL CARE,REDACTED PERSONAL DATA,252.75,LD LTS 18-64,SUPPORTED LIVING,REDACTED,REDACTED
09.03.2021,ADULT SOCIAL CARE,MEDACS HOMECARE,"1,444.55",LD LTS 18-64,SUPPORTED LIVING,2103227835,11287415
09.03.2021,ADULT SOCIAL CARE,SWK DISABLEMENT ASSN,295.36,LD LTS 18-64,SUPPORTED LIVING,2103227925,1000011698
09.03.2021,ADULT SOCIAL CARE,SWK DISABLEMENT ASSN,443.04,LD LTS 18-64,SUPPORTED LIVING,2103227924,1000011698
09.03.2021,ADULT SOCIAL CARE,SWK DISABLEMENT ASSN,443.04,LD LTS 18-64,SUPPORTED LIVING,2103227922,1000011698
09.03.2021,ADULT SOCIAL CARE,SWK DISABLEMENT ASSN,443.04,LD LTS 18-64,SUPPORTED LIVING,2103227892,1000011698
09.03.2021,ADULT SOCIAL CARE,SWK DISABLEMENT ASSN,452.27,LD LTS 18-64,SUPPORTED LIVING,2103227851,1000011698
09.03.2021,ADULT SOCIAL CARE,SWK DISABLEMENT ASSN,738.40,LD LTS 18-64,SUPPORTED LIVING,2103227923,1000011698
09.03.2021,ADULT SOCIAL CARE,SWK DISABLEMENT ASSN,"1,107.60",LD LTS 18-64,SUPPORTED LIVING,2103227915,1000011698
09.03.2021,ADULT SOCIAL CARE,SWK DISABLEMENT ASSN,"1,255.28",LD LTS 18-64,SUPPORTED LIVING,2103227916,1000011698
09.03.2021,ADULT SOCIAL CARE,SWK DISABLEMENT ASSN,"1,550.64",LD LTS 65+,SUPPORTED LIVING,2103227917,1000011698
09.03.2021,ADULT SOCIAL CARE,SWK DISABLEMENT ASSN,369.20,MH LTS 18-64,HOMECARE - SPOT,2103227919,1000011698
09.03.2021,ADULT SOCIAL CARE,SWK DISABLEMENT ASSN,886.08,MH LTS 18-64,HOMECARE - SPOT,2103227863,1000011698
09.03.2021,ADULT SOCIAL CARE,REDACTED PERSONAL DATA,269.60,MH LTS 18-64,SUPPORTED LIVING,REDACTED,REDACTED
09.03.2021,ADULT SOCIAL CARE,REDACTED PERSONAL DATA,337.00,MH LTS 18-64,SUPPORTED LIVING,REDACTED,REDACTED
09.03.2021,ADULT SOCIAL CARE,LAMBETH CHINESE COMMUNITY ASSOCIATION,340.00,MH LTS 18-64,SUPPORTED LIVING,2103227926,11117038
09.03.2021,ADULT SOCIAL CARE,SWK DISABLEMENT ASSN,295.36,MH LTS 18-64,SUPPORTED LIVING,2103227921,1000011698
09.03.2021,ADULT SOCIAL CARE,SWK DISABLEMENT ASSN,295.36,MH LTS 18-64,SUPPORTED LIVING,2103227874,1000011698
09.03.2021,ADULT SOCIAL CARE,SWK DISABLEMENT ASSN,295.36,MH LTS 18-64,SUPPORTED LIVING,2103227865,1000011698
09.03.2021,ADULT SOCIAL CARE,SWK DISABLEMENT ASSN,332.28,MH LTS 18-64,SUPPORTED LIVING,2103227856,1000011698
09.03.2021,ADULT SOCIAL CARE,SWK DISABLEMENT ASSN,369.20,MH LTS 18-64,SUPPORTED LIVING,2103227858,1000011698
09.03.2021,ADULT SOCIAL CARE,SWK DISABLEMENT ASSN,461.50,MH LTS 18-64,SUPPORTED LIVING,2103227903,1000011698
09.03.2021,ADULT SOCIAL CARE,SWK DISABLEMENT ASSN,479.96,MH LTS 18-64,SUPPORTED LIVING,2103227871,1000011698
09.03.2021,ADULT SOCIAL CARE,SWK DISABLEMENT ASSN,553.80,MH LTS 18-64,SUPPORTED LIVING,2103227897,1000011698
09.03.2021,ADULT SOCIAL CARE,SWK DISABLEMENT ASSN,590.72,MH LTS 18-64,SUPPORTED LIVING,2103227894,1000011698
09.03.2021,ADULT SOCIAL CARE,SWK DISABLEMENT ASSN,664.56,MH LTS 18-64,SUPPORTED LIVING,2103227867,1000011698
09.03.2021,ADULT SOCIAL CARE,SWK DISABLEMENT ASSN,"1,624.48",MH LTS 18-64,SUPPORTED LIVING,2103227868,1000011698
09.03.2021,ADULT SOCIAL CARE,REDACTED PERSONAL DATA,269.60,MH LTS 65+,SUPPORTED LIVING,REDACTED,REDACTED
09.03.2021,ADULT SOCIAL CARE,SWK DISABLEMENT ASSN,295.36,MH LTS 65+,SUPPORTED LIVING,2103227890,1000011698
09.03.2021,ADULT SOCIAL CARE,NPOWER LTD,"1,737.83",ORIENT ST � RESPITE,ELECTRICITY,5902458922,1000078994
09.03.2021,ADULT SOCIAL CARE,THE CAMDEN SOCIETY (SOCIAL CARE),705.60,PHY LTS 18-64,DAYCARE,2103227974,1000036369
09.03.2021,ADULT SOCIAL CARE,MEDACS HOMECARE,276.80,PHY LTS 18-64,HOMECARE - C&V,2103227838,11287415
09.03.2021,ADULT SOCIAL CARE,SWK DISABLEMENT ASSN,467.64,PHY LTS 18-64,HOMECARE - SPOT,2103227910,1000011698
09.03.2021,ADULT SOCIAL CARE,SWK DISABLEMENT ASSN,484.96,PHY LTS 18-64,HOMECARE - SPOT,2103227906,1000011698
09.03.2021,ADULT SOCIAL CARE,SWK DISABLEMENT ASSN,866.00,PHY LTS 18-64,HOMECARE - SPOT,2103227911,1000011698
